Workbook

Sheet Cover
A2: Cap and Floor Financial Model 1 (CFFM1)
B3: Regime design model
C4: =MID(CELL("filename"),SEARCH("[",CELL("filename"))+1,SEARCH("]",CELL("filename"))-SEARCH("[",CELL("filename"))-1) -> NLCFFM1 (Nemo Link PCR decision).xlsm
C5: DISCLAIMER: In the event of any inconsistency between this model and Nemo Link’s licence, the licence conditions take precedence.
C6: For guidance on the use of the CFFM1, please refer to the CFFM1 Handbook (CFFM1H)
B8: Model key
E10: Sample | G10: Calculated value
E11: Sample | G11: Formula changes in cells to the right
E12: Sample | G12: Import from other sheet
E13: Sample | G13: Export to other sheet
E14: Sample | G14: Import from & export to other sheet
E15: Sample | G15: Initial input
E16: Sample | G16: Initial input for non-GB indexed portion (to be left empty if GB-indexed only)
E17: Sample | G17: Updated input
E18: Sample | G18: Notes and instructions
E19: Sample | G19: Cell intentionally blank
B21: Contents
E23: Cover | G23: Model key and content directory
E24: Version Control | G24: Version control and log of changes
E25: Inputs | G25: Input data
E26: Data Sources | G26: Sources of input data
E27: Pre Op RAV | G27: Pre-operational RAV balances
E28: Finance | G28: Interest during construction and transaction costs
E29: Op RAV | G29: Operational RAV balances, return on RAV and RAV depreciation
E30: Allowances Cap | G30: Cap allowances (excluding tax) and annuitisation
E31: Allowances Floor | G31: Floor allowances (excluding tax) and annuitisation
E32: Tax Deductions | G32: Tax calculations
E33: Tax Cap | G33: Tax allowances at cap and annuitisation
E34: Tax Floor | G34: Tax allowances at floor and annuitisation
E35: Cap Floor Levels | G35: Cap and Floor values
B37: Checks
E39: Depreciation | G39: ='Op Rav'!I27 -> TRUE
B41: End of sheet

Sheet Version Control
A1: Data Sources
B2: Version number | C2: File pathname | D2: Based on version | E2: Author or editor | F2: Date | G2: Description of changes | H2: Rationale for changes | I2: Location of changes | J2: Impact of changes on outputs | K2: Quality assurance performed? By? | L2: Comments on QA performed
B4: 1.1 | D4: N/a | E4: Andrew Stone & Neill Aitken (NGV) | F4: 2017-01-31 | G4: N/a | H4: N/a | I4: N/a | J4: N/a | K4: Internal (ORE) and external (BDO) | L4: Comments reflected in version 1.1
B5: 2.1 | D5: 1.1 | E5: Martin Namor | F5: 2019-03-20 | G5: CFFM split into CFFM1 (up to PCR) & CFFM2 (operations) | H5: Simplification and standardisation | I5: Throughout the model | J5: No impact | K5: Internal (ORE - Svitlana Voronkova) | L5: Comments reflected in version 2.2
B6: 2.2 | D6: 2.1 | E6: Martin Namor | F6: 2019-09-05 | G6: Minor changes | H6: Reflecting comments from QA and tidying up | I6: Throughout the model | J6: No impact | K6: Internal (ORE - Svitlana Voronkova) | L6: Further comments reflected in version 2.2

Sheet Inputs
A1: Inputs | H1: Licence
E2: Parameter | G2: Units | H2: Terminology | I2: Constant | K2: Annual values
B4: Indexation, currency and base year price term
E6: GB indexed portion of interconnector | G6: choice % | I6: 0.5
E7: Non-GB indexed portion of interconnector | G7: % | I7: =100%-I6 -> 0.5
E9: Currency of cost inputs | G9: choice | I9: €
E11: Base year price term | G11: choice | I11: £m 13/14 prices
B13: Variables set after financial close
C15: Actual values
E17: Year commencing | K17: =$I$84 -> 2007-01-01 | L17: =+K18+1 -> 2008-01-01 | M17: =+L18+1 -> 2009-01-01 | N17: =+M18+1 -> 2010-01-01 | O17: =+N18+1 -> 2011-01-01 | P17: =+O18+1 -> 2012-01-01 | Q17: =+P18+1 -> 2013-01-01 | R17: =+Q18+1 -> 2014-01-01 | S17: =+R18+1 -> 2015-01-01 | T17: =+S18+1 -> 2016-01-01 | U17: =+T18+1 -> 2017-01-01 | V17: =+U18+1 -> 2018-01-01 | W17: =+V18+1 -> 2019-01-01 | X17: =+W18+1 -> 2020-01-01 | Y17: =+X18+1 -> 2021-01-01 | Z17: =+Y18+1 -> 2022-01-01 | AA17: =+Z18+1 -> 2023-01-01 | AB17: =+AA18+1 -> 2024-01-01 | AC17: =+AB18+1 -> 2025-01-01 | AD17: =+AC18+1 -> 2026-01-01 | AE17: =+AD18+1 -> 2027-01-01 | AF17: =+AE18+1 -> 2028-01-01 | AG17: =+AF18+1 -> 2029-01-01 | AH17: =+AG18+1 -> 2030-01-01 | AI17: =+AH18+1 -> 2031-01-01 | AJ17: =+AI18+1 -> 2032-01-01 | AK17: =+AJ18+1 -> 2033-01-01 | AL17: =+AK18+1 -> 2034-01-01 | AM17: =+AL18+1 -> 2035-01-01 | AN17: =+AM18+1 -> 2036-01-01 | AO17: =+AN18+1 -> 2037-01-01 | AP17: =+AO18+1 -> 2038-01-01 | AQ17: =+AP18+1 -> 2039-01-01 | AR17: =+AQ18+1 -> 2040-01-01 | AS17: =+AR18+1 -> 2041-01-01 | AT17: =+AS18+1 -> 2042-01-01 | AU17: =+AT18+1 -> 2043-01-01 | AV17: =+AU18+1 -> 2044-01-01 | AW17: =+AV18+1 -> 2045-01-01 | AX17: =+AW18+1 -> 2046-01-01
E18: Year ending | K18: =EOMONTH(K17,11) -> 2007-12-31 | L18: =DATE(YEAR(K18) + 1, MONTH(K18), DAY(K18)) -> 2008-12-31 | M18: =DATE(YEAR(L18) + 1, MONTH(L18), DAY(L18)) -> 2009-12-31 | N18: =DATE(YEAR(M18) + 1, MONTH(M18), DAY(M18)) -> 2010-12-31 | O18: =DATE(YEAR(N18) + 1, MONTH(N18), DAY(N18)) -> 2011-12-31 | P18: =DATE(YEAR(O18) + 1, MONTH(O18), DAY(O18)) -> 2012-12-31 | Q18: =DATE(YEAR(P18) + 1, MONTH(P18), DAY(P18)) -> 2013-12-31 | R18: =DATE(YEAR(Q18) + 1, MONTH(Q18), DAY(Q18)) -> 2014-12-31 | S18: =DATE(YEAR(R18) + 1, MONTH(R18), DAY(R18)) -> 2015-12-31 | T18: =DATE(YEAR(S18) + 1, MONTH(S18), DAY(S18)) -> 2016-12-31 | U18: =DATE(YEAR(T18) + 1, MONTH(T18), DAY(T18)) -> 2017-12-31 | V18: =DATE(YEAR(U18) + 1, MONTH(U18), DAY(U18)) -> 2018-12-31 | W18: =DATE(YEAR(V18) + 1, MONTH(V18), DAY(V18)) -> 2019-12-31 | X18: =DATE(YEAR(W18) + 1, MONTH(W18), DAY(W18)) -> 2020-12-31 | Y18: =DATE(YEAR(X18) + 1, MONTH(X18), DAY(X18)) -> 2021-12-31 | Z18: =DATE(YEAR(Y18) + 1, MONTH(Y18), DAY(Y18)) -> 2022-12-31 | AA18: =DATE(YEAR(Z18) + 1, MONTH(Z18), DAY(Z18)) -> 2023-12-31 | AB18: =DATE(YEAR(AA18) + 1, MONTH(AA18), DAY(AA18)) -> 2024-12-31 | AC18: =DATE(YEAR(AB18) + 1, MONTH(AB18), DAY(AB18)) -> 2025-12-31 | AD18: =DATE(YEAR(AC18) + 1, MONTH(AC18), DAY(AC18)) -> 2026-12-31 | AE18: =DATE(YEAR(AD18) + 1, MONTH(AD18), DAY(AD18)) -> 2027-12-31 | AF18: =DATE(YEAR(AE18) + 1, MONTH(AE18), DAY(AE18)) -> 2028-12-31 | AG18: =DATE(YEAR(AF18) + 1, MONTH(AF18), DAY(AF18)) -> 2029-12-31 | AH18: =DATE(YEAR(AG18) + 1, MONTH(AG18), DAY(AG18)) -> 2030-12-31 | AI18: =DATE(YEAR(AH18) + 1, MONTH(AH18), DAY(AH18)) -> 2031-12-31 | AJ18: =DATE(YEAR(AI18) + 1, MONTH(AI18), DAY(AI18)) -> 2032-12-31 | AK18: =DATE(YEAR(AJ18) + 1, MONTH(AJ18), DAY(AJ18)) -> 2033-12-31 | AL18: =DATE(YEAR(AK18) + 1, MONTH(AK18), DAY(AK18)) -> 2034-12-31 | AM18: =DATE(YEAR(AL18) + 1, MONTH(AL18), DAY(AL18)) -> 2035-12-31 | AN18: =DATE(YEAR(AM18) + 1, MONTH(AM18), DAY(AM18)) -> 2036-12-31 | AO18: =DATE(YEAR(AN18) + 1, MONTH(AN18), DAY(AN18)) -> 2037-12-31 | AP18: =DATE(YEAR(AO18) + 1, MONTH(AO18), DAY(AO18)) -> 2038-12-31 | AQ18: =DATE(YEAR(AP18) + 1, MONTH(AP18), DAY(AP18)) -> 2039-12-31 | AR18: =DATE(YEAR(AQ18) + 1, MONTH(AQ18), DAY(AQ18)) -> 2040-12-31 | AS18: =DATE(YEAR(AR18) + 1, MONTH(AR18), DAY(AR18)) -> 2041-12-31 | AT18: =DATE(YEAR(AS18) + 1, MONTH(AS18), DAY(AS18)) -> 2042-12-31 | AU18: =DATE(YEAR(AT18) + 1, MONTH(AT18), DAY(AT18)) -> 2043-12-31 | AV18: =DATE(YEAR(AU18) + 1, MONTH(AU18), DAY(AU18)) -> 2044-12-31 | AW18: =DATE(YEAR(AV18) + 1, MONTH(AV18), DAY(AV18)) -> 2045-12-31 | AX18: =DATE(YEAR(AW18) + 1, MONTH(AW18), DAY(AW18)) -> 2046-12-31
E20: Development costs | G20: =CONCATENATE($I$9,"m nominal prices") -> €m nominal prices | K20: 0 | L20: 0.097 | M20: 0.21 | N20: 3.828 | O20: 1.677 | P20: 1.975 | Q20: 3.538 | R20: 4.375 | S20: 2.032 | T20: 0 | U20: 0 | V20: 0 | W20: 0 | X20: 0 | Y20: 0 | Z20: 0 | AA20: 0 | AB20: 0 | AC20: 0 | AD20: 0 | AE20: 0 | AF20: 0 | AG20: 0 | AH20: 0 | AI20: 0 | AJ20: 0 | AK20: 0 | AL20: 0 | AM20: 0 | AN20: 0 | AO20: 0 | AP20: 0 | AQ20: 0 | AR20: 0 | AS20: 0 | AT20: 0 | AU20: 0 | AV20: 0 | AW20: 0 | AX20: 0
E21: Capex | G21: =CONCATENATE($I$9,"m nominal prices") -> €m nominal prices | K21: 0 | L21: 0 | M21: 0 | N21: 0 | O21: 0 | P21: 0 | Q21: 0 | R21: 0 | S21: 95.01410413 | T21: 130.7613668 | U21: 242.0799629 | V21: 100.9138873 | W21: 43.29275604 | X21: 0 | Y21: 0 | Z21: 0 | AA21: 0 | AB21: 0 | AC21: 0 | AD21: 0 | AE21: 0 | AF21: 0 | AG21: 0 | AH21: 0 | AI21: 0 | AJ21: 0 | AK21: 0 | AL21: 0 | AM21: 0 | AN21: 0 | AO21: 0 | AP21: 0 | AQ21: 0 | AR21: 0 | AS21: 0 | AT21: 0 | AU21: 0 | AV21: 0 | AW21: 0 | AX21: 0
E22: Spares | G22: €m nominal prices | K22: 0 | L22: 0 | M22: 0 | N22: 0 | O22: 0 | P22: 0 | Q22: 0 | R22: 0 | S22: 0 | T22: 0 | U22: 0 | V22: 0 | W22: 0 | X22: 0 | Y22: 0 | Z22: 0 | AA22: 0 | AB22: 0 | AC22: 0 | AD22: 0 | AE22: 0 | AF22: 0 | AG22: 0 | AH22: 0 | AI22: 0 | AJ22: 0 | AK22: 0 | AL22: 0 | AM22: 0 | AN22: 0 | AO22: 0 | AP22: 0 | AQ22: 0 | AR22: 0 | AS22: 0 | AT22: 0 | AU22: 0 | AV22: 0 | AW22: 0 | AX22: 0
E24: Base year UK RPI inflation index value (CHAW) | G24: Jan 1987 = 100 | H24: UK RPI index 2013/14 | I24: 251.7333333
E25: Base year Belgium CPI inflation index value | G25: 2004 = 100 | H25: Belgium CPI index 2013/14 | I25: 122.7016667
E26: Base year average exchange rate (XUMAERS) | G26: GBP / EUR | H26: GBP2013/14 / EUR2013/14 | I26: 1.186008333
E28: 12 month average UK RPI inflation index value (CHAW) | G28: =G24 -> Jan 1987 = 100 | H28: UK RPI index t | K28: 206.575 | L28: 214.825 | M28: 213.6833333 | N28: 223.5583333 | O28: 235.1833333 | P28: 242.725 | Q28: 250.1083333 | R28: 256.0333333 | S28: 258.5416667 | T28: 263.05 | U28: 272.475 | V28: 281.5833333 | W28: 288.9918382 | X28: 297.6615933 | Y28: 306.5914411 | Z28: 315.7891843 | AA28: 325.2628599 | AB28: 335.0207457 | AC28: 345.071368 | AD28: 355.4235091 | AE28: 366.0862143 | AF28: 377.0688008 | AG28: 388.3808648 | AH28: 400.0322907 | AI28: 412.0332595 | AJ28: 424.3942572 | AK28: 437.126085 | AL28: 450.2398675 | AM28: 463.7470635 | AN28: 477.6594754 | AO28: 491.9892597 | AP28: 506.7489375 | AQ28: 521.9514056 | AR28: 537.6099478 | AS28: 553.7382462 | AT28: 570.3503936 | AU28: 587.4609054 | AV28: 605.0847326 | AW28: 623.2372745 | AX28: 641.9343928
E29: 12 month average Belgium CPI inflation index value | G29: =IF(G25="","",G25) -> 2004 = 100 | H29: Belgium CPI index t | K29: 106.5341667 | L29: 111.3166667 | M29: 111.2575 | N29: 113.6925 | O29: 117.7075 | P29: 121.0508333 | Q29: 122.3966667 | R29: 122.8158333 | S29: 123.5058333 | T29: 125.9425 | U29: 128.6191667 | V29: 131.2608333 | W29: 133.3772162 | X29: 136.0447606 | Y29: 138.7656558 | Z29: 141.5409689 | AA29: 144.3717883 | AB29: 147.259224 | AC29: 150.2044085 | AD29: 153.2084967 | AE29: 156.2726666 | AF29: 159.3981199 | AG29: 162.5860823 | AH29: 165.837804 | AI29: 169.1545601 | AJ29: 172.5376513 | AK29: 175.9884043 | AL29: 179.5081724 | AM29: 183.0983358 | AN29: 186.7603025 | AO29: 190.4955086 | AP29: 194.3054188 | AQ29: 198.1915271 | AR29: 202.1553577 | AS29: 206.1984648 | AT29: 210.3224341 | AU29: 214.5288828 | AV29: 218.8194605 | AW29: 223.1958497 | AX29: 227.6597667
E30: Average exchange rate (XUMAERS) | G30: =IF(G26="","",G26) -> GBP / EUR | H30: GBPt / EURt | K30: 1.461525 | L30: 1.258391667 | M30: 1.1233 | N30: 1.1662 | O30: 1.152858333 | P30: 1.233366667 | Q30: 1.177575 | R30: 1.240583333 | S30: 1.378016667 | T30: 1.224366667 | U30: 1.142058333 | V30: 1.130441667 | W30: 1.13437 | X30: 1.13437 | Y30: 1.13437 | Z30: 1.13437 | AA30: 1.13437 | AB30: 1.13437 | AC30: 1.13437 | AD30: 1.13437 | AE30: 1.13437 | AF30: 1.13437 | AG30: 1.13437 | AH30: 1.13437 | AI30: 1.13437 | AJ30: 1.13437 | AK30: 1.13437 | AL30: 1.13437 | AM30: 1.13437 | AN30: 1.13437 | AO30: 1.13437 | AP30: 1.13437 | AQ30: 1.13437 | AR30: 1.13437 | AS30: 1.13437 | AT30: 1.13437 | AU30: 1.13437 | AV30: 1.13437 | AW30: 1.13437 | AX30: 1.13437
E32: Indexation factor | H32: =IF(I6=100%,"CRPIt","PPPIt") -> PPPIt | K32: =IF($I$6=100%,(K28/$I$24),($I$6*(K28/$I$24)+$I$7*(K29/$I$25)/(K30/$I$26))) -> 0.762586807 | L32: =IF($I$6=100%,(L28/$I$24),($I$6*(L28/$I$24)+$I$7*(L29/$I$25)/(L30/$I$26))) -> 0.8542068857 | M32: =IF($I$6=100%,(M28/$I$24),($I$6*(M28/$I$24)+$I$7*(M29/$I$25)/(M30/$I$26))) -> 0.9030990765 | N32: =IF($I$6=100%,(N28/$I$24),($I$6*(N28/$I$24)+$I$7*(N29/$I$25)/(N30/$I$26))) -> 0.9151954529 | O32: 0.9605691898 | P32: 0.956439864 | Q32: 0.9991014306 | R32: 0.9869898378 | S32: 0.9466748671 | T32: 1.019605341 | U32: 1.085480593 | V32: 1.12045872 | W32: 1.142247053 | X32: 1.170832033 | Y32: 1.200160914 | Z32: 1.23025374 | AA32: 1.261131111 | AB32: 1.292814198 | AC32: 1.32532476 | AD32: 1.358685162 | AE32: 1.39291839 | AF32: 1.428048067 | AG32: 1.464098478 | AH32: 1.50109458 | AI32: 1.539062028 | AJ32: 1.578027192 | AK32: 1.618017177 | AL32: 1.659059845 | AM32: 1.701183836 | AN32: 1.74441859 | AO32: 1.788794372 | AP32: 1.834342292 | AQ32: 1.881094331 | AR32: 1.929083367 | AS32: 1.978343198 | AT32: 2.028908571 | AU32: 2.080815206 | AV32: 2.134099828 | AW32: 2.188800192 | AX32: 2.244955114
E34: =E20 -> Development costs | G34: =$I$11 -> £m 13/14 prices | K34: =IF($I$9="£",K20/K$32,K20/K$32/K$30) -> 0 | L34: =IF($I$9="£",L20/L$32,L20/L$32/L$30) -> 0.09023870053 | M34: 0.2070084806 | N34: =IF($I$9="£",N20/N$32,N20/N$32/N$30) -> 3.586617295 | O34: 1.514357689 | P34: 1.674238113 | Q34: 3.007181706 | R34: 3.5730528 | S34: 1.557644644 | T34: 0 | U34: 0 | V34: 0 | W34: 0 | X34: 0 | Y34: 0 | Z34: 0 | AA34: 0 | AB34: 0 | AC34: 0 | AD34: 0 | AE34: 0 | AF34: 0 | AG34: 0 | AH34: 0 | AI34: 0 | AJ34: 0 | AK34: 0 | AL34: 0 | AM34: 0 | AN34: 0 | AO34: 0 | AP34: 0 | AQ34: 0 | AR34: 0 | AS34: 0 | AT34: 0 | AU34: 0 | AV34: 0 | AW34: 0 | AX34: 0
E35: =E21 -> Capex | G35: =$I$11 -> £m 13/14 prices | K35: =IF($I$9="£",K21/K$32,K21/K$32/K$30) -> 0 | L35: 0 | M35: 0 | N35: 0 | O35: 0 | P35: 0 | Q35: 0 | R35: 0 | S35: 72.83376494 | T35: 104.7456153 | U35: 195.2758307 | V35: 79.67221996 | W35: 33.4118448 | X35: 0 | Y35: 0 | Z35: 0 | AA35: 0 | AB35: 0 | AC35: 0 | AD35: 0 | AE35: 0 | AF35: 0 | AG35: 0 | AH35: 0 | AI35: 0 | AJ35: 0 | AK35: 0 | AL35: 0 | AM35: 0 | AN35: 0 | AO35: 0 | AP35: 0 | AQ35: 0 | AR35: 0 | AS35: 0 | AT35: 0 | AU35: 0 | AV35: 0 | AW35: 0 | AX35: 0
E36: Spares | G36: £m 13/14 prices | K36: =IF($I$9="£",K22/K$32,K22/K$32/K$30) -> 0 | L36: 0 | M36: 0 | N36: 0 | O36: 0 | P36: 0 | Q36: 0 | R36: 0 | S36: 0 | T36: 0 | U36: 0 | V36: 0 | W36: 0 | X36: 0 | Y36: 0 | Z36: 0 | AA36: 0 | AB36: 0 | AC36: 0 | AD36: 0 | AE36: 0 | AF36: 0 | AG36: 0 | AH36: 0 | AI36: 0 | AJ36: 0 | AK36: 0 | AL36: 0 | AM36: 0 | AN36: 0 | AO36: 0 | AP36: 0 | AQ36: 0 | AR36: 0 | AS36: 0 | AT36: 0 | AU36: 0 | AV36: 0 | AW36: 0 | AX36: 0
C38: Ex-ante allowances for the operational period
E40: Operational Year | K40: Year 1 | L40: Year 2 | M40: Year 3 | N40: Year 4 | O40: Year 5 | P40: Year 6 | Q40: Year 7 | R40: Year 8 | S40: Year 9 | T40: Year 10 | U40: Year 11 | V40: Year 12 | W40: Year 13 | X40: Year 14 | Y40: Year 15 | Z40: Year 16 | AA40: Year 17 | AB40: Year 18 | AC40: Year 19 | AD40: Year 20 | AE40: Year 21 | AF40: Year 22 | AG40: Year 23 | AH40: Year 24 | AI40: Year 25
E42: Replacement Capex | G42: €m 2018 prices | K42: 0 | L42: 0 | M42: 0 | N42: 0 | O42: 0 | P42: 0.1789 | Q42: 3.430393013 | R42: 0.1789 | S42: 0.1789 | T42: 0.1789 | U42: 0.1789 | V42: 0.1789 | W42: 0.1789 | X42: 1.230393013 | Y42: 34.8189 | Z42: 0.1789 | AA42: 0.1789 | AB42: 0.1789 | AC42: 0.1789 | AD42: 0.1789 | AE42: 1.230393013 | AF42: 2.3789 | AG42: 0.1789 | AH42: 0.1789 | AI42: 0.1789
E43: Decommissioning baseline | G43: €m 2018 prices | K43: 0.00038210795 | L43: 0.0007661264397 | M43: 0.001936720469 | N43: 0.003152381614 | O43: 0.004415267701 | P43: 0.005727644453 | Q43: 0.007091890874 | R43: 0.008510504922 | S43: 0.00998610945 | T43: 0.01152145846 | U43: 0.01431807114 | V43: 0.01724628079 | W43: 0.02031257173 | X43: 0.0235237525 | Y43: 0.02688697206 | Z43: 0.03040973682 | AA43: 0.03409992852 | AB43: 0.03796582299 | AC43: 0.04201610982 | AD43: 0.04625991311 | AE43: 0.04834141271 | AF43: 0.05052507674 | AG43: 0.05281601344 | AH43: 0.05521958644 | AI43: 14.44597096
E44: Controllable Opex | G44: €m 2018 prices | K44: 18.34181071 | L44: 16.52896774 | M44: 16.45008133 | N44: 16.402015 | O44: 16.3463529 | P44: 17.66895369 | Q44: 17.41213443 | R44: 17.46812493 | S44: 17.53099551 | T44: 17.57306809 | U44: 17.98765927 | V44: 17.72567054 | W44: 17.78343236 | X44: 17.85675999 | Y44: 17.90065909 | Z44: 18.31710481 | AA44: 18.0599946 | AB44: 18.11574992 | AC44: 18.18709991 | AD44: 18.22905051 | AE44: 18.61757718 | AF44: 18.35857766 | AG44: 18.41736639 | AH44: 18.52386015 | AI44: 18.56890514
E45: Non-controllable Opex baseline | G45: €m 2018 prices | K45: 1.558003411 | L45: 1.558003411 | M45: 1.558003411 | N45: 1.558003411 | O45: 1.558003411 | P45: 1.558003411 | Q45: 1.558003411 | R45: 1.558003411 | S45: 1.558003411 | T45: 1.558003411 | U45: 1.558003411 | V45: 1.558003411 | W45: 1.558003411 | X45: 1.558003411 | Y45: 1.558003411 | Z45: 1.558003411 | AA45: 1.558003411 | AB45: 1.558003411 | AC45: 1.558003411 | AD45: 1.558003411 | AE45: 1.558003411 | AF45: 1.558003411 | AG45: 1.558003411 | AH45: 1.558003411 | AI45: 1.558003411
E47: =E24 -> Base year UK RPI inflation index value (CHAW) | G47: =G24 -> Jan 1987 = 100 | H47: =H24 -> UK RPI index 2013/14 | I47: =I24 -> 251.7333333
E48: =IF(E25="","",E25) -> Base year Belgium CPI inflation index value | G48: =IF(G25="","",G25) -> 2004 = 100 | H48: Belgium CPI index 2013/14 | I48: 122.7016667
E49: =IF(E26="","",E26) -> Base year average exchange rate (XUMAERS) | G49: GBP / EUR | H49: GBP2013/14 / EUR2013/14 | I49: 1.186008333
E51: 2018 average UK RPI inflation index value (CHAW) | G51: =G24 -> Jan 1987 = 100 | I51: 281.5833333
E52: 2018 average Belgium CPI inflation index value | G52: =IF(G25="","",G25) -> 2004 = 100 | I52: 131.2608333
E53: 2018 average exchange rate (XUMAERS) | G53: =IF(G26="","",G26) -> GBP / EUR | I53: 1.130441667
E55: =IF(E30="","",E30) -> Average exchange rate (XUMAERS) | G55: =IF(G30="","",G30) -> GBP / EUR | H55: =IF(H30="","",H30) -> GBPt / EURt | K55: 1.13808 | L55: 1.13808 | M55: 1.13808 | N55: 1.13808 | O55: 1.13808 | P55: 1.13808 | Q55: 1.13808 | R55: 1.13808 | S55: 1.13808 | T55: 1.13808 | U55: 1.13808 | V55: 1.13808 | W55: 1.13808 | X55: 1.13808 | Y55: 1.13808 | Z55: 1.13808 | AA55: 1.13808 | AB55: 1.13808 | AC55: 1.13808 | AD55: 1.13808 | AE55: 1.13808 | AF55: 1.13808 | AG55: 1.13808 | AH55: 1.13808 | AI55: 1.13808
E57: Indexation conversion from 2018 to 2013/14 terms | I57: =IF($I$6=100%,(I51/$I$47),$I$6*(I51/$I$47)+$I$7*((I52/$I$48)/(I53/$I$49))) -> 1.12045872
E59: =E42 -> Replacement Capex | G59: =$I$11 -> £m 13/14 prices | K59: =IF($I$9="£",K42/$I$57,K42/K$55/$I$57) -> 0 | L59: 0 | M59: 0 | N59: 0 | O59: 0 | P59: 0.1402948368 | Q59: 2.690142135 | R59: 0.1402948368 | S59: 0.1402948368 | T59: 0.1402948368 | U59: 0.1402948368 | V59: 0.1402948368 | W59: 0.1402948368 | X59: 0.9648842202 | Y59: 27.30526491 | Z59: 0.1402948368 | AA59: 0.1402948368 | AB59: 0.1402948368 | AC59: 0.1402948368 | AD59: 0.1402948368 | AE59: 0.9648842202 | AF59: 1.865552751 | AG59: 0.1402948368 | AH59: 0.1402948368 | AI59: 0.1402948368
E60: =E43 -> Decommissioning baseline | G60: £m 13/14 prices | K60: =IF($I$9="£",K43/$I$57,K43/K$55/$I$57) -> 0.0002996521659 | L60: 0.0006008025926 | M60: 0.001518791963 | N60: 0.002472123331 | O60: 0.003462488885 | P60: 0.00449166542 | Q60: 0.005561518573 | R60: 0.006674007261 | S60: 0.007831188348 | T60: 0.009035221541 | U60: 0.01122834798 | V60: 0.01352467383 | W60: 0.01592928415 | X60: 0.01844751826 | Y60: 0.02108498243 | Z60: 0.02384756324 | AA60: 0.02674144163 | AB60: 0.02977310754 | AC60: 0.03294937546 | AD60: 0.03627740055 | AE60: 0.03790972949 | AF60: 0.03962217661 | AG60: 0.04141874782 | AH60: 0.04330364934 | AI60: 11.32864806
E61: Controllable Opex | G61: £m 13/14 prices | K61: =IF($I$9="£",K44/$I$57,K44/K$55/$I$57) -> 14.38379731 | L61: =IF($I$9="£",L44/$I$57,L44/L$55/$I$57) -> 12.9621511 | M61: 12.90028773 | N61: 12.86259372 | O61: 12.81894305 | P61: 13.85613736 | Q61: 13.65473761 | R61: 13.69864582 | S61: 13.74794943 | T61: 13.78094309 | U61: 14.10606888 | V61: 13.90061517 | W61: 13.94591247 | X61: 14.00341659 | Y61: 14.03784263 | Z61: 14.36442275 | AA61: 14.16279483 | AB61: 14.2065186 | AC61: 14.26247185 | AD61: 14.29536985 | AE61: 14.60005563 | AF61: 14.39694609 | AG61: 14.44304869 | AH61: 14.52656197 | AI61: 14.56188662
E62: Non-controllable Opex baseline | G62: £m 13/14 prices | K62: =IF($I$9="£",K45/$I$57,K45/K$55/$I$57) -> 1.221798962 | L62: 1.221798962 | M62: 1.221798962 | N62: 1.221798962 | O62: 1.221798962 | P62: 1.221798962 | Q62: 1.221798962 | R62: 1.221798962 | S62: 1.221798962 | T62: 1.221798962 | U62: 1.221798962 | V62: 1.221798962 | W62: 1.221798962 | X62: 1.221798962 | Y62: 1.221798962 | Z62: 1.221798962 | AA62: 1.221798962 | AB62: 1.221798962 | AC62: 1.221798962 | AD62: 1.221798962 | AE62: 1.221798962 | AF62: 1.221798962 | AG62: 1.221798962 | AH62: 1.221798962 | AI62: 1.221798962
B64: Variables set at financial close
C66: Finance
E68: Cap return rate | G68: real annual % | I68: 0.0734
E69: Floor return rate | G69: real annual % | I69: 0.0042
E70: Interest during construction (IDC) rate | G70: real annual % | I70: 0.0557
E71: Cost of debt (for tax) | G71: real annual % | I71: =I69 -> 0.0042
E73: Pre-operational notional gearing | G73: % | I73: 0.3341
E74: Operational notional gearing | G74: % | I74: 0.5
E76: Equity transaction costs | G76: % | I76: 0.05
E77: Debt transaction costs | G77: % | I77: 0.025
C79: Model operation
C80: Note: changes in these variables may require structural changes to the model.
E81: Year commencing | K81: =$I$84 -> 2007-01-01 | L81: =+K82+1 -> 2008-01-01 | M81: =+L82+1 -> 2009-01-01 | N81: =+M82+1 -> 2010-01-01 | O81: =+N82+1 -> 2011-01-01 | P81: =+O82+1 -> 2012-01-01 | Q81: =+P82+1 -> 2013-01-01 | R81: =+Q82+1 -> 2014-01-01 | S81: =+R82+1 -> 2015-01-01 | T81: =+S82+1 -> 2016-01-01 | U81: =+T82+1 -> 2017-01-01 | V81: =+U82+1 -> 2018-01-01 | W81: =+V82+1 -> 2019-01-01 | X81: =+W82+1 -> 2020-01-01 | Y81: =+X82+1 -> 2021-01-01 | Z81: =+Y82+1 -> 2022-01-01 | AA81: =+Z82+1 -> 2023-01-01 | AB81: =+AA82+1 -> 2024-01-01 | AC81: =+AB82+1 -> 2025-01-01 | AD81: =+AC82+1 -> 2026-01-01 | AE81: =+AD82+1 -> 2027-01-01 | AF81: =+AE82+1 -> 2028-01-01 | AG81: =+AF82+1 -> 2029-01-01 | AH81: =+AG82+1 -> 2030-01-01 | AI81: =+AH82+1 -> 2031-01-01 | AJ81: =+AI82+1 -> 2032-01-01 | AK81: =+AJ82+1 -> 2033-01-01 | AL81: =+AK82+1 -> 2034-01-01 | AM81: =+AL82+1 -> 2035-01-01 | AN81: =+AM82+1 -> 2036-01-01 | AO81: =+AN82+1 -> 2037-01-01 | AP81: =+AO82+1 -> 2038-01-01 | AQ81: =+AP82+1 -> 2039-01-01 | AR81: =+AQ82+1 -> 2040-01-01 | AS81: =+AR82+1 -> 2041-01-01 | AT81: =+AS82+1 -> 2042-01-01 | AU81: =+AT82+1 -> 2043-01-01 | AV81: =+AU82+1 -> 2044-01-01 | AW81: =+AV82+1 -> 2045-01-01 | AX81: =+AW82+1 -> 2046-01-01
E82: Year ending | K82: =EOMONTH(K81,11) -> 2007-12-31 | L82: =DATE(YEAR(K82) + 1, MONTH(K82), DAY(K82)) -> 2008-12-31 | M82: =DATE(YEAR(L82) + 1, MONTH(L82), DAY(L82)) -> 2009-12-31 | N82: =DATE(YEAR(M82) + 1, MONTH(M82), DAY(M82)) -> 2010-12-31 | O82: =DATE(YEAR(N82) + 1, MONTH(N82), DAY(N82)) -> 2011-12-31 | P82: =DATE(YEAR(O82) + 1, MONTH(O82), DAY(O82)) -> 2012-12-31 | Q82: =DATE(YEAR(P82) + 1, MONTH(P82), DAY(P82)) -> 2013-12-31 | R82: =DATE(YEAR(Q82) + 1, MONTH(Q82), DAY(Q82)) -> 2014-12-31 | S82: =DATE(YEAR(R82) + 1, MONTH(R82), DAY(R82)) -> 2015-12-31 | T82: =DATE(YEAR(S82) + 1, MONTH(S82), DAY(S82)) -> 2016-12-31 | U82: =DATE(YEAR(T82) + 1, MONTH(T82), DAY(T82)) -> 2017-12-31 | V82: =DATE(YEAR(U82) + 1, MONTH(U82), DAY(U82)) -> 2018-12-31 | W82: =DATE(YEAR(V82) + 1, MONTH(V82), DAY(V82)) -> 2019-12-31 | X82: =DATE(YEAR(W82) + 1, MONTH(W82), DAY(W82)) -> 2020-12-31 | Y82: =DATE(YEAR(X82) + 1, MONTH(X82), DAY(X82)) -> 2021-12-31 | Z82: =DATE(YEAR(Y82) + 1, MONTH(Y82), DAY(Y82)) -> 2022-12-31 | AA82: =DATE(YEAR(Z82) + 1, MONTH(Z82), DAY(Z82)) -> 2023-12-31 | AB82: =DATE(YEAR(AA82) + 1, MONTH(AA82), DAY(AA82)) -> 2024-12-31 | AC82: =DATE(YEAR(AB82) + 1, MONTH(AB82), DAY(AB82)) -> 2025-12-31 | AD82: =DATE(YEAR(AC82) + 1, MONTH(AC82), DAY(AC82)) -> 2026-12-31 | AE82: =DATE(YEAR(AD82) + 1, MONTH(AD82), DAY(AD82)) -> 2027-12-31 | AF82: =DATE(YEAR(AE82) + 1, MONTH(AE82), DAY(AE82)) -> 2028-12-31 | AG82: =DATE(YEAR(AF82) + 1, MONTH(AF82), DAY(AF82)) -> 2029-12-31 | AH82: =DATE(YEAR(AG82) + 1, MONTH(AG82), DAY(AG82)) -> 2030-12-31 | AI82: =DATE(YEAR(AH82) + 1, MONTH(AH82), DAY(AH82)) -> 2031-12-31 | AJ82: =DATE(YEAR(AI82) + 1, MONTH(AI82), DAY(AI82)) -> 2032-12-31 | AK82: =DATE(YEAR(AJ82) + 1, MONTH(AJ82), DAY(AJ82)) -> 2033-12-31 | AL82: =DATE(YEAR(AK82) + 1, MONTH(AK82), DAY(AK82)) -> 2034-12-31 | AM82: =DATE(YEAR(AL82) + 1, MONTH(AL82), DAY(AL82)) -> 2035-12-31 | AN82: =DATE(YEAR(AM82) + 1, MONTH(AM82), DAY(AM82)) -> 2036-12-31 | AO82: =DATE(YEAR(AN82) + 1, MONTH(AN82), DAY(AN82)) -> 2037-12-31 | AP82: =DATE(YEAR(AO82) + 1, MONTH(AO82), DAY(AO82)) -> 2038-12-31 | AQ82: =DATE(YEAR(AP82) + 1, MONTH(AP82), DAY(AP82)) -> 2039-12-31 | AR82: =DATE(YEAR(AQ82) + 1, MONTH(AQ82), DAY(AQ82)) -> 2040-12-31 | AS82: =DATE(YEAR(AR82) + 1, MONTH(AR82), DAY(AR82)) -> 2041-12-31 | AT82: =DATE(YEAR(AS82) + 1, MONTH(AS82), DAY(AS82)) -> 2042-12-31 | AU82: =DATE(YEAR(AT82) + 1, MONTH(AT82), DAY(AT82)) -> 2043-12-31 | AV82: =DATE(YEAR(AU82) + 1, MONTH(AU82), DAY(AU82)) -> 2044-12-31 | AW82: =DATE(YEAR(AV82) + 1, MONTH(AV82), DAY(AV82)) -> 2045-12-31 | AX82: =DATE(YEAR(AW82) + 1, MONTH(AW82), DAY(AW82)) -> 2046-12-31
E84: Model start date | G84: date | I84: 2007-01-01
E85: Regime start date | G85: date | I85: 2019-01-31
E86: End date for IDC | G86: date | I86: 2019-01-30
E87: Start of operations | G87: date | I87: 2019-01-31
E88: Regime end date | G88: date | I88: =DATE(YEAR($I$85)+I89,MONTH($I$85),DAY($I$85))-1 -> 2044-01-30
E89: Number of operational years | G89: full years | I89: 25
E91: Days in year | G91: days | K91: =K$82-K$81+1 -> 365 | L91: 366 | M91: =M$82-M$81+1 -> 365 | N91: =N$82-N$81+1 -> 365 | O91: 365 | P91: 366 | Q91: 365 | R91: 365 | S91: 365 | T91: 366 | U91: 365 | V91: 365 | W91: 365 | X91: 366 | Y91: 365 | Z91: 365 | AA91: 365 | AB91: 366 | AC91: 365 | AD91: 365 | AE91: 365 | AF91: 366 | AG91: 365 | AH91: 365 | AI91: 365 | AJ91: 366 | AK91: 365 | AL91: 365 | AM91: 365 | AN91: 366 | AO91: 365 | AP91: 365 | AQ91: 365 | AR91: 366 | AS91: 365 | AT91: 365 | AU91: 365 | AV91: 366 | AW91: 365 | AX91: 365
E92: IDC flag | G92: flag | K92: =IF($I$86>=K$82,1,IF($I$86>=K$81,($I$86-K$81+1)/K$91,0)) -> 1 | L92: 1 | M92: 1 | N92: 1 | O92: 1 | P92: 1 | Q92: 1 | R92: 1 | S92: 1 | T92: 1 | U92: 1 | V92: 1 | W92: 0.08219178082 | X92: 0 | Y92: 0 | Z92: 0 | AA92: 0 | AB92: 0 | AC92: 0 | AD92: 0 | AE92: 0 | AF92: 0 | AG92: 0 | AH92: 0 | AI92: 0 | AJ92: 0 | AK92: 0 | AL92: 0 | AM92: 0 | AN92: 0 | AO92: 0 | AP92: 0 | AQ92: 0 | AR92: 0 | AS92: 0 | AT92: 0 | AU92: 0 | AV92: 0 | AW92: 0 | AX92: 0
E93: Post-IDC and pre-operations flag | G93: flag | K93: =IF(OR(K92=1,K94=1),0,IF($I$87<K81,0,IF($I$87<K82,($I$87-(MAX($I$86+1,K81)))/K91,MIN(1,(K82-$I$86)/K91)))) -> 0 | L93: 0 | M93: 0 | N93: 0 | O93: 0 | P93: 0 | Q93: 0 | R93: 0 | S93: 0 | T93: 0 | U93: 0 | V93: 0 | W93: 0 | X93: 0 | Y93: 0 | Z93: 0 | AA93: 0 | AB93: 0 | AC93: 0 | AD93: 0 | AE93: 0 | AF93: 0 | AG93: 0 | AH93: 0 | AI93: 0 | AJ93: 0 | AK93: 0 | AL93: 0 | AM93: 0 | AN93: 0 | AO93: 0 | AP93: 0 | AQ93: 0 | AR93: 0 | AS93: 0 | AT93: 0 | AU93: 0 | AV93: 0 | AW93: 0 | AX93: 0
E94: Operations flag | G94: flag | K94: =IF(OR($I$87>K$82,$I$88<K$81),0,IF($I$87>=K$81,(K$82-$I$87+1)/K$91,IF($I$88<=K$82,($I$88-K$81+1)/K$91,1))) -> 0 | L94: 0 | M94: 0 | N94: 0 | O94: 0 | P94: 0 | Q94: 0 | R94: 0 | S94: 0 | T94: 0 | U94: 0 | V94: 0 | W94: 0.9178082192 | X94: 1 | Y94: 1 | Z94: 1 | AA94: 1 | AB94: 1 | AC94: 1 | AD94: 1 | AE94: 1 | AF94: 1 | AG94: 1 | AH94: 1 | AI94: 1 | AJ94: 1 | AK94: 1 | AL94: 1 | AM94: 1 | AN94: 1 | AO94: 1 | AP94: 1 | AQ94: 1 | AR94: 1 | AS94: 1 | AT94: 1 | AU94: 1 | AV94: 0.08196721311 | AW94: 0 | AX94: 0
E95: Transfer construction to operations flag | G95: flag | H95: ` | K95: =IF(AND($I$87<=K$82,$I$87>=K$81),1,0) -> 0 | L95: 0 | M95: =IF(AND($I$87<=M$82,$I$87>=M$81),1,0) -> 0 | N95: =IF(AND($I$87<=N$82,$I$87>=N$81),1,0) -> 0 | O95: 0 | P95: 0 | Q95: 0 | R95: 0 | S95: 0 | T95: 0 | U95: 0 | V95: 0 | W95: 1 | X95: 0 | Y95: 0 | Z95: 0 | AA95: 0 | AB95: 0 | AC95: 0 | AD95: 0 | AE95: 0 | AF95: 0 | AG95: 0 | AH95: 0 | AI95: 0 | AJ95: 0 | AK95: 0 | AL95: 0 | AM95: 0 | AN95: 0 | AO95: 0 | AP95: 0 | AQ95: 0 | AR95: 0 | AS95: 0 | AT95: 0 | AU95: 0 | AV95: 0 | AW95: 0 | AX95: 0
E96: Initial transaction costs flag | G96: flag | K96: =IF(AND(SUM($J35:K35)=0,L35>0),1,0) -> 0 | L96: =IF(AND(SUM($J35:L35)=0,M35>0),1,0) -> 0 | M96: =IF(AND(SUM($J35:M35)=0,N35>0),1,0) -> 0 | N96: =IF(AND(SUM($J35:N35)=0,O35>0),1,0) -> 0 | O96: =IF(AND(SUM($J35:O35)=0,P35>0),1,0) -> 0 | P96: =IF(AND(SUM($J35:P35)=0,Q35>0),1,0) -> 0 | Q96: =IF(AND(SUM($J35:Q35)=0,R35>0),1,0) -> 0 | R96: =IF(AND(SUM($J35:R35)=0,S35>0),1,0) -> 1 | S96: =IF(AND(SUM($J35:S35)=0,T35>0),1,0) -> 0 | T96: =IF(AND(SUM($J35:T35)=0,U35>0),1,0) -> 0 | U96: =IF(AND(SUM($J35:U35)=0,V35>0),1,0) -> 0 | V96: =IF(AND(SUM($J35:V35)=0,W35>0),1,0) -> 0 | W96: =IF(AND(SUM($J35:W35)=0,X35>0),1,0) -> 0 | X96: =IF(AND(SUM($J35:X35)=0,Y35>0),1,0) -> 0 | Y96: =IF(AND(SUM($J35:Y35)=0,Z35>0),1,0) -> 0 | Z96: =IF(AND(SUM($J35:Z35)=0,AA35>0),1,0) -> 0 | AA96: =IF(AND(SUM($J35:AA35)=0,AB35>0),1,0) -> 0 | AB96: =IF(AND(SUM($J35:AB35)=0,AC35>0),1,0) -> 0 | AC96: =IF(AND(SUM($J35:AC35)=0,AD35>0),1,0) -> 0 | AD96: =IF(AND(SUM($J35:AD35)=0,AE35>0),1,0) -> 0 | AE96: =IF(AND(SUM($J35:AE35)=0,AF35>0),1,0) -> 0 | AF96: =IF(AND(SUM($J35:AF35)=0,AG35>0),1,0) -> 0 | AG96: =IF(AND(SUM($J35:AG35)=0,AH35>0),1,0) -> 0 | AH96: =IF(AND(SUM($J35:AH35)=0,AI35>0),1,0) -> 0 | AI96: =IF(AND(SUM($J35:AI35)=0,AJ35>0),1,0) -> 0 | AJ96: =IF(AND(SUM($J35:AJ35)=0,AK35>0),1,0) -> 0 | AK96: =IF(AND(SUM($J35:AK35)=0,AL35>0),1,0) -> 0 | AL96: =IF(AND(SUM($J35:AL35)=0,AM35>0),1,0) -> 0 | AM96: =IF(AND(SUM($J35:AM35)=0,AN35>0),1,0) -> 0 | AN96: =IF(AND(SUM($J35:AN35)=0,AO35>0),1,0) -> 0 | AO96: =IF(AND(SUM($J35:AO35)=0,AP35>0),1,0) -> 0 | AP96: =IF(AND(SUM($J35:AP35)=0,AQ35>0),1,0) -> 0 | AQ96: =IF(AND(SUM($J35:AQ35)=0,AR35>0),1,0) -> 0 | AR96: =IF(AND(SUM($J35:AR35)=0,AS35>0),1,0) -> 0 | AS96: =IF(AND(SUM($J35:AS35)=0,AT35>0),1,0) -> 0 | AT96: =IF(AND(SUM($J35:AT35)=0,AU35>0),1,0) -> 0 | AU96: =IF(AND(SUM($J35:AU35)=0,AV35>0),1,0) -> 0 | AV96: =IF(AND(SUM($J35:AV35)=0,AW35>0),1,0) -> 0 | AW96: =IF(AND(SUM($J35:AW35)=0,AX35>0),1,0) -> 0 | AX96: =IF(AND(SUM($J35:AX35)=0,AY35>0),1,0) -> 0
C98: Tax - Financial years
E100: Year commencing | K100: =K17 -> 2007-01-01 | L100: =+K101+1 -> 2008-01-01 | M100: =+L101+1 -> 2009-01-01 | N100: =+M101+1 -> 2010-01-01 | O100: 2011-01-01 | P100: 2012-01-01 | Q100: 2013-01-01 | R100: 2014-01-01 | S100: 2015-01-01 | T100: 2016-01-01 | U100: 2017-01-01 | V100: 2018-01-01 | W100: 2019-01-01 | X100: 2020-01-01 | Y100: 2021-01-01 | Z100: 2022-01-01 | AA100: 2023-01-01 | AB100: 2024-01-01 | AC100: 2025-01-01 | AD100: 2026-01-01 | AE100: 2027-01-01 | AF100: 2028-01-01 | AG100: 2029-01-01 | AH100: 2030-01-01 | AI100: 2031-01-01 | AJ100: 2032-01-01 | AK100: 2033-01-01 | AL100: 2034-01-01 | AM100: 2035-01-01 | AN100: 2036-01-01 | AO100: 2037-01-01 | AP100: 2038-01-01 | AQ100: 2039-01-01 | AR100: 2040-01-01 | AS100: 2041-01-01 | AT100: 2042-01-01 | AU100: 2043-01-01 | AV100: 2044-01-01 | AW100: 2045-01-01 | AX100: 2046-01-01
E101: Year ending | K101: =K18 -> 2007-12-31 | L101: =DATE(YEAR(K101) + 1, MONTH(K101), DAY(K101)) -> 2008-12-31 | M101: 2009-12-31 | N101: 2010-12-31 | O101: 2011-12-31 | P101: 2012-12-31 | Q101: 2013-12-31 | R101: 2014-12-31 | S101: 2015-12-31 | T101: 2016-12-31 | U101: 2017-12-31 | V101: 2018-12-31 | W101: 2019-12-31 | X101: 2020-12-31 | Y101: 2021-12-31 | Z101: 2022-12-31 | AA101: 2023-12-31 | AB101: 2024-12-31 | AC101: 2025-12-31 | AD101: 2026-12-31 | AE101: 2027-12-31 | AF101: 2028-12-31 | AG101: 2029-12-31 | AH101: 2030-12-31 | AI101: 2031-12-31 | AJ101: 2032-12-31 | AK101: 2033-12-31 | AL101: 2034-12-31 | AM101: 2035-12-31 | AN101: 2036-12-31 | AO101: 2037-12-31 | AP101: 2038-12-31 | AQ101: 2039-12-31 | AR101: 2040-12-31 | AS101: 2041-12-31 | AT101: 2042-12-31 | AU101: 2043-12-31 | AV101: 2044-12-31 | AW101: 2045-12-31 | AX101: 2046-12-31
E103: Long-term expected UK RPI inflation | G103: % | I103: 0.03
E104: =E24 -> Base year UK RPI inflation index value (CHAW) | G104: =G24 -> Jan 1987 = 100 | H104: =H24 -> UK RPI index 2013/14 | I104: =I24 -> 251.7333333
E106: =E28 -> 12 month average UK RPI inflation index value (CHAW) | G106: =G28 -> Jan 1987 = 100 | H106: =H28 -> UK RPI index t | K106: 206.575 | L106: 214.825 | M106: 213.6833333 | N106: 223.5583333 | O106: 235.1833333 | P106: 242.725 | Q106: 250.1083333 | R106: 256.0333333 | S106: 258.5416667 | T106: 263.05 | U106: 272.475 | V106: 281.5833333 | W106: 288.9918382 | X106: =W106*(1+$I$103) -> 297.6615933 | Y106: =X106*(1+$I$103) -> 306.5914411 | Z106: 315.7891843 | AA106: 325.2628599 | AB106: 335.0207457 | AC106: 345.071368 | AD106: 355.4235091 | AE106: 366.0862143 | AF106: 377.0688008 | AG106: 388.3808648 | AH106: 400.0322907 | AI106: 412.0332595 | AJ106: 424.3942572 | AK106: 437.126085 | AL106: 450.2398675 | AM106: 463.7470635 | AN106: 477.6594754 | AO106: 491.9892597 | AP106: 506.7489375 | AQ106: 521.9514056 | AR106: 537.6099478 | AS106: 553.7382462 | AT106: 570.3503936 | AU106: 587.4609054 | AV106: 605.0847326 | AW106: 623.2372745 | AX106: 641.9343928
E107: UK RPI inflation uplift from 2013/14 term | G107: scalar | K107: =K106/$I$104 -> 0.8206104343 | L107: =L106/$I$104 -> 0.8533832097 | M107: 0.8488479873 | N107: 0.8880760064 | O107: 0.9342558263 | P107: 0.9642147775 | Q107: 0.9935447564 | R107: 1.017081568 | S107: 1.027045816 | T107: 1.044954979 | U107: 1.082395392 | V107: 1.11857786 | W107: 1.148007832 | X107: 1.182448067 | Y107: 1.217921509 | Z107: 1.254459154 | AA107: 1.292092928 | AB107: 1.330855716 | AC107: 1.370781388 | AD107: 1.411904829 | AE107: 1.454261974 | AF107: 1.497889834 | AG107: 1.542826529 | AH107: 1.589111324 | AI107: 1.636784664 | AJ107: 1.685888204 | AK107: 1.73646485 | AL107: 1.788558796 | AM107: 1.84221556 | AN107: 1.897482026 | AO107: 1.954406487 | AP107: 2.013038682 | AQ107: 2.073429842 | AR107: 2.135632737 | AS107: 2.19970172 | AT107: 2.265692771 | AU107: 2.333663554 | AV107: 2.403673461 | AW107: 2.475783665 | AX107: 2.550057175
C109: Tax - Operational years
E111: Operational Year | K111: Year 1 | L111: Year 2 | M111: Year 3 | N111: Year 4 | O111: Year 5 | P111: Year 6 | Q111: Year 7 | R111: Year 8 | S111: Year 9 | T111: Year 10 | U111: Year 11 | V111: Year 12 | W111: Year 13 | X111: Year 14 | Y111: Year 15 | Z111: Year 16 | AA111: Year 17 | AB111: Year 18 | AC111: Year 19 | AD111: Year 20 | AE111: Year 21 | AF111: Year 22 | AG111: Year 23 | AH111: Year 24 | AI111: Year 25
E113: Corporation tax rate | G113: % | K113: 0.2 | L113: 0.2 | M113: =L113 -> 0.2 | N113: =M113 -> 0.2 | O113: 0.2 | P113: 0.2 | Q113: 0.2 | R113: 0.2 | S113: 0.2 | T113: 0.2 | U113: 0.2 | V113: 0.2 | W113: 0.2 | X113: 0.2 | Y113: 0.2 | Z113: 0.2 | AA113: 0.2 | AB113: 0.2 | AC113: 0.2 | AD113: =AC113 -> 0.2 | AE113: 0.2 | AF113: 0.2 | AG113: 0.2 | AH113: 0.2 | AI113: 0.2
E114: Capital allowance rate (declining balance) | G114: % | K114: 0.08 | L114: 0.08 | M114: =L114 -> 0.08 | N114: 0.08 | O114: 0.08 | P114: 0.08 | Q114: 0.08 | R114: 0.08 | S114: 0.08 | T114: 0.08 | U114: 0.08 | V114: 0.08 | W114: 0.08 | X114: 0.08 | Y114: 0.08 | Z114: 0.08 | AA114: 0.08 | AB114: 0.08 | AC114: 0.08 | AD114: 0.08 | AE114: 0.08 | AF114: 0.08 | AG114: 0.08 | AH114: 0.08 | AI114: 0.08
E116: =E103 -> Long-term expected UK RPI inflation | G116: % | I116: =I103 -> 0.03
E117: Start of price base year | G117: date | I117: 2013-04-01
E118: End of price base year | G118: date | I118: =EOMONTH(I117,11) -> 2014-03-31
E119: UK RPI uplift from 2013/14 term to start of regime | G119: scalar | I119: =(1+$I$116)^((I85-AVERAGE(I117,I118))/365.25) -> 1.170847532
C121: Tax - Annuity
E123: Tax element of Cap and Floor annuity previously calculated and fixed | G123: choice | I123: Yes
B125: End of sheet

Sheet Data Sources
A1: Data Sources | H1: Licence | I1: Reference row in
E2: Parameter | G2: Units | H2: Terminology | I2: Inputs sheet | K2: Source | L2: Link
B4: Indexation, currency and base year price term
E6: =Inputs!E6 -> GB indexed portion of interconnector | G6: =Inputs!G6 -> choice % | I6: =ROW(Inputs!E6) -> 6 | K6: Nemo Link licence - Special conditions | L6: Schedule 1
E7: =Inputs!E9 -> Currency of cost inputs | G7: =Inputs!G9 -> choice | I7: =ROW(Inputs!E9) -> 9 | K7: Post Construction Review decision
E8: =Inputs!E11 -> Base year price term | G8: =Inputs!G11 -> choice | I8: =ROW(Inputs!E11) -> 11 | K8: Nemo Link licence - Special conditions | L8: Schedule 1
B10: Variables set after financial close
C12: Actual values
E14: =Inputs!E20 -> Development costs | G14: =Inputs!G20 -> €m nominal prices | I14: =ROW(Inputs!E20) -> 20 | K14: Post Construction Review decision
E15: =Inputs!E21 -> Capex | G15: =Inputs!G21 -> €m nominal prices | I15: =ROW(Inputs!E21) -> 21 | K15: Post Construction Review decision
E16: =Inputs!E22 -> Spares | G16: =Inputs!G22 -> €m nominal prices | I16: =ROW(Inputs!E22) -> 22 | K16: Post Construction Review decision
E18: =Inputs!E24 -> Base year UK RPI inflation index value (CHAW) | G18: =Inputs!G24 -> Jan 1987 = 100 | H18: =Inputs!H24 -> UK RPI index 2013/14 | I18: =ROW(Inputs!E24) -> 24 | K18: Office for National Statistics | L18: RPI All Items Index: Jan 1987=100
E19: =Inputs!E25 -> Base year Belgium CPI inflation index value | G19: =Inputs!G25 -> 2004 = 100 | H19: =Inputs!H25 -> Belgium CPI index 2013/14 | I19: =ROW(Inputs!E25) -> 25 | K19: Statbel | L19: Consumer Price Index
E20: =Inputs!E26 -> Base year average exchange rate (XUMAERS) | G20: =Inputs!G26 -> GBP / EUR | H20: =Inputs!H26 -> GBP2013/14 / EUR2013/14 | I20: =ROW(Inputs!E26) -> 26 | K20: Bank of England | L20: XUMAERS
E22: =Inputs!E28 -> 12 month average UK RPI inflation index value (CHAW) | G22: =Inputs!G28 -> Jan 1987 = 100 | H22: =Inputs!H28 -> UK RPI index t | I22: =ROW(Inputs!E28) -> 28 | K22: Office for National Statistics | L22: RPI All Items Index: Jan 1987=100
E23: =Inputs!E29 -> 12 month average Belgium CPI inflation index value | G23: =Inputs!G29 -> 2004 = 100 | H23: =Inputs!H29 -> Belgium CPI index t | I23: =ROW(Inputs!E29) -> 29 | K23: Statbel | L23: Consumer Price Index
E24: =Inputs!E30 -> Average exchange rate (XUMAERS) | G24: =Inputs!G30 -> GBP / EUR | H24: =Inputs!H30 -> GBPt / EURt | I24: =ROW(Inputs!E30) -> 30 | K24: Bank of England | L24: XUMAERS
C26: Ex-ante allowances for the operational period
E28: =Inputs!E42 -> Replacement Capex | G28: =Inputs!G42 -> €m 2018 prices | I28: =ROW(Inputs!E42) -> 42 | K28: Post Construction Review decision
E29: =Inputs!E43 -> Decommissioning baseline | G29: =Inputs!G43 -> €m 2018 prices | I29: =ROW(Inputs!E43) -> 43 | K29: Post Construction Review decision
E30: =Inputs!E44 -> Controllable Opex | G30: =Inputs!G44 -> €m 2018 prices | I30: =ROW(Inputs!E44) -> 44 | K30: Post Construction Review decision
E31: =Inputs!E45 -> Non-controllable Opex baseline | G31: =Inputs!G45 -> €m 2018 prices | I31: =ROW(Inputs!E45) -> 45 | K31: Post Construction Review decision
E33: =Inputs!E51 -> 2018 average UK RPI inflation index value (CHAW) | G33: =Inputs!G51 -> Jan 1987 = 100 | I33: =ROW(Inputs!E51) -> 51 | K33: Office for National Statistics | L33: RPI All Items Index: Jan 1987=100
E34: =Inputs!E52 -> 2018 average Belgium CPI inflation index value | G34: =Inputs!G52 -> 2004 = 100 | I34: =ROW(Inputs!E52) -> 52 | K34: Statbel | L34: Consumer Price Index
E35: =Inputs!E53 -> 2018 average exchange rate (XUMAERS) | G35: =Inputs!G53 -> GBP / EUR | I35: =ROW(Inputs!E53) -> 53 | K35: Bank of England | L35: XUMAERS
E37: =Inputs!E55 -> Average exchange rate (XUMAERS) | G37: =Inputs!G55 -> GBP / EUR | H37: =Inputs!H55 -> GBPt / EURt | I37: =ROW(Inputs!E55) -> 55 | K37: Bank of England | L37: XUMAERS
B39: Variables set at financial close
C41: Finance
E43: =Inputs!E68 -> Cap return rate | G43: =Inputs!G68 -> real annual % | I43: =ROW(Inputs!E68) -> 68 | K43: Nemo Link cap and floor regime decision - Financial close update | L43: Nemo Link cap and floor regime decision
E44: =Inputs!E69 -> Floor return rate | G44: =Inputs!G69 -> real annual % | I44: =ROW(Inputs!E69) -> 69 | K44: Nemo Link cap and floor regime decision - Financial close update | L44: Nemo Link cap and floor regime decision
E45: =Inputs!E70 -> Interest during construction (IDC) rate | G45: =Inputs!G70 -> real annual % | I45: =ROW(Inputs!E70) -> 70 | K45: Nemo Link cap and floor regime decision - Financial close update | L45: Nemo Link cap and floor regime decision
E47: =Inputs!E73 -> Pre-operational notional gearing | G47: =Inputs!G73 -> % | I47: =ROW(Inputs!E73) -> 73 | K47: Nemo Link cap and floor regime decision | L47: Nemo Link cap and floor regime decision
E48: =Inputs!E74 -> Operational notional gearing | G48: =Inputs!G74 -> % | I48: =ROW(Inputs!E74) -> 74 | K48: Nemo Link cap and floor regime decision | L48: Nemo Link cap and floor regime decision
E50: =Inputs!E76 -> Equity transaction costs | G50: =Inputs!G76 -> % | I50: =ROW(Inputs!E76) -> 76 | K50: Nemo Link cap and floor regime decision | L50: Nemo Link cap and floor regime decision
E51: =Inputs!E77 -> Debt transaction costs | G51: =Inputs!G77 -> % | I51: =ROW(Inputs!E77) -> 77 | K51: Nemo Link cap and floor regime decision | L51: Nemo Link cap and floor regime decision
C53: Model operation
E55: =Inputs!E85 -> Regime start date | G55: =Inputs!G85 -> date | I55: =ROW(Inputs!I85) -> 85 | K55: Post Construction Review decision | L55: Nemo Link cap and floor regime decision
E56: =Inputs!E86 -> End date for IDC | G56: =Inputs!G86 -> date | I56: =ROW(Inputs!I86) -> 86 | K56: Post Construction Review decision | L56: Nemo Link cap and floor regime decision
E57: =Inputs!E87 -> Start of operations | G57: =Inputs!G87 -> date | I57: =ROW(Inputs!I87) -> 87 | K57: Post Construction Review decision | L57: Nemo Link cap and floor regime decision
E58: =Inputs!E89 -> Number of operational years | G58: =Inputs!G89 -> full years | I58: =ROW(Inputs!I89) -> 89 | K58: Nemo Link licence - Special conditions | L58: Schedule 1
C60: Tax - Financial years
E62: =Inputs!E103 -> Long-term expected UK RPI inflation | G62: =Inputs!G103 -> % | I62: =ROW(Inputs!E103) -> 103 | K62: Nemo Link cap and floor regime decision - Financial close update | L62: Nemo Link cap and floor regime decision
E63: =Inputs!E106 -> 12 month average UK RPI inflation index value (CHAW) | G63: =Inputs!G106 -> Jan 1987 = 100 | H63: =Inputs!H106 -> UK RPI index t | I63: =ROW(Inputs!E106) -> 106 | K63: Office for National Statistics | L63: RPI All Items Index: Jan 1987=100
C65: Tax - Operational years
E67: =Inputs!E113 -> Corporation tax rate | G67: =Inputs!G113 -> % | I67: =ROW(Inputs!E113) -> 113 | K67: Nemo Link cap and floor regime decision - Financial close update | L67: Nemo Link cap and floor regime decision
E68: =Inputs!E114 -> Capital allowance rate (declining balance) | G68: =Inputs!G114 -> % | I68: =ROW(Inputs!E114) -> 114 | K68: Nemo Link cap and floor regime decision - Financial close update | L68: Nemo Link cap and floor regime decision
E69: =Inputs!E117 -> Start of price base year | G69: =Inputs!G117 -> date | I69: =ROW(Inputs!E117) -> 117 | K69: Nemo Link licence - Special conditions | L69: Schedule 1
C71: Tax - Annuity
E73: =Inputs!E123 -> Tax element of Cap and Floor annuity previously calculated and fixed | G73: =Inputs!G123 -> choice | I73: =ROW(Inputs!E123) -> 123 | K73: Nemo Link cap and floor regime decision - Financial close update | L73: Nemo Link cap and floor regime decision
B75: End of sheet

Sheet Pre Op RAV
A1: Pre Op RAV | H1: Licence
E2: Parameter | G2: Units | H2: Terminology | I2: Constant | K2: Annual values
E3: Year commencing | K3: =Inputs!K17 -> 2007-01-01 | L3: =+K4+1 -> 2008-01-01 | M3: =+L4+1 -> 2009-01-01 | N3: =+M4+1 -> 2010-01-01 | O3: 2011-01-01 | P3: 2012-01-01 | Q3: 2013-01-01 | R3: 2014-01-01 | S3: 2015-01-01 | T3: 2016-01-01 | U3: 2017-01-01 | V3: 2018-01-01 | W3: 2019-01-01 | X3: 2020-01-01 | Y3: 2021-01-01 | Z3: 2022-01-01 | AA3: 2023-01-01 | AB3: 2024-01-01 | AC3: 2025-01-01 | AD3: 2026-01-01 | AE3: 2027-01-01 | AF3: 2028-01-01 | AG3: 2029-01-01 | AH3: 2030-01-01 | AI3: 2031-01-01 | AJ3: 2032-01-01 | AK3: 2033-01-01 | AL3: 2034-01-01 | AM3: 2035-01-01 | AN3: 2036-01-01 | AO3: 2037-01-01 | AP3: 2038-01-01 | AQ3: 2039-01-01 | AR3: 2040-01-01 | AS3: 2041-01-01 | AT3: 2042-01-01 | AU3: 2043-01-01 | AV3: 2044-01-01 | AW3: 2045-01-01 | AX3: 2046-01-01
E4: Year ending | K4: =Inputs!K18 -> 2007-12-31 | L4: =DATE(YEAR(K4) + 1, MONTH(K4), DAY(K4)) -> 2008-12-31 | M4: 2009-12-31 | N4: 2010-12-31 | O4: 2011-12-31 | P4: 2012-12-31 | Q4: 2013-12-31 | R4: 2014-12-31 | S4: 2015-12-31 | T4: 2016-12-31 | U4: 2017-12-31 | V4: 2018-12-31 | W4: 2019-12-31 | X4: 2020-12-31 | Y4: 2021-12-31 | Z4: 2022-12-31 | AA4: 2023-12-31 | AB4: 2024-12-31 | AC4: 2025-12-31 | AD4: 2026-12-31 | AE4: 2027-12-31 | AF4: 2028-12-31 | AG4: 2029-12-31 | AH4: 2030-12-31 | AI4: 2031-12-31 | AJ4: 2032-12-31 | AK4: 2033-12-31 | AL4: 2034-12-31 | AM4: 2035-12-31 | AN4: 2036-12-31 | AO4: 2037-12-31 | AP4: 2038-12-31 | AQ4: 2039-12-31 | AR4: 2040-12-31 | AS4: 2041-12-31 | AT4: 2042-12-31 | AU4: 2043-12-31 | AV4: 2044-12-31 | AW4: 2045-12-31 | AX4: 2046-12-31
B6: Flags
E8: IDC flag | G8: flag | K8: =Inputs!K92 -> 1 | L8: =Inputs!L92 -> 1 | M8: =Inputs!M92 -> 1 | N8: =Inputs!N92 -> 1 | O8: =Inputs!O92 -> 1 | P8: =Inputs!P92 -> 1 | Q8: =Inputs!Q92 -> 1 | R8: =Inputs!R92 -> 1 | S8: =Inputs!S92 -> 1 | T8: =Inputs!T92 -> 1 | U8: =Inputs!U92 -> 1 | V8: =Inputs!V92 -> 1 | W8: =Inputs!W92 -> 0.08219178082 | X8: =Inputs!X92 -> 0 | Y8: =Inputs!Y92 -> 0 | Z8: =Inputs!Z92 -> 0 | AA8: =Inputs!AA92 -> 0 | AB8: =Inputs!AB92 -> 0 | AC8: =Inputs!AC92 -> 0 | AD8: =Inputs!AD92 -> 0 | AE8: =Inputs!AE92 -> 0 | AF8: =Inputs!AF92 -> 0 | AG8: =Inputs!AG92 -> 0 | AH8: =Inputs!AH92 -> 0 | AI8: =Inputs!AI92 -> 0 | AJ8: =Inputs!AJ92 -> 0 | AK8: =Inputs!AK92 -> 0 | AL8: =Inputs!AL92 -> 0 | AM8: =Inputs!AM92 -> 0 | AN8: =Inputs!AN92 -> 0 | AO8: =Inputs!AO92 -> 0 | AP8: =Inputs!AP92 -> 0 | AQ8: =Inputs!AQ92 -> 0 | AR8: =Inputs!AR92 -> 0 | AS8: =Inputs!AS92 -> 0 | AT8: =Inputs!AT92 -> 0 | AU8: =Inputs!AU92 -> 0 | AV8: =Inputs!AV92 -> 0 | AW8: =Inputs!AW92 -> 0 | AX8: =Inputs!AX92 -> 0
E9: Post-IDC and pre-operations flag | G9: flag | K9: =Inputs!K93 -> 0 | L9: =Inputs!L93 -> 0 | M9: =Inputs!M93 -> 0 | N9: =Inputs!N93 -> 0 | O9: =Inputs!O93 -> 0 | P9: =Inputs!P93 -> 0 | Q9: =Inputs!Q93 -> 0 | R9: =Inputs!R93 -> 0 | S9: =Inputs!S93 -> 0 | T9: =Inputs!T93 -> 0 | U9: =Inputs!U93 -> 0 | V9: =Inputs!V93 -> 0 | W9: =Inputs!W93 -> 0 | X9: =Inputs!X93 -> 0 | Y9: =Inputs!Y93 -> 0 | Z9: =Inputs!Z93 -> 0 | AA9: =Inputs!AA93 -> 0 | AB9: =Inputs!AB93 -> 0 | AC9: =Inputs!AC93 -> 0 | AD9: =Inputs!AD93 -> 0 | AE9: =Inputs!AE93 -> 0 | AF9: =Inputs!AF93 -> 0 | AG9: =Inputs!AG93 -> 0 | AH9: =Inputs!AH93 -> 0 | AI9: =Inputs!AI93 -> 0 | AJ9: =Inputs!AJ93 -> 0 | AK9: =Inputs!AK93 -> 0 | AL9: =Inputs!AL93 -> 0 | AM9: =Inputs!AM93 -> 0 | AN9: =Inputs!AN93 -> 0 | AO9: =Inputs!AO93 -> 0 | AP9: =Inputs!AP93 -> 0 | AQ9: =Inputs!AQ93 -> 0 | AR9: =Inputs!AR93 -> 0 | AS9: =Inputs!AS93 -> 0 | AT9: =Inputs!AT93 -> 0 | AU9: =Inputs!AU93 -> 0 | AV9: =Inputs!AV93 -> 0 | AW9: =Inputs!AW93 -> 0 | AX9: =Inputs!AX93 -> 0
E10: Operations flag | G10: flag | K10: =Inputs!K94 -> 0 | L10: =Inputs!L94 -> 0 | M10: =Inputs!M94 -> 0 | N10: =Inputs!N94 -> 0 | O10: =Inputs!O94 -> 0 | P10: =Inputs!P94 -> 0 | Q10: =Inputs!Q94 -> 0 | R10: =Inputs!R94 -> 0 | S10: =Inputs!S94 -> 0 | T10: =Inputs!T94 -> 0 | U10: =Inputs!U94 -> 0 | V10: =Inputs!V94 -> 0 | W10: =Inputs!W94 -> 0.9178082192 | X10: =Inputs!X94 -> 1 | Y10: =Inputs!Y94 -> 1 | Z10: =Inputs!Z94 -> 1 | AA10: =Inputs!AA94 -> 1 | AB10: =Inputs!AB94 -> 1 | AC10: =Inputs!AC94 -> 1 | AD10: =Inputs!AD94 -> 1 | AE10: =Inputs!AE94 -> 1 | AF10: =Inputs!AF94 -> 1 | AG10: =Inputs!AG94 -> 1 | AH10: =Inputs!AH94 -> 1 | AI10: =Inputs!AI94 -> 1 | AJ10: =Inputs!AJ94 -> 1 | AK10: =Inputs!AK94 -> 1 | AL10: =Inputs!AL94 -> 1 | AM10: =Inputs!AM94 -> 1 | AN10: =Inputs!AN94 -> 1 | AO10: =Inputs!AO94 -> 1 | AP10: =Inputs!AP94 -> 1 | AQ10: =Inputs!AQ94 -> 1 | AR10: =Inputs!AR94 -> 1 | AS10: =Inputs!AS94 -> 1 | AT10: =Inputs!AT94 -> 1 | AU10: =Inputs!AU94 -> 1 | AV10: =Inputs!AV94 -> 0.08196721311 | AW10: =Inputs!AW94 -> 0 | AX10: =Inputs!AX94 -> 0
E11: Transfer construction to operations flag | G11: flag | K11: =Inputs!K95 -> 0 | L11: =Inputs!L95 -> 0 | M11: =Inputs!M95 -> 0 | N11: =Inputs!N95 -> 0 | O11: =Inputs!O95 -> 0 | P11: =Inputs!P95 -> 0 | Q11: =Inputs!Q95 -> 0 | R11: =Inputs!R95 -> 0 | S11: =Inputs!S95 -> 0 | T11: =Inputs!T95 -> 0 | U11: =Inputs!U95 -> 0 | V11: =Inputs!V95 -> 0 | W11: =Inputs!W95 -> 1 | X11: =Inputs!X95 -> 0 | Y11: =Inputs!Y95 -> 0 | Z11: =Inputs!Z95 -> 0 | AA11: =Inputs!AA95 -> 0 | AB11: =Inputs!AB95 -> 0 | AC11: =Inputs!AC95 -> 0 | AD11: =Inputs!AD95 -> 0 | AE11: =Inputs!AE95 -> 0 | AF11: =Inputs!AF95 -> 0 | AG11: =Inputs!AG95 -> 0 | AH11: =Inputs!AH95 -> 0 | AI11: =Inputs!AI95 -> 0 | AJ11: =Inputs!AJ95 -> 0 | AK11: =Inputs!AK95 -> 0 | AL11: =Inputs!AL95 -> 0 | AM11: =Inputs!AM95 -> 0 | AN11: =Inputs!AN95 -> 0 | AO11: =Inputs!AO95 -> 0 | AP11: =Inputs!AP95 -> 0 | AQ11: =Inputs!AQ95 -> 0 | AR11: =Inputs!AR95 -> 0 | AS11: =Inputs!AS95 -> 0 | AT11: =Inputs!AT95 -> 0 | AU11: =Inputs!AU95 -> 0 | AV11: =Inputs!AV95 -> 0 | AW11: =Inputs!AW95 -> 0 | AX11: =Inputs!AX95 -> 0
B13: RAV
C15: Pre-operational
E17: Opening pre-operational RAV (before transfers) | G17: =Inputs!$I$11 -> £m 13/14 prices | L17: =K24 -> 0 | M17: =L24 -> 0.09268375361 | N17: 0.3104636955 | O17: 4.011554624 | P17: 5.790388023 | Q17: 7.832514888 | R17: 11.35744844 | S17: 15.65992439 | T17: 92.93925627 | U17: 205.6997118 | V17: =U24 -> 417.7240919 | W17: 522.8222939 | X17: 0 | Y17: 0 | Z17: 0 | AA17: 0 | AB17: 0 | AC17: 0 | AD17: 0 | AE17: 0 | AF17: 0 | AG17: 0 | AH17: 0 | AI17: 0 | AJ17: 0 | AK17: 0 | AL17: 0 | AM17: 0 | AN17: 0 | AO17: 0 | AP17: 0 | AQ17: 0 | AR17: 0 | AS17: 0 | AT17: 0 | AU17: 0 | AV17: 0 | AW17: 0 | AX17: 0
E18: =Inputs!E34 -> Development costs | G18: =Inputs!$I$11 -> £m 13/14 prices | K18: =Inputs!K34 -> 0 | L18: =Inputs!L34 -> 0.09023870053 | M18: =Inputs!M34 -> 0.2070084806 | N18: =Inputs!N34 -> 3.586617295 | O18: =Inputs!O34 -> 1.514357689 | P18: =Inputs!P34 -> 1.674238113 | Q18: =Inputs!Q34 -> 3.007181706 | R18: =Inputs!R34 -> 3.5730528 | S18: =Inputs!S34 -> 1.557644644 | T18: =Inputs!T34 -> 0 | U18: =Inputs!U34 -> 0 | V18: =Inputs!V34 -> 0 | W18: =Inputs!W34 -> 0 | X18: =Inputs!X34 -> 0 | Y18: =Inputs!Y34 -> 0 | Z18: =Inputs!Z34 -> 0 | AA18: =Inputs!AA34 -> 0 | AB18: =Inputs!AB34 -> 0 | AC18: =Inputs!AC34 -> 0 | AD18: =Inputs!AD34 -> 0 | AE18: =Inputs!AE34 -> 0 | AF18: =Inputs!AF34 -> 0 | AG18: =Inputs!AG34 -> 0 | AH18: =Inputs!AH34 -> 0 | AI18: =Inputs!AI34 -> 0 | AJ18: =Inputs!AJ34 -> 0 | AK18: =Inputs!AK34 -> 0 | AL18: =Inputs!AL34 -> 0 | AM18: =Inputs!AM34 -> 0 | AN18: =Inputs!AN34 -> 0 | AO18: =Inputs!AO34 -> 0 | AP18: =Inputs!AP34 -> 0 | AQ18: =Inputs!AQ34 -> 0 | AR18: =Inputs!AR34 -> 0 | AS18: =Inputs!AS34 -> 0 | AT18: =Inputs!AT34 -> 0 | AU18: =Inputs!AU34 -> 0 | AV18: =Inputs!AV34 -> 0 | AW18: =Inputs!AW34 -> 0 | AX18: =Inputs!AX34 -> 0
E19: =Inputs!E35 -> Capex | G19: =Inputs!$I$11 -> £m 13/14 prices | K19: =Inputs!K35 -> 0 | L19: =Inputs!L35 -> 0 | M19: =Inputs!M35 -> 0 | N19: =Inputs!N35 -> 0 | O19: =Inputs!O35 -> 0 | P19: =Inputs!P35 -> 0 | Q19: =Inputs!Q35 -> 0 | R19: =Inputs!R35 -> 0 | S19: =Inputs!S35 -> 72.83376494 | T19: =Inputs!T35 -> 104.7456153 | U19: =Inputs!U35 -> 195.2758307 | V19: =Inputs!V35 -> 79.67221996 | W19: =Inputs!W35 -> 33.4118448 | X19: =Inputs!X35 -> 0 | Y19: =Inputs!Y35 -> 0 | Z19: =Inputs!Z35 -> 0 | AA19: =Inputs!AA35 -> 0 | AB19: =Inputs!AB35 -> 0 | AC19: =Inputs!AC35 -> 0 | AD19: =Inputs!AD35 -> 0 | AE19: =Inputs!AE35 -> 0 | AF19: =Inputs!AF35 -> 0 | AG19: =Inputs!AG35 -> 0 | AH19: =Inputs!AH35 -> 0 | AI19: =Inputs!AI35 -> 0 | AJ19: =Inputs!AJ35 -> 0 | AK19: =Inputs!AK35 -> 0 | AL19: =Inputs!AL35 -> 0 | AM19: =Inputs!AM35 -> 0 | AN19: =Inputs!AN35 -> 0 | AO19: =Inputs!AO35 -> 0 | AP19: =Inputs!AP35 -> 0 | AQ19: =Inputs!AQ35 -> 0 | AR19: =Inputs!AR35 -> 0 | AS19: =Inputs!AS35 -> 0 | AT19: =Inputs!AT35 -> 0 | AU19: =Inputs!AU35 -> 0 | AV19: =Inputs!AV35 -> 0 | AW19: =Inputs!AW35 -> 0 | AX19: =Inputs!AX35 -> 0
E20: =Inputs!E36 -> Spares | G20: =Inputs!$I$11 -> £m 13/14 prices | K20: =Inputs!K36 -> 0 | L20: =Inputs!L36 -> 0 | M20: =Inputs!M36 -> 0 | N20: =Inputs!N36 -> 0 | O20: =Inputs!O36 -> 0 | P20: =Inputs!P36 -> 0 | Q20: =Inputs!Q36 -> 0 | R20: =Inputs!R36 -> 0 | S20: =Inputs!S36 -> 0 | T20: =Inputs!T36 -> 0 | U20: =Inputs!U36 -> 0 | V20: =Inputs!V36 -> 0 | W20: =Inputs!W36 -> 0 | X20: =Inputs!X36 -> 0 | Y20: =Inputs!Y36 -> 0 | Z20: =Inputs!Z36 -> 0 | AA20: =Inputs!AA36 -> 0 | AB20: =Inputs!AB36 -> 0 | AC20: =Inputs!AC36 -> 0 | AD20: =Inputs!AD36 -> 0 | AE20: =Inputs!AE36 -> 0 | AF20: =Inputs!AF36 -> 0 | AG20: =Inputs!AG36 -> 0 | AH20: =Inputs!AH36 -> 0 | AI20: =Inputs!AI36 -> 0 | AJ20: =Inputs!AJ36 -> 0 | AK20: =Inputs!AK36 -> 0 | AL20: =Inputs!AL36 -> 0 | AM20: =Inputs!AM36 -> 0 | AN20: =Inputs!AN36 -> 0 | AO20: =Inputs!AO36 -> 0 | AP20: =Inputs!AP36 -> 0 | AQ20: =Inputs!AQ36 -> 0 | AR20: =Inputs!AR36 -> 0 | AS20: =Inputs!AS36 -> 0 | AT20: =Inputs!AT36 -> 0 | AU20: =Inputs!AU36 -> 0 | AV20: =Inputs!AV36 -> 0 | AW20: =Inputs!AW36 -> 0 | AX20: =Inputs!AX36 -> 0
E21: =Finance!E24 -> Capitalised interest during construction | G21: =Inputs!$I$11 -> £m 13/14 prices | K21: =Finance!K24 -> 0 | L21: =Finance!L24 -> 0.002445053081 | M21: =Finance!M24 -> 0.01077146127 | N21: =Finance!N24 -> 0.114473634 | O21: =Finance!O24 -> 0.2644757097 | P21: =Finance!P24 -> 0.367888753 | Q21: =Finance!Q24 -> 0.5177518503 | R21: =Finance!R24 -> 0.7294231493 | S21: =Finance!S24 -> 2.887922289 | T21: =Finance!T24 -> 8.014840216 | U21: =Finance!U24 -> 16.74854938 | V21: =Finance!V24 -> 25.42598205 | W21: =Finance!W24 -> 2.40700827 | X21: =Finance!X24 -> 0 | Y21: =Finance!Y24 -> 0 | Z21: =Finance!Z24 -> 0 | AA21: =Finance!AA24 -> 0 | AB21: =Finance!AB24 -> 0 | AC21: =Finance!AC24 -> 0 | AD21: =Finance!AD24 -> 0 | AE21: =Finance!AE24 -> 0 | AF21: =Finance!AF24 -> 0 | AG21: =Finance!AG24 -> 0 | AH21: =Finance!AH24 -> 0 | AI21: =Finance!AI24 -> 0 | AJ21: =Finance!AJ24 -> 0 | AK21: =Finance!AK24 -> 0 | AL21: =Finance!AL24 -> 0 | AM21: =Finance!AM24 -> 0 | AN21: =Finance!AN24 -> 0 | AO21: =Finance!AO24 -> 0 | AP21: =Finance!AP24 -> 0 | AQ21: =Finance!AQ24 -> 0 | AR21: =Finance!AR24 -> 0 | AS21: =Finance!AS24 -> 0 | AT21: =Finance!AT24 -> 0 | AU21: =Finance!AU24 -> 0 | AV21: =Finance!AV24 -> 0 | AW21: =Finance!AW24 -> 0 | AX21: =Finance!AX24 -> 0
E22: Closing pre-operational RAV (after IDC) | G22: =Inputs!$I$11 -> £m 13/14 prices | K22: =SUM(K17:K21) -> 0 | L22: 0.09268375361 | M22: 0.3104636955 | N22: 4.011554624 | O22: 5.790388023 | P22: 7.832514888 | Q22: 11.35744844 | R22: 15.65992439 | S22: 92.93925627 | T22: 205.6997118 | U22: 417.7240919 | V22: =SUM(V17:V21) -> 522.8222939 | W22: 558.6411469 | X22: 0 | Y22: 0 | Z22: 0 | AA22: 0 | AB22: 0 | AC22: 0 | AD22: 0 | AE22: 0 | AF22: 0 | AG22: 0 | AH22: 0 | AI22: 0 | AJ22: 0 | AK22: 0 | AL22: 0 | AM22: 0 | AN22: 0 | AO22: 0 | AP22: 0 | AQ22: 0 | AR22: 0 | AS22: 0 | AT22: 0 | AU22: 0 | AV22: 0 | AW22: 0 | AX22: 0
E23: Pre-operational RAV transfers | G23: =Inputs!$I$11 -> £m 13/14 prices | K23: =-K22*K11 -> 0 | L23: 0 | M23: 0 | N23: 0 | O23: 0 | P23: 0 | Q23: 0 | R23: 0 | S23: 0 | T23: 0 | U23: 0 | V23: =-V22*V11 -> 0 | W23: -558.6411469 | X23: 0 | Y23: 0 | Z23: 0 | AA23: 0 | AB23: 0 | AC23: 0 | AD23: 0 | AE23: 0 | AF23: 0 | AG23: 0 | AH23: 0 | AI23: 0 | AJ23: 0 | AK23: 0 | AL23: 0 | AM23: 0 | AN23: 0 | AO23: 0 | AP23: 0 | AQ23: 0 | AR23: 0 | AS23: 0 | AT23: 0 | AU23: 0 | AV23: 0 | AW23: 0 | AX23: 0
E24: Closing pre-operational RAV (after IDC) - adjusted for RAV transfers | G24: =Inputs!$I$11 -> £m 13/14 prices | K24: =SUM(K22:K23) -> 0 | L24: 0.09268375361 | M24: 0.3104636955 | N24: 4.011554624 | O24: 5.790388023 | P24: 7.832514888 | Q24: 11.35744844 | R24: 15.65992439 | S24: 92.93925627 | T24: 205.6997118 | U24: =SUM(U22:U23) -> 417.7240919 | V24: =SUM(V22:V23) -> 522.8222939 | W24: 0 | X24: 0 | Y24: 0 | Z24: 0 | AA24: 0 | AB24: 0 | AC24: 0 | AD24: 0 | AE24: 0 | AF24: 0 | AG24: 0 | AH24: 0 | AI24: 0 | AJ24: 0 | AK24: 0 | AL24: 0 | AM24: 0 | AN24: 0 | AO24: 0 | AP24: 0 | AQ24: 0 | AR24: 0 | AS24: 0 | AT24: 0 | AU24: 0 | AV24: 0 | AW24: 0 | AX24: 0
B26: End of sheet

Sheet Finance
A1: Finance | H1: Licence
E2: Parameter | G2: Units | H2: Terminology | I2: Constant | K2: Annual values
E3: Year commencing | K3: =Inputs!K17 -> 2007-01-01 | L3: =+K4+1 -> 2008-01-01 | M3: 2009-01-01 | N3: 2010-01-01 | O3: 2011-01-01 | P3: 2012-01-01 | Q3: 2013-01-01 | R3: 2014-01-01 | S3: 2015-01-01 | T3: 2016-01-01 | U3: 2017-01-01 | V3: 2018-01-01 | W3: 2019-01-01 | X3: 2020-01-01 | Y3: 2021-01-01 | Z3: 2022-01-01 | AA3: 2023-01-01 | AB3: 2024-01-01 | AC3: 2025-01-01 | AD3: 2026-01-01 | AE3: 2027-01-01 | AF3: 2028-01-01 | AG3: 2029-01-01 | AH3: 2030-01-01 | AI3: 2031-01-01 | AJ3: 2032-01-01 | AK3: 2033-01-01 | AL3: 2034-01-01 | AM3: 2035-01-01 | AN3: 2036-01-01 | AO3: 2037-01-01 | AP3: 2038-01-01 | AQ3: 2039-01-01 | AR3: 2040-01-01 | AS3: 2041-01-01 | AT3: 2042-01-01 | AU3: =+AT4+1 -> 2043-01-01 | AV3: =+AU4+1 -> 2044-01-01 | AW3: =+AV4+1 -> 2045-01-01 | AX3: =+AW4+1 -> 2046-01-01
E4: Year ending | K4: =Inputs!K18 -> 2007-12-31 | L4: =DATE(YEAR(K4) + 1, MONTH(K4), DAY(K4)) -> 2008-12-31 | M4: 2009-12-31 | N4: 2010-12-31 | O4: 2011-12-31 | P4: 2012-12-31 | Q4: 2013-12-31 | R4: 2014-12-31 | S4: 2015-12-31 | T4: 2016-12-31 | U4: 2017-12-31 | V4: 2018-12-31 | W4: 2019-12-31 | X4: 2020-12-31 | Y4: 2021-12-31 | Z4: 2022-12-31 | AA4: 2023-12-31 | AB4: 2024-12-31 | AC4: 2025-12-31 | AD4: 2026-12-31 | AE4: 2027-12-31 | AF4: 2028-12-31 | AG4: 2029-12-31 | AH4: 2030-12-31 | AI4: 2031-12-31 | AJ4: 2032-12-31 | AK4: 2033-12-31 | AL4: 2034-12-31 | AM4: 2035-12-31 | AN4: 2036-12-31 | AO4: 2037-12-31 | AP4: 2038-12-31 | AQ4: 2039-12-31 | AR4: 2040-12-31 | AS4: 2041-12-31 | AT4: 2042-12-31 | AU4: =DATE(YEAR(AT4) + 1, MONTH(AT4), DAY(AT4)) -> 2043-12-31 | AV4: =DATE(YEAR(AU4) + 1, MONTH(AU4), DAY(AU4)) -> 2044-12-31 | AW4: =DATE(YEAR(AV4) + 1, MONTH(AV4), DAY(AV4)) -> 2045-12-31 | AX4: =DATE(YEAR(AW4) + 1, MONTH(AW4), DAY(AW4)) -> 2046-12-31
B6: Flags
E8: IDC flag | G8: flag | K8: =Inputs!K92 -> 1 | L8: =Inputs!L92 -> 1 | M8: =Inputs!M92 -> 1 | N8: =Inputs!N92 -> 1 | O8: =Inputs!O92 -> 1 | P8: =Inputs!P92 -> 1 | Q8: =Inputs!Q92 -> 1 | R8: =Inputs!R92 -> 1 | S8: =Inputs!S92 -> 1 | T8: =Inputs!T92 -> 1 | U8: =Inputs!U92 -> 1 | V8: =Inputs!V92 -> 1 | W8: =Inputs!W92 -> 0.08219178082 | X8: =Inputs!X92 -> 0 | Y8: =Inputs!Y92 -> 0 | Z8: =Inputs!Z92 -> 0 | AA8: =Inputs!AA92 -> 0 | AB8: =Inputs!AB92 -> 0 | AC8: =Inputs!AC92 -> 0 | AD8: =Inputs!AD92 -> 0 | AE8: =Inputs!AE92 -> 0 | AF8: =Inputs!AF92 -> 0 | AG8: =Inputs!AG92 -> 0 | AH8: =Inputs!AH92 -> 0 | AI8: =Inputs!AI92 -> 0 | AJ8: =Inputs!AJ92 -> 0 | AK8: =Inputs!AK92 -> 0 | AL8: =Inputs!AL92 -> 0 | AM8: =Inputs!AM92 -> 0 | AN8: =Inputs!AN92 -> 0 | AO8: =Inputs!AO92 -> 0 | AP8: =Inputs!AP92 -> 0 | AQ8: =Inputs!AQ92 -> 0 | AR8: =Inputs!AR92 -> 0 | AS8: =Inputs!AS92 -> 0 | AT8: =Inputs!AT92 -> 0 | AU8: =Inputs!AU92 -> 0 | AV8: =Inputs!AV92 -> 0 | AW8: =Inputs!AW92 -> 0 | AX8: =Inputs!AX92 -> 0
E9: Post-IDC and pre-operations flag | G9: flag | K9: =Inputs!K93 -> 0 | L9: =Inputs!L93 -> 0 | M9: =Inputs!M93 -> 0 | N9: =Inputs!N93 -> 0 | O9: =Inputs!O93 -> 0 | P9: =Inputs!P93 -> 0 | Q9: =Inputs!Q93 -> 0 | R9: =Inputs!R93 -> 0 | S9: =Inputs!S93 -> 0 | T9: =Inputs!T93 -> 0 | U9: =Inputs!U93 -> 0 | V9: =Inputs!V93 -> 0 | W9: =Inputs!W93 -> 0 | X9: =Inputs!X93 -> 0 | Y9: =Inputs!Y93 -> 0 | Z9: =Inputs!Z93 -> 0 | AA9: =Inputs!AA93 -> 0 | AB9: =Inputs!AB93 -> 0 | AC9: =Inputs!AC93 -> 0 | AD9: =Inputs!AD93 -> 0 | AE9: =Inputs!AE93 -> 0 | AF9: =Inputs!AF93 -> 0 | AG9: =Inputs!AG93 -> 0 | AH9: =Inputs!AH93 -> 0 | AI9: =Inputs!AI93 -> 0 | AJ9: =Inputs!AJ93 -> 0 | AK9: =Inputs!AK93 -> 0 | AL9: =Inputs!AL93 -> 0 | AM9: =Inputs!AM93 -> 0 | AN9: =Inputs!AN93 -> 0 | AO9: =Inputs!AO93 -> 0 | AP9: =Inputs!AP93 -> 0 | AQ9: =Inputs!AQ93 -> 0 | AR9: =Inputs!AR93 -> 0 | AS9: =Inputs!AS93 -> 0 | AT9: =Inputs!AT93 -> 0 | AU9: =Inputs!AU93 -> 0 | AV9: =Inputs!AV93 -> 0 | AW9: =Inputs!AW93 -> 0 | AX9: =Inputs!AX93 -> 0
E10: Operations flag | G10: flag | K10: =Inputs!K94 -> 0 | L10: =Inputs!L94 -> 0 | M10: =Inputs!M94 -> 0 | N10: =Inputs!N94 -> 0 | O10: =Inputs!O94 -> 0 | P10: =Inputs!P94 -> 0 | Q10: =Inputs!Q94 -> 0 | R10: =Inputs!R94 -> 0 | S10: =Inputs!S94 -> 0 | T10: =Inputs!T94 -> 0 | U10: =Inputs!U94 -> 0 | V10: =Inputs!V94 -> 0 | W10: =Inputs!W94 -> 0.9178082192 | X10: =Inputs!X94 -> 1 | Y10: =Inputs!Y94 -> 1 | Z10: =Inputs!Z94 -> 1 | AA10: =Inputs!AA94 -> 1 | AB10: =Inputs!AB94 -> 1 | AC10: =Inputs!AC94 -> 1 | AD10: =Inputs!AD94 -> 1 | AE10: =Inputs!AE94 -> 1 | AF10: =Inputs!AF94 -> 1 | AG10: =Inputs!AG94 -> 1 | AH10: =Inputs!AH94 -> 1 | AI10: =Inputs!AI94 -> 1 | AJ10: =Inputs!AJ94 -> 1 | AK10: =Inputs!AK94 -> 1 | AL10: =Inputs!AL94 -> 1 | AM10: =Inputs!AM94 -> 1 | AN10: =Inputs!AN94 -> 1 | AO10: =Inputs!AO94 -> 1 | AP10: =Inputs!AP94 -> 1 | AQ10: =Inputs!AQ94 -> 1 | AR10: =Inputs!AR94 -> 1 | AS10: =Inputs!AS94 -> 1 | AT10: =Inputs!AT94 -> 1 | AU10: =Inputs!AU94 -> 1 | AV10: =Inputs!AV94 -> 0.08196721311 | AW10: =Inputs!AW94 -> 0 | AX10: =Inputs!AX94 -> 0
E11: Transfer construction to operations flag | G11: flag | K11: =Inputs!K95 -> 0 | L11: =Inputs!L95 -> 0 | M11: =Inputs!M95 -> 0 | N11: =Inputs!N95 -> 0 | O11: =Inputs!O95 -> 0 | P11: =Inputs!P95 -> 0 | Q11: =Inputs!Q95 -> 0 | R11: =Inputs!R95 -> 0 | S11: =Inputs!S95 -> 0 | T11: =Inputs!T95 -> 0 | U11: =Inputs!U95 -> 0 | V11: =Inputs!V95 -> 0 | W11: =Inputs!W95 -> 1 | X11: =Inputs!X95 -> 0 | Y11: =Inputs!Y95 -> 0 | Z11: =Inputs!Z95 -> 0 | AA11: =Inputs!AA95 -> 0 | AB11: =Inputs!AB95 -> 0 | AC11: =Inputs!AC95 -> 0 | AD11: =Inputs!AD95 -> 0 | AE11: =Inputs!AE95 -> 0 | AF11: =Inputs!AF95 -> 0 | AG11: =Inputs!AG95 -> 0 | AH11: =Inputs!AH95 -> 0 | AI11: =Inputs!AI95 -> 0 | AJ11: =Inputs!AJ95 -> 0 | AK11: =Inputs!AK95 -> 0 | AL11: =Inputs!AL95 -> 0 | AM11: =Inputs!AM95 -> 0 | AN11: =Inputs!AN95 -> 0 | AO11: =Inputs!AO95 -> 0 | AP11: =Inputs!AP95 -> 0 | AQ11: =Inputs!AQ95 -> 0 | AR11: =Inputs!AR95 -> 0 | AS11: =Inputs!AS95 -> 0 | AT11: =Inputs!AT95 -> 0 | AU11: =Inputs!AU95 -> 0 | AV11: =Inputs!AV95 -> 0 | AW11: =Inputs!AW95 -> 0 | AX11: =Inputs!AX95 -> 0
E12: Initial transaction costs flag | G12: flag | K12: =Inputs!K96 -> 0 | L12: =Inputs!L96 -> 0 | M12: =Inputs!M96 -> 0 | N12: =Inputs!N96 -> 0 | O12: =Inputs!O96 -> 0 | P12: =Inputs!P96 -> 0 | Q12: =Inputs!Q96 -> 0 | R12: =Inputs!R96 -> 1 | S12: =Inputs!S96 -> 0 | T12: =Inputs!T96 -> 0 | U12: =Inputs!U96 -> 0 | V12: =Inputs!V96 -> 0 | W12: =Inputs!W96 -> 0 | X12: =Inputs!X96 -> 0 | Y12: =Inputs!Y96 -> 0 | Z12: =Inputs!Z96 -> 0 | AA12: =Inputs!AA96 -> 0 | AB12: =Inputs!AB96 -> 0 | AC12: =Inputs!AC96 -> 0 | AD12: =Inputs!AD96 -> 0 | AE12: =Inputs!AE96 -> 0 | AF12: =Inputs!AF96 -> 0 | AG12: =Inputs!AG96 -> 0 | AH12: =Inputs!AH96 -> 0 | AI12: =Inputs!AI96 -> 0 | AJ12: =Inputs!AJ96 -> 0 | AK12: =Inputs!AK96 -> 0 | AL12: =Inputs!AL96 -> 0 | AM12: =Inputs!AM96 -> 0 | AN12: =Inputs!AN96 -> 0 | AO12: =Inputs!AO96 -> 0 | AP12: =Inputs!AP96 -> 0 | AQ12: =Inputs!AQ96 -> 0 | AR12: =Inputs!AR96 -> 0 | AS12: =Inputs!AS96 -> 0 | AT12: =Inputs!AT96 -> 0 | AU12: =Inputs!AU96 -> 0 | AV12: =Inputs!AV96 -> 0 | AW12: =Inputs!AW96 -> 0 | AX12: =Inputs!AX96 -> 0
B14: Pre-operational interest during construction
C16: Pre-operational interest during construction
E18: Interest during construction rate | G18: =Inputs!G70 -> real annual % | I18: =Inputs!I70 -> 0.0557
E20: Opening pre-operational RAV (before transfers) | G20: =Inputs!$I$11 -> £m 13/14 prices | K20: ='Pre Op RAV'!K17 -> 0 | L20: ='Pre Op RAV'!L17 -> 0 | M20: ='Pre Op RAV'!M17 -> 0.09268375361 | N20: ='Pre Op RAV'!N17 -> 0.3104636955 | O20: ='Pre Op RAV'!O17 -> 4.011554624 | P20: ='Pre Op RAV'!P17 -> 5.790388023 | Q20: ='Pre Op RAV'!Q17 -> 7.832514888 | R20: ='Pre Op RAV'!R17 -> 11.35744844 | S20: ='Pre Op RAV'!S17 -> 15.65992439 | T20: ='Pre Op RAV'!T17 -> 92.93925627 | U20: ='Pre Op RAV'!U17 -> 205.6997118 | V20: ='Pre Op RAV'!V17 -> 417.7240919 | W20: ='Pre Op RAV'!W17 -> 522.8222939 | X20: ='Pre Op RAV'!X17 -> 0 | Y20: ='Pre Op RAV'!Y17 -> 0 | Z20: ='Pre Op RAV'!Z17 -> 0 | AA20: ='Pre Op RAV'!AA17 -> 0 | AB20: ='Pre Op RAV'!AB17 -> 0 | AC20: ='Pre Op RAV'!AC17 -> 0 | AD20: ='Pre Op RAV'!AD17 -> 0 | AE20: ='Pre Op RAV'!AE17 -> 0 | AF20: ='Pre Op RAV'!AF17 -> 0 | AG20: ='Pre Op RAV'!AG17 -> 0 | AH20: ='Pre Op RAV'!AH17 -> 0 | AI20: ='Pre Op RAV'!AI17 -> 0 | AJ20: ='Pre Op RAV'!AJ17 -> 0 | AK20: ='Pre Op RAV'!AK17 -> 0 | AL20: ='Pre Op RAV'!AL17 -> 0 | AM20: ='Pre Op RAV'!AM17 -> 0 | AN20: ='Pre Op RAV'!AN17 -> 0 | AO20: ='Pre Op RAV'!AO17 -> 0 | AP20: ='Pre Op RAV'!AP17 -> 0 | AQ20: ='Pre Op RAV'!AQ17 -> 0 | AR20: ='Pre Op RAV'!AR17 -> 0 | AS20: ='Pre Op RAV'!AS17 -> 0 | AT20: ='Pre Op RAV'!AT17 -> 0 | AU20: ='Pre Op RAV'!AU17 -> 0 | AV20: ='Pre Op RAV'!AV17 -> 0 | AW20: ='Pre Op RAV'!AW17 -> 0 | AX20: ='Pre Op RAV'!AX17 -> 0
E21: Development costs | G21: =Inputs!$I$11 -> £m 13/14 prices | K21: =Inputs!K34 -> 0 | L21: =Inputs!L34 -> 0.09023870053 | M21: =Inputs!M34 -> 0.2070084806 | N21: =Inputs!N34 -> 3.586617295 | O21: =Inputs!O34 -> 1.514357689 | P21: =Inputs!P34 -> 1.674238113 | Q21: =Inputs!Q34 -> 3.007181706 | R21: =Inputs!R34 -> 3.5730528 | S21: =Inputs!S34 -> 1.557644644 | T21: =Inputs!T34 -> 0 | U21: =Inputs!U34 -> 0 | V21: =Inputs!V34 -> 0 | W21: =Inputs!W34 -> 0 | X21: =Inputs!X34 -> 0 | Y21: =Inputs!Y34 -> 0 | Z21: =Inputs!Z34 -> 0 | AA21: =Inputs!AA34 -> 0 | AB21: =Inputs!AB34 -> 0 | AC21: =Inputs!AC34 -> 0 | AD21: =Inputs!AD34 -> 0 | AE21: =Inputs!AE34 -> 0 | AF21: =Inputs!AF34 -> 0 | AG21: =Inputs!AG34 -> 0 | AH21: =Inputs!AH34 -> 0 | AI21: =Inputs!AI34 -> 0 | AJ21: =Inputs!AJ34 -> 0 | AK21: =Inputs!AK34 -> 0 | AL21: =Inputs!AL34 -> 0 | AM21: =Inputs!AM34 -> 0 | AN21: =Inputs!AN34 -> 0 | AO21: =Inputs!AO34 -> 0 | AP21: =Inputs!AP34 -> 0 | AQ21: =Inputs!AQ34 -> 0 | AR21: =Inputs!AR34 -> 0 | AS21: =Inputs!AS34 -> 0 | AT21: =Inputs!AT34 -> 0 | AU21: =Inputs!AU34 -> 0 | AV21: =Inputs!AV34 -> 0 | AW21: =Inputs!AW34 -> 0 | AX21: =Inputs!AX34 -> 0
E22: Capex | G22: =Inputs!$I$11 -> £m 13/14 prices | K22: =Inputs!K35 -> 0 | L22: =Inputs!L35 -> 0 | M22: =Inputs!M35 -> 0 | N22: =Inputs!N35 -> 0 | O22: =Inputs!O35 -> 0 | P22: =Inputs!P35 -> 0 | Q22: =Inputs!Q35 -> 0 | R22: =Inputs!R35 -> 0 | S22: =Inputs!S35 -> 72.83376494 | T22: =Inputs!T35 -> 104.7456153 | U22: =Inputs!U35 -> 195.2758307 | V22: =Inputs!V35 -> 79.67221996 | W22: =Inputs!W35 -> 33.4118448 | X22: =Inputs!X35 -> 0 | Y22: =Inputs!Y35 -> 0 | Z22: =Inputs!Z35 -> 0 | AA22: =Inputs!AA35 -> 0 | AB22: =Inputs!AB35 -> 0 | AC22: =Inputs!AC35 -> 0 | AD22: =Inputs!AD35 -> 0 | AE22: =Inputs!AE35 -> 0 | AF22: =Inputs!AF35 -> 0 | AG22: =Inputs!AG35 -> 0 | AH22: =Inputs!AH35 -> 0 | AI22: =Inputs!AI35 -> 0 | AJ22: =Inputs!AJ35 -> 0 | AK22: =Inputs!AK35 -> 0 | AL22: =Inputs!AL35 -> 0 | AM22: =Inputs!AM35 -> 0 | AN22: =Inputs!AN35 -> 0 | AO22: =Inputs!AO35 -> 0 | AP22: =Inputs!AP35 -> 0 | AQ22: =Inputs!AQ35 -> 0 | AR22: =Inputs!AR35 -> 0 | AS22: =Inputs!AS35 -> 0 | AT22: =Inputs!AT35 -> 0 | AU22: =Inputs!AU35 -> 0 | AV22: =Inputs!AV35 -> 0 | AW22: =Inputs!AW35 -> 0 | AX22: =Inputs!AX35 -> 0
E23: Spares | G23: =Inputs!$I$11 -> £m 13/14 prices | K23: =Inputs!K36 -> 0 | L23: =Inputs!L36 -> 0 | M23: =Inputs!M36 -> 0 | N23: =Inputs!N36 -> 0 | O23: =Inputs!O36 -> 0 | P23: =Inputs!P36 -> 0 | Q23: =Inputs!Q36 -> 0 | R23: =Inputs!R36 -> 0 | S23: =Inputs!S36 -> 0 | T23: =Inputs!T36 -> 0 | U23: =Inputs!U36 -> 0 | V23: =Inputs!V36 -> 0 | W23: =Inputs!W36 -> 0 | X23: =Inputs!X36 -> 0 | Y23: =Inputs!Y36 -> 0 | Z23: =Inputs!Z36 -> 0 | AA23: =Inputs!AA36 -> 0 | AB23: =Inputs!AB36 -> 0 | AC23: =Inputs!AC36 -> 0 | AD23: =Inputs!AD36 -> 0 | AE23: =Inputs!AE36 -> 0 | AF23: =Inputs!AF36 -> 0 | AG23: =Inputs!AG36 -> 0 | AH23: =Inputs!AH36 -> 0 | AI23: =Inputs!AI36 -> 0 | AJ23: =Inputs!AJ36 -> 0 | AK23: =Inputs!AK36 -> 0 | AL23: =Inputs!AL36 -> 0 | AM23: =Inputs!AM36 -> 0 | AN23: =Inputs!AN36 -> 0 | AO23: =Inputs!AO36 -> 0 | AP23: =Inputs!AP36 -> 0 | AQ23: =Inputs!AQ36 -> 0 | AR23: =Inputs!AR36 -> 0 | AS23: =Inputs!AS36 -> 0 | AT23: =Inputs!AT36 -> 0 | AU23: =Inputs!AU36 -> 0 | AV23: =Inputs!AV36 -> 0 | AW23: =Inputs!AW36 -> 0 | AX23: =Inputs!AX36 -> 0
E24: Capitalised interest during construction | G24: =Inputs!$I$11 -> £m 13/14 prices | K24: =((1+$I18)^(1-K9-K10)-1)*(K20+(K21+K22+K23)/(2+$I18)) -> 0 | L24: =((1+$I18)^(1-L9-L10)-1)*(L20+(L21+L22+L23)/(2+$I18)) -> 0.002445053081 | M24: 0.01077146127 | N24: 0.114473634 | O24: 0.2644757097 | P24: 0.367888753 | Q24: 0.5177518503 | R24: 0.7294231493 | S24: 2.887922289 | T24: 8.014840216 | U24: 16.74854938 | V24: 25.42598205 | W24: 2.40700827 | X24: 0 | Y24: 0 | Z24: 0 | AA24: 0 | AB24: 0 | AC24: 0 | AD24: 0 | AE24: 0 | AF24: 0 | AG24: 0 | AH24: 0 | AI24: 0 | AJ24: 0 | AK24: 0 | AL24: 0 | AM24: 0 | AN24: 0 | AO24: 0 | AP24: 0 | AQ24: 0 | AR24: 0 | AS24: 0 | AT24: 0 | AU24: 0 | AV24: 0 | AW24: 0 | AX24: 0
B26: Transaction costs
C28: Parameters
E30: Pre-operational notional gearing | G30: =Inputs!G73 -> % | I30: =Inputs!I73 -> 0.3341
E31: Operational notional gearing | G31: =Inputs!G74 -> % | I31: =Inputs!I74 -> 0.5
E33: Debt transaction costs | G33: =Inputs!G77 -> % | I33: =Inputs!I77 -> 0.025
E34: Equity transaction costs | G34: =Inputs!G76 -> % | I34: =Inputs!I76 -> 0.05
C36: Allowance
E38: Transaction costs - opening | G38: =Inputs!$I$11 -> £m 13/14 prices | K38: =J46 -> 0 | L38: 0 | M38: 0 | N38: 0 | O38: 0 | P38: 0 | Q38: 0 | R38: 0 | S38: 23.89640878 | T38: 25.22743875 | U38: 26.63260709 | V38: 28.1160433 | W38: 29.68210692 | X38: 0 | Y38: 0 | Z38: 0 | AA38: 0 | AB38: 0 | AC38: 0 | AD38: 0 | AE38: 0 | AF38: 0 | AG38: 0 | AH38: 0 | AI38: 0 | AJ38: 0 | AK38: 0 | AL38: 0 | AM38: 0 | AN38: 0 | AO38: 0 | AP38: 0 | AQ38: 0 | AR38: 0 | AS38: 0 | AT38: 0 | AU38: =AT46 -> 0 | AV38: =AU46 -> 0 | AW38: =AV46 -> 0 | AX38: =AW46 -> 0
E39: Initial debt transaction costs | G39: =Inputs!$I$11 -> £m 13/14 prices | K39: =$I30*K$12*$I33*'Op Rav'!$K$11 -> 0 | L39: =$I30*L$12*$I33*'Op Rav'!$K$11 -> 0 | M39: =$I30*M$12*$I33*'Op Rav'!$K$11 -> 0 | N39: =$I30*N$12*$I33*'Op Rav'!$K$11 -> 0 | O39: =$I30*O$12*$I33*'Op Rav'!$K$11 -> 0 | P39: =$I30*P$12*$I33*'Op Rav'!$K$11 -> 0 | Q39: =$I30*Q$12*$I33*'Op Rav'!$K$11 -> 0 | R39: =$I30*R$12*$I33*'Op Rav'!$K$11 -> 4.66605018 | S39: =$I30*S$12*$I33*'Op Rav'!$K$11 -> 0 | T39: =$I30*T$12*$I33*'Op Rav'!$K$11 -> 0 | U39: =$I30*U$12*$I33*'Op Rav'!$K$11 -> 0 | V39: =$I30*V$12*$I33*'Op Rav'!$K$11 -> 0 | W39: =$I30*W$12*$I33*'Op Rav'!$K$11 -> 0 | X39: =$I30*X$12*$I33*'Op Rav'!$K$11 -> 0 | Y39: =$I30*Y$12*$I33*'Op Rav'!$K$11 -> 0 | Z39: =$I30*Z$12*$I33*'Op Rav'!$K$11 -> 0 | AA39: =$I30*AA$12*$I33*'Op Rav'!$K$11 -> 0 | AB39: =$I30*AB$12*$I33*'Op Rav'!$K$11 -> 0 | AC39: =$I30*AC$12*$I33*'Op Rav'!$K$11 -> 0 | AD39: =$I30*AD$12*$I33*'Op Rav'!$K$11 -> 0 | AE39: =$I30*AE$12*$I33*'Op Rav'!$K$11 -> 0 | AF39: =$I30*AF$12*$I33*'Op Rav'!$K$11 -> 0 | AG39: =$I30*AG$12*$I33*'Op Rav'!$K$11 -> 0 | AH39: =$I30*AH$12*$I33*'Op Rav'!$K$11 -> 0 | AI39: =$I30*AI$12*$I33*'Op Rav'!$K$11 -> 0 | AJ39: =$I30*AJ$12*$I33*'Op Rav'!$K$11 -> 0 | AK39: =$I30*AK$12*$I33*'Op Rav'!$K$11 -> 0 | AL39: =$I30*AL$12*$I33*'Op Rav'!$K$11 -> 0 | AM39: =$I30*AM$12*$I33*'Op Rav'!$K$11 -> 0 | AN39: =$I30*AN$12*$I33*'Op Rav'!$K$11 -> 0 | AO39: =$I30*AO$12*$I33*'Op Rav'!$K$11 -> 0 | AP39: =$I30*AP$12*$I33*'Op Rav'!$K$11 -> 0 | AQ39: =$I30*AQ$12*$I33*'Op Rav'!$K$11 -> 0 | AR39: =$I30*AR$12*$I33*'Op Rav'!$K$11 -> 0 | AS39: =$I30*AS$12*$I33*'Op Rav'!$K$11 -> 0 | AT39: =$I30*AT$12*$I33*'Op Rav'!$K$11 -> 0 | AU39: =$I30*AU$12*$I33*'Op Rav'!$K$11 -> 0 | AV39: =$I30*AV$12*$I33*'Op Rav'!$K$11 -> 0 | AW39: =$I30*AW$12*$I33*'Op Rav'!$K$11 -> 0 | AX39: =$I30*AX$12*$I33*'Op Rav'!$K$11 -> 0
E40: Initial equity transaction costs | G40: =Inputs!$I$11 -> £m 13/14 prices | K40: =(1-$I30)*K$12*$I34*'Op Rav'!$K$11 -> 0 | L40: =(1-$I30)*L$12*$I34*'Op Rav'!$K$11 -> 0 | M40: =(1-$I30)*M$12*$I34*'Op Rav'!$K$11 -> 0 | N40: =(1-$I30)*N$12*$I34*'Op Rav'!$K$11 -> 0 | O40: =(1-$I30)*O$12*$I34*'Op Rav'!$K$11 -> 0 | P40: =(1-$I30)*P$12*$I34*'Op Rav'!$K$11 -> 0 | Q40: =(1-$I30)*Q$12*$I34*'Op Rav'!$K$11 -> 0 | R40: =(1-$I30)*R$12*$I34*'Op Rav'!$K$11 -> 18.59995699 | S40: =(1-$I30)*S$12*$I34*'Op Rav'!$K$11 -> 0 | T40: =(1-$I30)*T$12*$I34*'Op Rav'!$K$11 -> 0 | U40: =(1-$I30)*U$12*$I34*'Op Rav'!$K$11 -> 0 | V40: =(1-$I30)*V$12*$I34*'Op Rav'!$K$11 -> 0 | W40: =(1-$I30)*W$12*$I34*'Op Rav'!$K$11 -> 0 | X40: =(1-$I30)*X$12*$I34*'Op Rav'!$K$11 -> 0 | Y40: =(1-$I30)*Y$12*$I34*'Op Rav'!$K$11 -> 0 | Z40: =(1-$I30)*Z$12*$I34*'Op Rav'!$K$11 -> 0 | AA40: =(1-$I30)*AA$12*$I34*'Op Rav'!$K$11 -> 0 | AB40: =(1-$I30)*AB$12*$I34*'Op Rav'!$K$11 -> 0 | AC40: =(1-$I30)*AC$12*$I34*'Op Rav'!$K$11 -> 0 | AD40: =(1-$I30)*AD$12*$I34*'Op Rav'!$K$11 -> 0 | AE40: =(1-$I30)*AE$12*$I34*'Op Rav'!$K$11 -> 0 | AF40: =(1-$I30)*AF$12*$I34*'Op Rav'!$K$11 -> 0 | AG40: =(1-$I30)*AG$12*$I34*'Op Rav'!$K$11 -> 0 | AH40: =(1-$I30)*AH$12*$I34*'Op Rav'!$K$11 -> 0 | AI40: =(1-$I30)*AI$12*$I34*'Op Rav'!$K$11 -> 0 | AJ40: =(1-$I30)*AJ$12*$I34*'Op Rav'!$K$11 -> 0 | AK40: =(1-$I30)*AK$12*$I34*'Op Rav'!$K$11 -> 0 | AL40: =(1-$I30)*AL$12*$I34*'Op Rav'!$K$11 -> 0 | AM40: =(1-$I30)*AM$12*$I34*'Op Rav'!$K$11 -> 0 | AN40: =(1-$I30)*AN$12*$I34*'Op Rav'!$K$11 -> 0 | AO40: =(1-$I30)*AO$12*$I34*'Op Rav'!$K$11 -> 0 | AP40: =(1-$I30)*AP$12*$I34*'Op Rav'!$K$11 -> 0 | AQ40: =(1-$I30)*AQ$12*$I34*'Op Rav'!$K$11 -> 0 | AR40: =(1-$I30)*AR$12*$I34*'Op Rav'!$K$11 -> 0 | AS40: =(1-$I30)*AS$12*$I34*'Op Rav'!$K$11 -> 0 | AT40: =(1-$I30)*AT$12*$I34*'Op Rav'!$K$11 -> 0 | AU40: =(1-$I30)*AU$12*$I34*'Op Rav'!$K$11 -> 0 | AV40: =(1-$I30)*AV$12*$I34*'Op Rav'!$K$11 -> 0 | AW40: =(1-$I30)*AW$12*$I34*'Op Rav'!$K$11 -> 0 | AX40: =(1-$I30)*AX$12*$I34*'Op Rav'!$K$11 -> 0
E41: Final debt transaction costs | G41: =Inputs!$I$11 -> £m 13/14 prices | K41: =($I31-$I30)*'Op Rav'!$K$11*$I33*K$11 -> 0 | L41: =($I31-$I30)*'Op Rav'!$K$11*$I33*L$11 -> 0 | M41: =($I31-$I30)*'Op Rav'!$K$11*$I33*M$11 -> 0 | N41: =($I31-$I30)*'Op Rav'!$K$11*$I33*N$11 -> 0 | O41: =($I31-$I30)*'Op Rav'!$K$11*$I33*O$11 -> 0 | P41: =($I31-$I30)*'Op Rav'!$K$11*$I33*P$11 -> 0 | Q41: =($I31-$I30)*'Op Rav'!$K$11*$I33*Q$11 -> 0 | R41: =($I31-$I30)*'Op Rav'!$K$11*$I33*R$11 -> 0 | S41: =($I31-$I30)*'Op Rav'!$K$11*$I33*S$11 -> 0 | T41: =($I31-$I30)*'Op Rav'!$K$11*$I33*T$11 -> 0 | U41: =($I31-$I30)*'Op Rav'!$K$11*$I33*U$11 -> 0 | V41: =($I31-$I30)*'Op Rav'!$K$11*$I33*V$11 -> 0 | W41: =($I31-$I30)*'Op Rav'!$K$11*$I33*W$11 -> 2.316964157 | X41: =($I31-$I30)*'Op Rav'!$K$11*$I33*X$11 -> 0 | Y41: =($I31-$I30)*'Op Rav'!$K$11*$I33*Y$11 -> 0 | Z41: =($I31-$I30)*'Op Rav'!$K$11*$I33*Z$11 -> 0 | AA41: =($I31-$I30)*'Op Rav'!$K$11*$I33*AA$11 -> 0 | AB41: =($I31-$I30)*'Op Rav'!$K$11*$I33*AB$11 -> 0 | AC41: =($I31-$I30)*'Op Rav'!$K$11*$I33*AC$11 -> 0 | AD41: =($I31-$I30)*'Op Rav'!$K$11*$I33*AD$11 -> 0 | AE41: =($I31-$I30)*'Op Rav'!$K$11*$I33*AE$11 -> 0 | AF41: =($I31-$I30)*'Op Rav'!$K$11*$I33*AF$11 -> 0 | AG41: =($I31-$I30)*'Op Rav'!$K$11*$I33*AG$11 -> 0 | AH41: =($I31-$I30)*'Op Rav'!$K$11*$I33*AH$11 -> 0 | AI41: =($I31-$I30)*'Op Rav'!$K$11*$I33*AI$11 -> 0 | AJ41: =($I31-$I30)*'Op Rav'!$K$11*$I33*AJ$11 -> 0 | AK41: =($I31-$I30)*'Op Rav'!$K$11*$I33*AK$11 -> 0 | AL41: =($I31-$I30)*'Op Rav'!$K$11*$I33*AL$11 -> 0 | AM41: =($I31-$I30)*'Op Rav'!$K$11*$I33*AM$11 -> 0 | AN41: =($I31-$I30)*'Op Rav'!$K$11*$I33*AN$11 -> 0 | AO41: =($I31-$I30)*'Op Rav'!$K$11*$I33*AO$11 -> 0 | AP41: =($I31-$I30)*'Op Rav'!$K$11*$I33*AP$11 -> 0 | AQ41: =($I31-$I30)*'Op Rav'!$K$11*$I33*AQ$11 -> 0 | AR41: =($I31-$I30)*'Op Rav'!$K$11*$I33*AR$11 -> 0 | AS41: =($I31-$I30)*'Op Rav'!$K$11*$I33*AS$11 -> 0 | AT41: =($I31-$I30)*'Op Rav'!$K$11*$I33*AT$11 -> 0 | AU41: =($I31-$I30)*'Op Rav'!$K$11*$I33*AU$11 -> 0 | AV41: =($I31-$I30)*'Op Rav'!$K$11*$I33*AV$11 -> 0 | AW41: =($I31-$I30)*'Op Rav'!$K$11*$I33*AW$11 -> 0 | AX41: =($I31-$I30)*'Op Rav'!$K$11*$I33*AX$11 -> 0
E42: Final equity transaction costs | G42: =Inputs!$I$11 -> £m 13/14 prices | K42: =($I30-$I31)*'Op Rav'!$K$11*$I34*K$11 -> 0 | L42: =($I30-$I31)*'Op Rav'!$K$11*$I34*L$11 -> 0 | M42: =($I30-$I31)*'Op Rav'!$K$11*$I34*M$11 -> 0 | N42: =($I30-$I31)*'Op Rav'!$K$11*$I34*N$11 -> 0 | O42: =($I30-$I31)*'Op Rav'!$K$11*$I34*O$11 -> 0 | P42: =($I30-$I31)*'Op Rav'!$K$11*$I34*P$11 -> 0 | Q42: =($I30-$I31)*'Op Rav'!$K$11*$I34*Q$11 -> 0 | R42: =($I30-$I31)*'Op Rav'!$K$11*$I34*R$11 -> 0 | S42: =($I30-$I31)*'Op Rav'!$K$11*$I34*S$11 -> 0 | T42: =($I30-$I31)*'Op Rav'!$K$11*$I34*T$11 -> 0 | U42: =($I30-$I31)*'Op Rav'!$K$11*$I34*U$11 -> 0 | V42: =($I30-$I31)*'Op Rav'!$K$11*$I34*V$11 -> 0 | W42: =($I30-$I31)*'Op Rav'!$K$11*$I34*W$11 -> -4.633928314 | X42: =($I30-$I31)*'Op Rav'!$K$11*$I34*X$11 -> 0 | Y42: =($I30-$I31)*'Op Rav'!$K$11*$I34*Y$11 -> 0 | Z42: =($I30-$I31)*'Op Rav'!$K$11*$I34*Z$11 -> 0 | AA42: =($I30-$I31)*'Op Rav'!$K$11*$I34*AA$11 -> 0 | AB42: =($I30-$I31)*'Op Rav'!$K$11*$I34*AB$11 -> 0 | AC42: =($I30-$I31)*'Op Rav'!$K$11*$I34*AC$11 -> 0 | AD42: =($I30-$I31)*'Op Rav'!$K$11*$I34*AD$11 -> 0 | AE42: =($I30-$I31)*'Op Rav'!$K$11*$I34*AE$11 -> 0 | AF42: =($I30-$I31)*'Op Rav'!$K$11*$I34*AF$11 -> 0 | AG42: =($I30-$I31)*'Op Rav'!$K$11*$I34*AG$11 -> 0 | AH42: =($I30-$I31)*'Op Rav'!$K$11*$I34*AH$11 -> 0 | AI42: =($I30-$I31)*'Op Rav'!$K$11*$I34*AI$11 -> 0 | AJ42: =($I30-$I31)*'Op Rav'!$K$11*$I34*AJ$11 -> 0 | AK42: =($I30-$I31)*'Op Rav'!$K$11*$I34*AK$11 -> 0 | AL42: =($I30-$I31)*'Op Rav'!$K$11*$I34*AL$11 -> 0 | AM42: =($I30-$I31)*'Op Rav'!$K$11*$I34*AM$11 -> 0 | AN42: =($I30-$I31)*'Op Rav'!$K$11*$I34*AN$11 -> 0 | AO42: =($I30-$I31)*'Op Rav'!$K$11*$I34*AO$11 -> 0 | AP42: =($I30-$I31)*'Op Rav'!$K$11*$I34*AP$11 -> 0 | AQ42: =($I30-$I31)*'Op Rav'!$K$11*$I34*AQ$11 -> 0 | AR42: =($I30-$I31)*'Op Rav'!$K$11*$I34*AR$11 -> 0 | AS42: =($I30-$I31)*'Op Rav'!$K$11*$I34*AS$11 -> 0 | AT42: =($I30-$I31)*'Op Rav'!$K$11*$I34*AT$11 -> 0 | AU42: =($I30-$I31)*'Op Rav'!$K$11*$I34*AU$11 -> 0 | AV42: =($I30-$I31)*'Op Rav'!$K$11*$I34*AV$11 -> 0 | AW42: =($I30-$I31)*'Op Rav'!$K$11*$I34*AW$11 -> 0 | AX42: =($I30-$I31)*'Op Rav'!$K$11*$I34*AX$11 -> 0
E43: Transaction costs - annual movement | G43: =Inputs!$I$11 -> £m 13/14 prices | K43: =SUM(K39:K42) -> 0 | L43: 0 | M43: 0 | N43: 0 | O43: 0 | P43: 0 | Q43: 0 | R43: =SUM(R39:R42) -> 23.26600717 | S43: 0 | T43: 0 | U43: 0 | V43: 0 | W43: -2.316964157 | X43: 0 | Y43: 0 | Z43: 0 | AA43: 0 | AB43: 0 | AC43: 0 | AD43: 0 | AE43: 0 | AF43: 0 | AG43: 0 | AH43: 0 | AI43: 0 | AJ43: 0 | AK43: 0 | AL43: 0 | AM43: 0 | AN43: 0 | AO43: 0 | AP43: 0 | AQ43: 0 | AR43: 0 | AS43: 0 | AT43: 0 | AU43: =SUM(AU39:AU42) -> 0 | AV43: 0 | AW43: 0 | AX43: 0
E44: Capitalised IDC on transaction costs | G44: =Inputs!$I$11 -> £m 13/14 prices | K44: =((1+$I18)^(1-K$10-K$9)-1)*(K38+(K39+K40+K41+K42)/(2+$I18)) -> 0 | L44: 0 | M44: 0 | N44: 0 | O44: 0 | P44: 0 | Q44: 0 | R44: 0.6304016146 | S44: 1.331029969 | T44: 1.405168338 | U44: 1.483436215 | V44: 1.566063612 | W44: 0.1275000398 | X44: 0 | Y44: 0 | Z44: 0 | AA44: 0 | AB44: 0 | AC44: 0 | AD44: 0 | AE44: 0 | AF44: 0 | AG44: 0 | AH44: 0 | AI44: 0 | AJ44: 0 | AK44: 0 | AL44: 0 | AM44: 0 | AN44: 0 | AO44: 0 | AP44: 0 | AQ44: 0 | AR44: 0 | AS44: 0 | AT44: 0 | AU44: 0 | AV44: 0 | AW44: 0 | AX44: 0
E45: Transfer to operational RAV | G45: =Inputs!$I$11 -> £m 13/14 prices | K45: =-SUM(K38,K43,K44)*K$11 -> 0 | L45: 0 | M45: 0 | N45: 0 | O45: 0 | P45: 0 | Q45: 0 | R45: 0 | S45: 0 | T45: 0 | U45: 0 | V45: 0 | W45: -27.4926428 | X45: 0 | Y45: 0 | Z45: 0 | AA45: 0 | AB45: 0 | AC45: 0 | AD45: 0 | AE45: 0 | AF45: 0 | AG45: 0 | AH45: 0 | AI45: 0 | AJ45: 0 | AK45: 0 | AL45: 0 | AM45: 0 | AN45: 0 | AO45: 0 | AP45: 0 | AQ45: 0 | AR45: 0 | AS45: 0 | AT45: 0 | AU45: 0 | AV45: 0 | AW45: 0 | AX45: 0
E46: Transaction costs - closing | G46: =Inputs!$I$11 -> £m 13/14 prices | K46: =SUM(K45,K44,K43,K38) -> 0 | L46: =SUM(L45,L44,L43,L38) -> 0 | M46: 0 | N46: 0 | O46: 0 | P46: 0 | Q46: 0 | R46: 23.89640878 | S46: 25.22743875 | T46: 26.63260709 | U46: 28.1160433 | V46: 29.68210692 | W46: 0 | X46: 0 | Y46: 0 | Z46: 0 | AA46: 0 | AB46: 0 | AC46: 0 | AD46: 0 | AE46: 0 | AF46: 0 | AG46: 0 | AH46: 0 | AI46: 0 | AJ46: 0 | AK46: 0 | AL46: 0 | AM46: 0 | AN46: 0 | AO46: 0 | AP46: 0 | AQ46: 0 | AR46: 0 | AS46: 0 | AT46: 0 | AU46: 0 | AV46: 0 | AW46: 0 | AX46: 0
B48: End of sheet

Sheet Op Rav
A1: Op RAV | H1: Licence
E2: Parameter | G2: Units | H2: Terminology | I2: Constant | K2: Annual values
E3: Project year | K3: Year 1 | L3: Year 2 | M3: Year 3 | N3: Year 4 | O3: Year 5 | P3: Year 6 | Q3: Year 7 | R3: Year 8 | S3: Year 9 | T3: Year 10 | U3: Year 11 | V3: Year 12 | W3: Year 13 | X3: Year 14 | Y3: Year 15 | Z3: Year 16 | AA3: Year 17 | AB3: Year 18 | AC3: Year 19 | AD3: Year 20 | AE3: Year 21 | AF3: Year 22 | AG3: Year 23 | AH3: Year 24 | AI3: Year 25
B5: RAV
C7: Operational
E9: Opening operational RAV (before transfers) | G9: =Inputs!$I$11 -> £m 13/14 prices | K9: =J15 -> 0 | L9: 562.6884381 | M9: 539.2430866 | N9: 515.797735 | O9: 492.3523834 | P9: 468.9070318 | Q9: 445.601975 | R9: 424.8393816 | S9: 401.3774886 | T9: 377.9073429 | U9: 354.4284288 | V9: 330.9401618 | W9: 307.4418736 | X9: 283.9327936 | Y9: 261.2366116 | Z9: 264.7930937 | AA9: 238.4540791 | AB9: 212.0994763 | AC9: 185.7273366 | AD9: 159.3351548 | AE9: 132.9195905 | AF9: 107.3005566 | AG9: 82.34097021 | AH9: 55.03427498 | AI9: 27.65743232
E10: Transfers of transaction costs | G10: =Inputs!$I$11 -> £m 13/14 prices | K10: =-SUM(Finance!K45:AX45) -> 27.4926428
E11: Transfers of pre-operational RAV | G11: =Inputs!$I$11 -> £m 13/14 prices | K11: =-SUM('Pre Op RAV'!K23:AX23) -> 558.6411469
E12: Opening operational RAV (after transfers) | G12: =Inputs!$I$11 -> £m 13/14 prices | K12: =SUM(K9:K11) -> 586.1337897 | L12: =SUM(L9:L11) -> 562.6884381 | M12: =SUM(M9:M11) -> 539.2430866 | N12: 515.797735 | O12: 492.3523834 | P12: 468.9070318 | Q12: 445.601975 | R12: 424.8393816 | S12: 401.3774886 | T12: 377.9073429 | U12: 354.4284288 | V12: 330.9401618 | W12: 307.4418736 | X12: 283.9327936 | Y12: 261.2366116 | Z12: 264.7930937 | AA12: 238.4540791 | AB12: 212.0994763 | AC12: 185.7273366 | AD12: 159.3351548 | AE12: 132.9195905 | AF12: 107.3005566 | AG12: 82.34097021 | AH12: 55.03427498 | AI12: 27.65743232
E13: Replacement Capex | G13: =Inputs!$I$11 -> £m 13/14 prices | K13: =Inputs!K59 -> 0 | L13: =Inputs!L59 -> 0 | M13: =Inputs!M59 -> 0 | N13: =Inputs!N59 -> 0 | O13: =Inputs!O59 -> 0 | P13: =Inputs!P59 -> 0.1402948368 | Q13: =Inputs!Q59 -> 2.690142135 | R13: =Inputs!R59 -> 0.1402948368 | S13: =Inputs!S59 -> 0.1402948368 | T13: =Inputs!T59 -> 0.1402948368 | U13: =Inputs!U59 -> 0.1402948368 | V13: =Inputs!V59 -> 0.1402948368 | W13: =Inputs!W59 -> 0.1402948368 | X13: =Inputs!X59 -> 0.9648842202 | Y13: =Inputs!Y59 -> 27.30526491 | Z13: =Inputs!Z59 -> 0.1402948368 | AA13: =Inputs!AA59 -> 0.1402948368 | AB13: =Inputs!AB59 -> 0.1402948368 | AC13: =Inputs!AC59 -> 0.1402948368 | AD13: =Inputs!AD59 -> 0.1402948368 | AE13: =Inputs!AE59 -> 0.9648842202 | AF13: =Inputs!AF59 -> 1.865552751 | AG13: =Inputs!AG59 -> 0.1402948368 | AH13: =Inputs!AH59 -> 0.1402948368 | AI13: =Inputs!AI59 -> 0.1402948368
E14: Depreciation (negative) | G14: =Inputs!$I$11 -> £m 13/14 prices | K14: =- K25 -> -23.44535159 | L14: =- L25 -> -23.44535159 | M14: =- M25 -> -23.44535159 | N14: -23.44535159 | O14: -23.44535159 | P14: -23.44535159 | Q14: -23.45273553 | R14: -23.60218787 | S14: -23.61044051 | T14: -23.61920893 | U14: -23.62856192 | V14: -23.63858298 | W14: -23.64937489 | X14: -23.66106613 | Y14: -23.74878288 | Z14: -26.47930937 | AA14: -26.49489768 | AB14: -26.51243454 | AC14: -26.53247666 | AD14: -26.55585913 | AE14: -26.5839181 | AF14: -26.82513915 | AG14: -27.44699007 | AH14: -27.51713749 | AI14: -27.79772716
E15: Closing operational RAV | G15: =Inputs!$I$11 -> £m 13/14 prices | K15: =SUM(K12:K14) -> 562.6884381 | L15: 539.2430866 | M15: 515.797735 | N15: 492.3523834 | O15: 468.9070318 | P15: 445.601975 | Q15: 424.8393816 | R15: 401.3774886 | S15: 377.9073429 | T15: 354.4284288 | U15: 330.9401618 | V15: 307.4418736 | W15: 283.9327936 | X15: 261.2366116 | Y15: 264.7930937 | Z15: 238.4540791 | AA15: 212.0994763 | AB15: 185.7273366 | AC15: 159.3351548 | AD15: 132.9195905 | AE15: 107.3005566 | AF15: 82.34097021 | AG15: 55.03427498 | AH15: 27.65743232 | AI15: 0
E17: Average operational RAV | G17: =Inputs!$I$11 -> £m 13/14 prices | K17: =AVERAGE(K12, K15) -> 574.4111139 | L17: =AVERAGE(L12, L15) -> 550.9657623 | M17: 527.5204108 | N17: 504.0750592 | O17: 480.6297076 | P17: 457.2545034 | Q17: 435.2206783 | R17: 413.1084351 | S17: 389.6424158 | T17: 366.1678859 | U17: 342.6842953 | V17: 319.1910177 | W17: 295.6873336 | X17: 272.5847026 | Y17: 263.0148527 | Z17: 251.6235864 | AA17: =AVERAGE(AA12, AA15) -> 225.2767777 | AB17: 198.9134065 | AC17: 172.5312457 | AD17: 146.1273726 | AE17: 120.1100735 | AF17: 94.82076341 | AG17: 68.68762259 | AH17: 41.34585365 | AI17: 13.82871616
B19: Operational RAV depreciation
E21: Number of operational years | G21: full years | I21: =Inputs!I89 -> 25
E22: Years remaining until end of operational period | G22: full years | K22: =I21 -> 25 | L22: =+K22-1 -> 24 | M22: =+L22-1 -> 23 | N22: 22 | O22: 21 | P22: 20 | Q22: 19 | R22: 18 | S22: 17 | T22: 16 | U22: 15 | V22: 14 | W22: 13 | X22: 12 | Y22: 11 | Z22: 10 | AA22: 9 | AB22: 8 | AC22: 7 | AD22: 6 | AE22: 5 | AF22: 4 | AG22: 3 | AH22: 2 | AI22: 1
E23: Year is before end of operational period | G23: flag | K23: =K22 > 0 -> TRUE | L23: TRUE | M23: TRUE | N23: TRUE | O23: TRUE | P23: TRUE | Q23: TRUE | R23: TRUE | S23: TRUE | T23: TRUE | U23: TRUE | V23: TRUE | W23: TRUE | X23: TRUE | Y23: TRUE | Z23: TRUE | AA23: TRUE | AB23: TRUE | AC23: TRUE | AD23: TRUE | AE23: TRUE | AF23: TRUE | AG23: TRUE | AH23: TRUE | AI23: TRUE
E25: RAV depreciation | G25: =Inputs!$I$11 -> £m 13/14 prices | K25: =IF(K23, IF(K22=1,SUM(K12:K13),K12 / K22), 0) -> 23.44535159 | L25: =IF(L23, IF(L22=1,SUM(L12:L13),L12 / L22), 0) -> 23.44535159 | M25: 23.44535159 | N25: 23.44535159 | O25: 23.44535159 | P25: 23.44535159 | Q25: 23.45273553 | R25: 23.60218787 | S25: 23.61044051 | T25: 23.61920893 | U25: 23.62856192 | V25: 23.63858298 | W25: 23.64937489 | X25: 23.66106613 | Y25: 23.74878288 | Z25: 26.47930937 | AA25: 26.49489768 | AB25: 26.51243454 | AC25: 26.53247666 | AD25: 26.55585913 | AE25: 26.5839181 | AF25: 26.82513915 | AG25: 27.44699007 | AH25: 27.51713749 | AI25: 27.79772716
E27: Depreciation equal to additions | G27: check | I27: =IF(ABS(SUM('Pre Op RAV'!K18:AX21,Finance!K39:AX42,Finance!K44:AX44,K13:AI13)-SUM(K25:AI25))<0.00000001,"TRUE","FALSE") -> TRUE
B29: Operational RAV return
E31: Cap return rate | G31: =Inputs!G68 -> real annual % | I31: =Inputs!I68 -> 0.0734
E32: Floor return rate | G32: =Inputs!G69 -> real annual % | I32: =Inputs!I69 -> 0.0042
E34: Opening operational RAV (after transfers) | G34: =Inputs!$I$11 -> £m 13/14 prices | K34: =K12 -> 586.1337897 | L34: 562.6884381 | M34: 539.2430866 | N34: 515.797735 | O34: 492.3523834 | P34: 468.9070318 | Q34: 445.601975 | R34: 424.8393816 | S34: 401.3774886 | T34: 377.9073429 | U34: 354.4284288 | V34: 330.9401618 | W34: 307.4418736 | X34: 283.9327936 | Y34: 261.2366116 | Z34: 264.7930937 | AA34: 238.4540791 | AB34: 212.0994763 | AC34: 185.7273366 | AD34: 159.3351548 | AE34: 132.9195905 | AF34: 107.3005566 | AG34: 82.34097021 | AH34: 55.03427498 | AI34: 27.65743232
E35: Closing operational RAV | G35: =Inputs!$I$11 -> £m 13/14 prices | K35: =K15 -> 562.6884381 | L35: 539.2430866 | M35: 515.797735 | N35: 492.3523834 | O35: 468.9070318 | P35: 445.601975 | Q35: 424.8393816 | R35: 401.3774886 | S35: 377.9073429 | T35: 354.4284288 | U35: 330.9401618 | V35: 307.4418736 | W35: 283.9327936 | X35: 261.2366116 | Y35: 264.7930937 | Z35: 238.4540791 | AA35: 212.0994763 | AB35: 185.7273366 | AC35: 159.3351548 | AD35: 132.9195905 | AE35: 107.3005566 | AF35: 82.34097021 | AG35: 55.03427498 | AH35: 27.65743232 | AI35: 0
E37: NPV neutral return base (cap) | G37: =Inputs!$I$11 -> £m 13/14 prices | K37: =0.5 * K$34 + 0.5 * K$35 / (1 + $I31) -> 555.1725582 | L37: =0.5 * L$34 + 0.5 * L$35 / (1 + $I31) -> 532.5288131 | M37: 509.885068 | N37: 487.2413229 | O37: 464.5975778 | P37: 442.0191834 | Q37: 420.6952402 | R37: 399.385169 | S37: 376.7216039 | T37: 354.049828 | U37: 331.3693112 | V37: 308.67945 | W37: 285.9795513 | X37: 263.6529124 | Y37: 253.9614648 | Z37: 243.4707406 | AA37: 218.0250069 | AB37: 192.5633103 | AC37: 167.0835094 | AD37: 141.5827956 | AE37: 116.4414221 | AF37: 92.00549081 | AG37: 66.80597745 | AH37: 40.40023434 | AI37: 13.82871616
E38: NPV neutral return base (floor) | G38: =Inputs!$I$11 -> £m 13/14 prices | K38: =0.5 * K$34 + 0.5 * K$35 / (1 + $I32) -> 573.2344104 | L38: 549.8380881 | M38: 526.4417658 | N38: 503.0454435 | O38: 479.6491213 | P38: 456.322653 | Q38: 434.332247 | R38: 412.2690677 | S38: 388.8521296 | T38: 365.4266992 | U38: 341.9922276 | V38: 318.54809 | W38: 295.0935685 | X38: 272.0384002 | Y38: 262.4611129 | Z38: 251.1249272 | AA38: 224.8332317 | AB38: 198.5250103 | AC38: 172.1980413 | AD38: 145.8494089 | AE38: 119.8856848 | AF38: 94.64857058 | AG38: 68.57253399 | AH38: 41.28801596 | AI38: 13.82871616
E40: Return (cap) | G40: =Inputs!$I$11 -> £m 13/14 prices | K40: =K37 * $I31 -> 40.74966578 | L40: 39.08761488 | M40: 37.42556399 | N40: 35.7635131 | O40: 34.10146221 | P40: 32.44420806 | Q40: 30.87903063 | R40: 29.31487141 | S40: 27.65136572 | T40: 25.98725738 | U40: 24.32250744 | V40: 22.65707163 | W40: 20.99089906 | X40: 19.35212377 | Y40: 18.64077152 | Z40: 17.87075236 | AA40: 16.00303551 | AB40: 14.13414697 | AC40: 12.26392959 | AD40: 10.3921772 | AE40: 8.546800385 | AF40: 6.753203026 | AG40: 4.903558745 | AH40: 2.965377201 | AI40: 1.015027766
E41: Return (floor) | G41: =Inputs!$I$11 -> £m 13/14 prices | K41: =K38 * $I32 -> 2.407584524 | L41: 2.30931997 | M41: 2.211055416 | N41: 2.112790863 | O41: 2.014526309 | P41: 1.916555143 | Q41: 1.824195438 | R41: 1.731530085 | S41: 1.633178944 | T41: 1.534792137 | U41: 1.436367356 | V41: 1.337901978 | W41: 1.239392988 | X41: 1.142561281 | Y41: 1.102336674 | Z41: 1.054724694 | AA41: 0.9442995732 | AB41: 0.8338050433 | AC41: 0.7232317736 | AD41: 0.6125675175 | AE41: 0.5035198762 | AF41: 0.3975239964 | AG41: 0.2880046427 | AH41: 0.173409667 | AI41: 0.05808060788
B43: End of sheet

Sheet Allowances Cap
A1: Allowances Cap | H1: Licence
E2: Parameter | G2: Units | H2: Terminology | I2: Constant | K2: Annual values
E3: Project year | K3: Year 1 | L3: Year 2 | M3: Year 3 | N3: Year 4 | O3: Year 5 | P3: Year 6 | Q3: Year 7 | R3: Year 8 | S3: Year 9 | T3: Year 10 | U3: Year 11 | V3: Year 12 | W3: Year 13 | X3: Year 14 | Y3: Year 15 | Z3: Year 16 | AA3: Year 17 | AB3: Year 18 | AC3: Year 19 | AD3: Year 20 | AE3: Year 21 | AF3: Year 22 | AG3: Year 23 | AH3: Year 24 | AI3: Year 25
E4: Year | K4: 1 | L4: =+K4+1 -> 2 | M4: =+L4+1 -> 3 | N4: 4 | O4: 5 | P4: 6 | Q4: 7 | R4: 8 | S4: 9 | T4: 10 | U4: 11 | V4: 12 | W4: 13 | X4: 14 | Y4: 15 | Z4: 16 | AA4: 17 | AB4: 18 | AC4: 19 | AD4: 20 | AE4: 21 | AF4: 22 | AG4: 23 | AH4: 24 | AI4: 25
B6: Unprofiled allowances except tax (cap)
E8: Controllable Opex | G8: =Inputs!$I$11 -> £m 13/14 prices | K8: =Inputs!K61 -> 14.38379731 | L8: =Inputs!L61 -> 12.9621511 | M8: =Inputs!M61 -> 12.90028773 | N8: =Inputs!N61 -> 12.86259372 | O8: =Inputs!O61 -> 12.81894305 | P8: =Inputs!P61 -> 13.85613736 | Q8: =Inputs!Q61 -> 13.65473761 | R8: =Inputs!R61 -> 13.69864582 | S8: =Inputs!S61 -> 13.74794943 | T8: =Inputs!T61 -> 13.78094309 | U8: =Inputs!U61 -> 14.10606888 | V8: =Inputs!V61 -> 13.90061517 | W8: =Inputs!W61 -> 13.94591247 | X8: =Inputs!X61 -> 14.00341659 | Y8: =Inputs!Y61 -> 14.03784263 | Z8: =Inputs!Z61 -> 14.36442275 | AA8: =Inputs!AA61 -> 14.16279483 | AB8: =Inputs!AB61 -> 14.2065186 | AC8: =Inputs!AC61 -> 14.26247185 | AD8: =Inputs!AD61 -> 14.29536985 | AE8: =Inputs!AE61 -> 14.60005563 | AF8: =Inputs!AF61 -> 14.39694609 | AG8: =Inputs!AG61 -> 14.44304869 | AH8: =Inputs!AH61 -> 14.52656197 | AI8: =Inputs!AI61 -> 14.56188662
E9: Non-controllable Opex (baseline) | G9: =Inputs!$I$11 -> £m 13/14 prices | K9: =Inputs!K62 -> 1.221798962 | L9: =Inputs!L62 -> 1.221798962 | M9: =Inputs!M62 -> 1.221798962 | N9: =Inputs!N62 -> 1.221798962 | O9: =Inputs!O62 -> 1.221798962 | P9: =Inputs!P62 -> 1.221798962 | Q9: =Inputs!Q62 -> 1.221798962 | R9: =Inputs!R62 -> 1.221798962 | S9: =Inputs!S62 -> 1.221798962 | T9: =Inputs!T62 -> 1.221798962 | U9: =Inputs!U62 -> 1.221798962 | V9: =Inputs!V62 -> 1.221798962 | W9: =Inputs!W62 -> 1.221798962 | X9: =Inputs!X62 -> 1.221798962 | Y9: =Inputs!Y62 -> 1.221798962 | Z9: =Inputs!Z62 -> 1.221798962 | AA9: =Inputs!AA62 -> 1.221798962 | AB9: =Inputs!AB62 -> 1.221798962 | AC9: =Inputs!AC62 -> 1.221798962 | AD9: =Inputs!AD62 -> 1.221798962 | AE9: =Inputs!AE62 -> 1.221798962 | AF9: =Inputs!AF62 -> 1.221798962 | AG9: =Inputs!AG62 -> 1.221798962 | AH9: =Inputs!AH62 -> 1.221798962 | AI9: =Inputs!AI62 -> 1.221798962
E10: Decommissioning baseline | G10: =Inputs!$I$11 -> £m 13/14 prices | K10: =Inputs!K60 -> 0.0002996521659 | L10: =Inputs!L60 -> 0.0006008025926 | M10: =Inputs!M60 -> 0.001518791963 | N10: =Inputs!N60 -> 0.002472123331 | O10: =Inputs!O60 -> 0.003462488885 | P10: =Inputs!P60 -> 0.00449166542 | Q10: =Inputs!Q60 -> 0.005561518573 | R10: =Inputs!R60 -> 0.006674007261 | S10: =Inputs!S60 -> 0.007831188348 | T10: =Inputs!T60 -> 0.009035221541 | U10: =Inputs!U60 -> 0.01122834798 | V10: =Inputs!V60 -> 0.01352467383 | W10: =Inputs!W60 -> 0.01592928415 | X10: =Inputs!X60 -> 0.01844751826 | Y10: =Inputs!Y60 -> 0.02108498243 | Z10: =Inputs!Z60 -> 0.02384756324 | AA10: =Inputs!AA60 -> 0.02674144163 | AB10: =Inputs!AB60 -> 0.02977310754 | AC10: =Inputs!AC60 -> 0.03294937546 | AD10: =Inputs!AD60 -> 0.03627740055 | AE10: =Inputs!AE60 -> 0.03790972949 | AF10: =Inputs!AF60 -> 0.03962217661 | AG10: =Inputs!AG60 -> 0.04141874782 | AH10: =Inputs!AH60 -> 0.04330364934 | AI10: =Inputs!AI60 -> 11.32864806
E11: RAV depreciation | G11: =Inputs!$I$11 -> £m 13/14 prices | K11: ='Op Rav'!K25 -> 23.44535159 | L11: ='Op Rav'!L25 -> 23.44535159 | M11: ='Op Rav'!M25 -> 23.44535159 | N11: ='Op Rav'!N25 -> 23.44535159 | O11: ='Op Rav'!O25 -> 23.44535159 | P11: ='Op Rav'!P25 -> 23.44535159 | Q11: ='Op Rav'!Q25 -> 23.45273553 | R11: ='Op Rav'!R25 -> 23.60218787 | S11: ='Op Rav'!S25 -> 23.61044051 | T11: ='Op Rav'!T25 -> 23.61920893 | U11: ='Op Rav'!U25 -> 23.62856192 | V11: ='Op Rav'!V25 -> 23.63858298 | W11: ='Op Rav'!W25 -> 23.64937489 | X11: ='Op Rav'!X25 -> 23.66106613 | Y11: ='Op Rav'!Y25 -> 23.74878288 | Z11: ='Op Rav'!Z25 -> 26.47930937 | AA11: ='Op Rav'!AA25 -> 26.49489768 | AB11: ='Op Rav'!AB25 -> 26.51243454 | AC11: ='Op Rav'!AC25 -> 26.53247666 | AD11: ='Op Rav'!AD25 -> 26.55585913 | AE11: ='Op Rav'!AE25 -> 26.5839181 | AF11: ='Op Rav'!AF25 -> 26.82513915 | AG11: ='Op Rav'!AG25 -> 27.44699007 | AH11: ='Op Rav'!AH25 -> 27.51713749 | AI11: ='Op Rav'!AI25 -> 27.79772716
E12: Return (cap) | G12: =Inputs!$I$11 -> £m 13/14 prices | K12: ='Op Rav'!K40 -> 40.74966578 | L12: ='Op Rav'!L40 -> 39.08761488 | M12: ='Op Rav'!M40 -> 37.42556399 | N12: ='Op Rav'!N40 -> 35.7635131 | O12: ='Op Rav'!O40 -> 34.10146221 | P12: ='Op Rav'!P40 -> 32.44420806 | Q12: ='Op Rav'!Q40 -> 30.87903063 | R12: ='Op Rav'!R40 -> 29.31487141 | S12: ='Op Rav'!S40 -> 27.65136572 | T12: ='Op Rav'!T40 -> 25.98725738 | U12: ='Op Rav'!U40 -> 24.32250744 | V12: ='Op Rav'!V40 -> 22.65707163 | W12: ='Op Rav'!W40 -> 20.99089906 | X12: ='Op Rav'!X40 -> 19.35212377 | Y12: ='Op Rav'!Y40 -> 18.64077152 | Z12: ='Op Rav'!Z40 -> 17.87075236 | AA12: ='Op Rav'!AA40 -> 16.00303551 | AB12: ='Op Rav'!AB40 -> 14.13414697 | AC12: ='Op Rav'!AC40 -> 12.26392959 | AD12: ='Op Rav'!AD40 -> 10.3921772 | AE12: ='Op Rav'!AE40 -> 8.546800385 | AF12: ='Op Rav'!AF40 -> 6.753203026 | AG12: ='Op Rav'!AG40 -> 4.903558745 | AH12: ='Op Rav'!AH40 -> 2.965377201 | AI12: ='Op Rav'!AI40 -> 1.015027766
E13: Unprofiled allowances except tax (cap) | G13: =Inputs!$I$11 -> £m 13/14 prices | K13: =SUM(K8:K12) -> 79.80091329 | L13: =SUM(L8:L12) -> 76.71751734 | M13: 74.99452107 | N13: 73.2957295 | O13: 71.59101831 | P13: 70.97198764 | Q13: 69.21386425 | R13: 67.84417806 | S13: 66.23938581 | T13: 64.61824358 | U13: 63.29016555 | V13: 61.43159342 | W13: 59.82391467 | X13: 58.25685297 | Y13: 57.67028096 | Z13: 59.960131 | AA13: 57.90926843 | AB13: 56.10467218 | AC13: 54.31362643 | AD13: 52.50148254 | AE13: 50.9904828 | AF13: 49.23670941 | AG13: 48.05681522 | AH13: 46.27417927 | AI13: 55.92508856
B15: Profiled allowances except tax (cap)
C17: Annuity parameters
E19: Cap return rate | G19: =Inputs!G68 -> real annual % | I19: =Inputs!I68 -> 0.0734
E20: Number of operational years | G20: =Inputs!G89 -> full years | I20: =Inputs!I89 -> 25
E21: Annuity factor (cap) | G21: scalar | I21: =I19 / (1 - (1 + I19)^(-I20)) -> 0.08845507742
E23: Year is within operational period | G23: flag | K23: =AND(K4 > 0, K4<= $I20) -> TRUE | L23: TRUE | M23: TRUE | N23: TRUE | O23: TRUE | P23: TRUE | Q23: TRUE | R23: TRUE | S23: TRUE | T23: TRUE | U23: TRUE | V23: TRUE | W23: TRUE | X23: TRUE | Y23: TRUE | Z23: TRUE | AA23: TRUE | AB23: TRUE | AC23: TRUE | AD23: TRUE | AE23: TRUE | AF23: TRUE | AG23: TRUE | AH23: TRUE | AI23: TRUE
E24: Discount factor to start of operational period (cap) | G24: scalar | K24: =(1 + $I19) ^ - K4 -> 0.9316191541 | L24: 0.8679142483 | M24: 0.8085655378 | N24: 0.7532751423 | O24: 0.7017655509 | P24: 0.6537782289 | Q24: 0.6090723206 | R24: 0.5674234401 | S24: 0.5286225453 | T24: 0.4924748884 | U24: 0.458799039 | V24: 0.4274259726 | W24: 0.398198223 | X24: 0.3709690917 | Y24: 0.3456019114 | Z24: 0.3219693603 | AA24: 0.2999528231 | AB24: 0.2794417953 | AC24: 0.260333329 | AD24: 0.2425315157 | AE24: 0.2259470055 | AF24: 0.2104965582 | AG24: 0.1961026255 | AH24: 0.182692962 | AI24: 0.1702002628
C26: Allowances except tax
E28: Discounted unprofiled allowances except tax (cap) | G28: =Inputs!$I$11 -> £m 13/14 prices | K28: =K13 * K$24 -> 74.34405934 | L28: =L13 * L$24 -> 66.58422639 | M28: 60.63798526 | N28: 55.21185107 | O28: 50.2401104 | P28: 46.39994038 | Q28: 42.15624891 | R28: 38.4963769 | S28: 35.01563272 | T28: 31.8228623 | U28: 29.03746713 | V28: 26.25745857 | W28: 23.82177652 | X28: 21.61149183 | Y28: =Y13 * Y$24 -> 19.93095933 | Z28: =Z13 * Z$24 -> 19.30532502 | AA28: 17.37004855 | AB28: 15.67799032 | AC28: 14.13964718 | AD28: 12.73326414 | AE28: 11.5211469 | AF28: 10.36415787 | AG28: 9.424067636 | AH28: 8.453966877 | AI28: 9.518464769
E29: NPV of allowances except tax (cap) | G29: =Inputs!$I$11 -> £m 13/14 prices | I29: =SUM(K28:AI28) -> 750.0765263
E31: Annuity factor (cap) | G31: =G$21 -> scalar | I31: =I$21 -> 0.08845507742
E33: Annuity of allowances except tax (cap) | G33: =Inputs!$I$11 -> £m 13/14 prices | I33: =I29 * I31 -> 66.34807721
E34: Annuitised allowances except tax (cap) | G34: =Inputs!$I$11 -> £m 13/14 prices | K34: =K$23 * $I33 -> 66.34807721 | L34: 66.34807721 | M34: 66.34807721 | N34: 66.34807721 | O34: 66.34807721 | P34: 66.34807721 | Q34: 66.34807721 | R34: 66.34807721 | S34: 66.34807721 | T34: 66.34807721 | U34: 66.34807721 | V34: 66.34807721 | W34: 66.34807721 | X34: =X$23 * $I33 -> 66.34807721 | Y34: =Y$23 * $I33 -> 66.34807721 | Z34: 66.34807721 | AA34: 66.34807721 | AB34: 66.34807721 | AC34: 66.34807721 | AD34: 66.34807721 | AE34: 66.34807721 | AF34: 66.34807721 | AG34: 66.34807721 | AH34: 66.34807721 | AI34: 66.34807721
B36: End of sheet

Sheet Allowances Floor
A1: Allowances Floor | H1: Licence
E2: Parameter | G2: Units | H2: Terminology | I2: Constant | K2: Annual values
E3: Project year | K3: Year 1 | L3: Year 2 | M3: Year 3 | N3: Year 4 | O3: Year 5 | P3: Year 6 | Q3: Year 7 | R3: Year 8 | S3: Year 9 | T3: Year 10 | U3: Year 11 | V3: Year 12 | W3: Year 13 | X3: Year 14 | Y3: Year 15 | Z3: Year 16 | AA3: Year 17 | AB3: Year 18 | AC3: Year 19 | AD3: Year 20 | AE3: Year 21 | AF3: Year 22 | AG3: Year 23 | AH3: Year 24 | AI3: Year 25
E4: Year | K4: 1 | L4: =+K4+1 -> 2 | M4: =+L4+1 -> 3 | N4: 4 | O4: 5 | P4: 6 | Q4: 7 | R4: 8 | S4: 9 | T4: 10 | U4: 11 | V4: 12 | W4: 13 | X4: 14 | Y4: 15 | Z4: 16 | AA4: 17 | AB4: 18 | AC4: 19 | AD4: 20 | AE4: 21 | AF4: 22 | AG4: 23 | AH4: 24 | AI4: 25
B6: Unprofiled allowances except tax (floor)
E8: Controllable Opex | G8: =Inputs!$I$11 -> £m 13/14 prices | K8: =Inputs!K61 -> 14.38379731 | L8: =Inputs!L61 -> 12.9621511 | M8: =Inputs!M61 -> 12.90028773 | N8: =Inputs!N61 -> 12.86259372 | O8: =Inputs!O61 -> 12.81894305 | P8: =Inputs!P61 -> 13.85613736 | Q8: =Inputs!Q61 -> 13.65473761 | R8: =Inputs!R61 -> 13.69864582 | S8: =Inputs!S61 -> 13.74794943 | T8: =Inputs!T61 -> 13.78094309 | U8: =Inputs!U61 -> 14.10606888 | V8: =Inputs!V61 -> 13.90061517 | W8: =Inputs!W61 -> 13.94591247 | X8: =Inputs!X61 -> 14.00341659 | Y8: =Inputs!Y61 -> 14.03784263 | Z8: =Inputs!Z61 -> 14.36442275 | AA8: =Inputs!AA61 -> 14.16279483 | AB8: =Inputs!AB61 -> 14.2065186 | AC8: =Inputs!AC61 -> 14.26247185 | AD8: =Inputs!AD61 -> 14.29536985 | AE8: =Inputs!AE61 -> 14.60005563 | AF8: =Inputs!AF61 -> 14.39694609 | AG8: =Inputs!AG61 -> 14.44304869 | AH8: =Inputs!AH61 -> 14.52656197 | AI8: =Inputs!AI61 -> 14.56188662
E9: Non-controllable Opex (baseline) | G9: =Inputs!$I$11 -> £m 13/14 prices | K9: =Inputs!K62 -> 1.221798962 | L9: =Inputs!L62 -> 1.221798962 | M9: =Inputs!M62 -> 1.221798962 | N9: =Inputs!N62 -> 1.221798962 | O9: =Inputs!O62 -> 1.221798962 | P9: =Inputs!P62 -> 1.221798962 | Q9: =Inputs!Q62 -> 1.221798962 | R9: =Inputs!R62 -> 1.221798962 | S9: =Inputs!S62 -> 1.221798962 | T9: =Inputs!T62 -> 1.221798962 | U9: =Inputs!U62 -> 1.221798962 | V9: =Inputs!V62 -> 1.221798962 | W9: =Inputs!W62 -> 1.221798962 | X9: =Inputs!X62 -> 1.221798962 | Y9: =Inputs!Y62 -> 1.221798962 | Z9: =Inputs!Z62 -> 1.221798962 | AA9: =Inputs!AA62 -> 1.221798962 | AB9: =Inputs!AB62 -> 1.221798962 | AC9: =Inputs!AC62 -> 1.221798962 | AD9: =Inputs!AD62 -> 1.221798962 | AE9: =Inputs!AE62 -> 1.221798962 | AF9: =Inputs!AF62 -> 1.221798962 | AG9: =Inputs!AG62 -> 1.221798962 | AH9: =Inputs!AH62 -> 1.221798962 | AI9: =Inputs!AI62 -> 1.221798962
E10: Decommissioning baseline | G10: =Inputs!$I$11 -> £m 13/14 prices | K10: =Inputs!K60 -> 0.0002996521659 | L10: =Inputs!L60 -> 0.0006008025926 | M10: =Inputs!M60 -> 0.001518791963 | N10: =Inputs!N60 -> 0.002472123331 | O10: =Inputs!O60 -> 0.003462488885 | P10: =Inputs!P60 -> 0.00449166542 | Q10: =Inputs!Q60 -> 0.005561518573 | R10: =Inputs!R60 -> 0.006674007261 | S10: =Inputs!S60 -> 0.007831188348 | T10: =Inputs!T60 -> 0.009035221541 | U10: =Inputs!U60 -> 0.01122834798 | V10: =Inputs!V60 -> 0.01352467383 | W10: =Inputs!W60 -> 0.01592928415 | X10: =Inputs!X60 -> 0.01844751826 | Y10: =Inputs!Y60 -> 0.02108498243 | Z10: =Inputs!Z60 -> 0.02384756324 | AA10: =Inputs!AA60 -> 0.02674144163 | AB10: =Inputs!AB60 -> 0.02977310754 | AC10: =Inputs!AC60 -> 0.03294937546 | AD10: =Inputs!AD60 -> 0.03627740055 | AE10: =Inputs!AE60 -> 0.03790972949 | AF10: =Inputs!AF60 -> 0.03962217661 | AG10: =Inputs!AG60 -> 0.04141874782 | AH10: =Inputs!AH60 -> 0.04330364934 | AI10: =Inputs!AI60 -> 11.32864806
E11: RAV depreciation | G11: =Inputs!$I$11 -> £m 13/14 prices | K11: ='Op Rav'!K25 -> 23.44535159 | L11: ='Op Rav'!L25 -> 23.44535159 | M11: ='Op Rav'!M25 -> 23.44535159 | N11: ='Op Rav'!N25 -> 23.44535159 | O11: ='Op Rav'!O25 -> 23.44535159 | P11: ='Op Rav'!P25 -> 23.44535159 | Q11: ='Op Rav'!Q25 -> 23.45273553 | R11: ='Op Rav'!R25 -> 23.60218787 | S11: ='Op Rav'!S25 -> 23.61044051 | T11: ='Op Rav'!T25 -> 23.61920893 | U11: ='Op Rav'!U25 -> 23.62856192 | V11: ='Op Rav'!V25 -> 23.63858298 | W11: ='Op Rav'!W25 -> 23.64937489 | X11: ='Op Rav'!X25 -> 23.66106613 | Y11: ='Op Rav'!Y25 -> 23.74878288 | Z11: ='Op Rav'!Z25 -> 26.47930937 | AA11: ='Op Rav'!AA25 -> 26.49489768 | AB11: ='Op Rav'!AB25 -> 26.51243454 | AC11: ='Op Rav'!AC25 -> 26.53247666 | AD11: ='Op Rav'!AD25 -> 26.55585913 | AE11: ='Op Rav'!AE25 -> 26.5839181 | AF11: ='Op Rav'!AF25 -> 26.82513915 | AG11: ='Op Rav'!AG25 -> 27.44699007 | AH11: ='Op Rav'!AH25 -> 27.51713749 | AI11: ='Op Rav'!AI25 -> 27.79772716
E12: Return (floor) | G12: =Inputs!$I$11 -> £m 13/14 prices | K12: ='Op Rav'!K41 -> 2.407584524 | L12: ='Op Rav'!L41 -> 2.30931997 | M12: ='Op Rav'!M41 -> 2.211055416 | N12: ='Op Rav'!N41 -> 2.112790863 | O12: ='Op Rav'!O41 -> 2.014526309 | P12: ='Op Rav'!P41 -> 1.916555143 | Q12: ='Op Rav'!Q41 -> 1.824195438 | R12: ='Op Rav'!R41 -> 1.731530085 | S12: ='Op Rav'!S41 -> 1.633178944 | T12: ='Op Rav'!T41 -> 1.534792137 | U12: ='Op Rav'!U41 -> 1.436367356 | V12: ='Op Rav'!V41 -> 1.337901978 | W12: ='Op Rav'!W41 -> 1.239392988 | X12: ='Op Rav'!X41 -> 1.142561281 | Y12: ='Op Rav'!Y41 -> 1.102336674 | Z12: ='Op Rav'!Z41 -> 1.054724694 | AA12: ='Op Rav'!AA41 -> 0.9442995732 | AB12: ='Op Rav'!AB41 -> 0.8338050433 | AC12: ='Op Rav'!AC41 -> 0.7232317736 | AD12: ='Op Rav'!AD41 -> 0.6125675175 | AE12: ='Op Rav'!AE41 -> 0.5035198762 | AF12: ='Op Rav'!AF41 -> 0.3975239964 | AG12: ='Op Rav'!AG41 -> 0.2880046427 | AH12: ='Op Rav'!AH41 -> 0.173409667 | AI12: ='Op Rav'!AI41 -> 0.05808060788
E13: Unprofiled allowances except tax (floor) | G13: =Inputs!$I$11 -> £m 13/14 prices | K13: =SUM(K8:K12) -> 41.45883204 | L13: 39.93922242 | M13: 39.78001249 | N13: 39.64500726 | O13: 39.5040824 | P13: 40.44433472 | Q13: 40.15902905 | R13: 40.26083674 | S13: 40.22119903 | T13: 40.16577834 | U13: 40.40402546 | V13: 40.11242377 | W13: 40.07240859 | X13: 40.04729048 | Y13: 40.13184612 | Z13: 43.14410334 | AA13: 42.85053249 | AB13: 42.80433026 | AC13: 42.77292861 | AD13: 42.72187286 | AE13: 42.94720229 | AF13: 42.88103038 | AG13: 43.44126112 | AH13: 43.48221173 | AI13: 54.96814141
B15: Profiled allowances except tax (floor)
C17: Annuity parameters
E19: Floor return rate | G19: =Inputs!G69 -> real annual % | I19: =Inputs!I69 -> 0.0042
E20: Number of operational years | G20: =Inputs!G89 -> full years | I20: =Inputs!I89 -> 25
E21: Annuity factor (floor) | G21: scalar | I21: =I19 / (1 - (1 + I19)^(-I20)) -> 0.04222060765
E23: Year is within operational period | G23: flag | K23: =AND(K4 > 0, K4<= $I20) -> TRUE | L23: TRUE | M23: TRUE | N23: TRUE | O23: TRUE | P23: TRUE | Q23: TRUE | R23: TRUE | S23: TRUE | T23: TRUE | U23: TRUE | V23: TRUE | W23: TRUE | X23: TRUE | Y23: TRUE | Z23: TRUE | AA23: TRUE | AB23: TRUE | AC23: TRUE | AD23: TRUE | AE23: TRUE | AF23: TRUE | AG23: TRUE | AH23: TRUE | AI23: TRUE
E24: Discount factor to start of operational period (floor) | G24: scalar | K24: =(1 + $I19) ^ - K4 -> 0.9958175662 | L24: 0.9916526252 | M24: 0.9875051038 | N24: 0.9833749291 | O24: 0.9792620285 | P24: 0.97516633 | Q24: 0.9710877614 | R24: 0.9670262511 | S24: 0.9629817278 | T24: 0.9589541205 | U24: 0.9549433584 | V24: 0.9509493711 | W24: 0.9469720883 | X24: 0.9430114403 | Y24: 0.9390673574 | Z24: 0.9351397703 | AA24: 0.9312286102 | AB24: 0.9273338082 | AC24: 0.9234552959 | AD24: 0.9195930053 | AE24: 0.9157468684 | AF24: 0.9119168178 | AG24: 0.9081027861 | AH24: 0.9043047063 | AI24: 0.9005225118
C26: Allowances except tax
E28: Discounted unprofiled allowances except tax (floor) | G28: =Inputs!$I$11 -> £m 13/14 prices | K28: =K13 * K$24 -> 41.28543322 | L28: =L13 * L$24 -> 39.60583476 | M28: 39.28296536 | N28: 38.9859062 | O28: 38.68484787 | P28: 39.43995346 | Q28: 38.99794162 | R28: 38.93328602 | S28: 38.73227974 | T28: 38.51713865 | U28: 38.58355577 | V28: 38.14488416 | W28: 37.94745245 | X28: =X13 * X$24 -> 37.76505308 | Y28: 37.68650668 | Z28: 40.34576688 | AA28: 39.90364182 | AB28: 39.69390258 | AC28: 39.49888745 | AD28: 39.28673546 | AE28: 39.32876601 | AF28: 39.10393277 | AG28: 39.44913025 | AH28: 39.32116871 | AI28: 49.50004877
E29: NPV of allowances except tax (floor) | G29: =Inputs!$I$11 -> £m 13/14 prices | I29: =SUM(K28:AI28) -> 988.0250197
E31: Annuity factor (floor) | G31: =G$21 -> scalar | I31: =I$21 -> 0.04222060765
E33: Annuity of allowances except tax (floor) | G33: =Inputs!$I$11 -> £m 13/14 prices | I33: =I29 * I31 -> 41.71501671
E34: Annuitised allowances except tax (floor) | G34: =Inputs!$I$11 -> £m 13/14 prices | K34: =K$23 * $I33 -> 41.71501671 | L34: 41.71501671 | M34: 41.71501671 | N34: 41.71501671 | O34: 41.71501671 | P34: 41.71501671 | Q34: 41.71501671 | R34: 41.71501671 | S34: 41.71501671 | T34: 41.71501671 | U34: 41.71501671 | V34: 41.71501671 | W34: 41.71501671 | X34: =X$23 * $I33 -> 41.71501671 | Y34: 41.71501671 | Z34: 41.71501671 | AA34: 41.71501671 | AB34: 41.71501671 | AC34: 41.71501671 | AD34: 41.71501671 | AE34: 41.71501671 | AF34: 41.71501671 | AG34: 41.71501671 | AH34: 41.71501671 | AI34: 41.71501671
B36: End of sheet

Sheet Tax Deductions
A1: Tax Deductions | H1: Licence
E2: Parameter | G2: Units | H2: Terminology | I2: Constant | K2: Annual values
E3: Project year | K3: Year 1 | L3: Year 2 | M3: Year 3 | N3: Year 4 | O3: Year 5 | P3: Year 6 | Q3: Year 7 | R3: Year 8 | S3: Year 9 | T3: Year 10 | U3: Year 11 | V3: Year 12 | W3: Year 13 | X3: Year 14 | Y3: Year 15 | Z3: Year 16 | AA3: Year 17 | AB3: Year 18 | AC3: Year 19 | AD3: Year 20 | AE3: Year 21 | AF3: Year 22 | AG3: Year 23 | AH3: Year 24 | AI3: Year 25
B5: Tax deductions
C7: Inflation
E9: =Inputs!E119 -> UK RPI uplift from 2013/14 term to start of regime | G9: scalar | I9: =Inputs!I119 -> 1.170847532
E10: =Inputs!E116 -> Long-term expected UK RPI inflation | G10: % | I10: =Inputs!I116 -> 0.03
E11: Forecast UK inflation uplift | G11: scalar | K11: =I9*(1+$I$10)^0.5 -> 1.188280464 | L11: =K11*(1+$I$10) -> 1.223928878 | M11: =L11*(1+$I$10) -> 1.260646744 | N11: 1.298466147 | O11: 1.337420131 | P11: 1.377542735 | Q11: 1.418869017 | R11: 1.461435088 | S11: 1.50527814 | T11: 1.550436484 | U11: 1.596949579 | V11: 1.644858066 | W11: 1.694203808 | X11: 1.745029923 | Y11: 1.79738082 | Z11: 1.851302245 | AA11: 1.906841312 | AB11: 1.964046552 | AC11: 2.022967948 | AD11: 2.083656987 | AE11: 2.146166696 | AF11: 2.210551697 | AG11: 2.276868248 | AH11: 2.345174295 | AI11: 2.415529524
C13: Total tax deductions
E15: Revenue pool additions | G15: £m nominal | K15: =K27 -> 18.54382518 | L15: 17.36014609 | M15: 17.80296262 | N15: 18.2881071 | O15: 18.77837103 | P15: 20.77050164 | Q15: 21.10785682 | R15: 21.80526152 | S15: 22.53363502 | T15: 23.26079865 | U15: 24.47783209 | V15: 24.87422488 | W15: 25.69719447 | X15: 26.56845672 | Y15: 27.42738711 | Z15: 28.85480724 | AA15: 29.33597902 | AB15: 30.30193391 | AC15: 31.32418354 | AD15: 32.33245721 | AE15: 33.95633739 | AF15: 34.52604338 | AG15: 35.66679424 | AH15: 36.93265125 | AI15: 38.12595852
E16: Capital allowances | G16: £m nominal | K16: =K42 -> 41.84802927 | L16: 38.50018693 | M16: 35.42017197 | N16: 32.58655821 | O16: 29.97963356 | P16: 27.59672384 | Q16: 25.69434268 | R16: 23.65519781 | S16: 21.77967661 | T16: 20.05470394 | U16: 18.46825112 | V16: 17.00925224 | W16: 15.66752711 | X16: 14.54882508 | Y16: 17.31115583 | Z16: 15.94704162 | AA16: 14.69267989 | AB16: 13.53930914 | AC16: 12.47886937 | AD16: 11.50394593 | AE16: 10.74929444 | AF16: 10.21926295 | AG16: 9.427276543 | AH16: 8.699415687 | AI16: 100.3821667
E17: Interest payable | G17: £m nominal | K17: =K58 -> 11.77850867 | L17: 11.47338587 | M17: 11.15778942 | N17: 10.83135981 | O17: 10.49372518 | P17: 10.1445009 | Q17: 9.783289144 | R17: 9.409678437 | S17: 9.023243169 | T17: 8.623543124 | U17: 8.210122975 | V17: 7.782511767 | W17: 7.340222376 | X17: 6.882750959 | Y17: 6.409576378 | Z17: 5.920159607 | AA17: 5.413943116 | AB17: 4.890350237 | AC17: 4.34878451 | AD17: 3.788628997 | AE17: 3.209245586 | AF17: 2.60997426 | AG17: 1.990132347 | AH17: 1.34901374 | AI17: 0.6858880952
E18: Debt transaction costs | G18: £m nominal | K18: =SUMPRODUCT(Finance!K39:AX39,Inputs!K107:AX107)+SUMPRODUCT(Finance!K41:AX41,Inputs!K107:AX107) -> 7.40564663
E19: Total tax deductions | G19: £m nominal | K19: =SUM(K15:K18) -> 79.57600975 | L19: 67.33371888 | M19: 64.38092401 | N19: 61.70602512 | O19: 59.25172976 | P19: 58.51172638 | Q19: 56.58548865 | R19: 54.87013777 | S19: =SUM(S15:S18) -> 53.3365548 | T19: 51.93904571 | U19: 51.15620619 | V19: 49.66598888 | W19: 48.70494395 | X19: 48.00003277 | Y19: 51.14811932 | Z19: 50.72200847 | AA19: 49.44260202 | AB19: 48.7315933 | AC19: 48.15183742 | AD19: 47.62503213 | AE19: 47.91487742 | AF19: 47.35528059 | AG19: 47.08420313 | AH19: 46.98108068 | AI19: 139.1940133
B21: Tax pools
C23: Revenue pool
E25: Controllable Opex | G25: £m nominal | K25: =Inputs!K61* K$11 -> 17.09198535 | L25: =Inputs!L61* L$11 -> 15.86475105 | M25: =Inputs!M61* M$11 -> 16.26270573 | N25: =Inputs!N61* N$11 -> 16.70164251 | O25: =Inputs!O61* O$11 -> 17.1443125 | P25: =Inputs!P61* P$11 -> 19.08742136 | Q25: =Inputs!Q61* Q$11 -> 19.37428413 | R25: =Inputs!R61* R$11 -> 20.01968165 | S25: =Inputs!S61* S$11 -> 20.69448775 | T25: =Inputs!T61* T$11 -> 21.36647696 | U25: =Inputs!U61* U$11 -> 22.52668075 | V25: =Inputs!V61* V$11 -> 22.864539 | W25: =Inputs!W61* W$11 -> 23.62721801 | X25: =Inputs!X61* X$11 -> 24.43638098 | Y25: =Inputs!Y61* Y$11 -> 25.23134909 | Z25: =Inputs!Z61* Z$11 -> 26.59288808 | AA25: =Inputs!AA61* AA$11 -> 27.00620228 | AB25: =Inputs!AB61* AB$11 -> 27.90226388 | AC25: =Inputs!AC61* AC$11 -> 28.85252341 | AD25: =Inputs!AD61* AD$11 -> 29.78664727 | AE25: =Inputs!AE61* AE$11 -> 31.33415315 | AF25: =Inputs!AF61* AF$11 -> 31.82519362 | AG25: =Inputs!AG61* AG$11 -> 32.88491898 | AH25: =Inputs!AH61* AH$11 -> 34.06731973 | AI25: =Inputs!AI61* AI$11 -> 35.17466705
E26: Non-controllable Opex (baseline) | G26: £m nominal | K26: =Inputs!K62* K$11 -> 1.451839837 | L26: =Inputs!L62* L$11 -> 1.495395032 | M26: =Inputs!M62* M$11 -> 1.540256883 | N26: =Inputs!N62* N$11 -> 1.58646459 | O26: =Inputs!O62* O$11 -> 1.634058528 | P26: =Inputs!P62* P$11 -> 1.683080283 | Q26: =Inputs!Q62* Q$11 -> 1.733572692 | R26: =Inputs!R62* R$11 -> 1.785579873 | S26: =Inputs!S62* S$11 -> 1.839147269 | T26: =Inputs!T62* T$11 -> 1.894321687 | U26: =Inputs!U62* U$11 -> 1.951151338 | V26: =Inputs!V62* V$11 -> 2.009685878 | W26: =Inputs!W62* W$11 -> 2.069976454 | X26: =Inputs!X62* X$11 -> 2.132075748 | Y26: =Inputs!Y62* Y$11 -> 2.19603802 | Z26: =Inputs!Z62* Z$11 -> 2.261919161 | AA26: =Inputs!AA62* AA$11 -> 2.329776735 | AB26: =Inputs!AB62* AB$11 -> 2.399670038 | AC26: =Inputs!AC62* AC$11 -> 2.471660139 | AD26: =Inputs!AD62* AD$11 -> 2.545809943 | AE26: =Inputs!AE62* AE$11 -> 2.622184241 | AF26: =Inputs!AF62* AF$11 -> 2.700849768 | AG26: =Inputs!AG62* AG$11 -> 2.781875261 | AH26: =Inputs!AH62* AH$11 -> 2.865331519 | AI26: =Inputs!AI62* AI$11 -> 2.951291465
E27: Revenue pool additions | G27: £m nominal | K27: =SUM(K25:K26) -> 18.54382518 | L27: 17.36014609 | M27: 17.80296262 | N27: 18.2881071 | O27: 18.77837103 | P27: 20.77050164 | Q27: 21.10785682 | R27: 21.80526152 | S27: 22.53363502 | T27: 23.26079865 | U27: 24.47783209 | V27: 24.87422488 | W27: 25.69719447 | X27: 26.56845672 | Y27: 27.42738711 | Z27: 28.85480724 | AA27: 29.33597902 | AB27: 30.30193391 | AC27: 31.32418354 | AD27: 32.33245721 | AE27: 33.95633739 | AF27: 34.52604338 | AG27: 35.66679424 | AH27: 36.93265125 | AI27: 38.12595852
C29: Capital allowance pool
E31: Capital allowance rate (declining balance) | G31: =Inputs!G114 -> % | K31: =Inputs!K114 -> 0.08 | L31: =Inputs!L114 -> 0.08 | M31: =Inputs!M114 -> 0.08 | N31: =Inputs!N114 -> 0.08 | O31: =Inputs!O114 -> 0.08 | P31: =Inputs!P114 -> 0.08 | Q31: =Inputs!Q114 -> 0.08 | R31: =Inputs!R114 -> 0.08 | S31: =Inputs!S114 -> 0.08 | T31: =Inputs!T114 -> 0.08 | U31: =Inputs!U114 -> 0.08 | V31: =Inputs!V114 -> 0.08 | W31: =Inputs!W114 -> 0.08 | X31: =Inputs!X114 -> 0.08 | Y31: =Inputs!Y114 -> 0.08 | Z31: =Inputs!Z114 -> 0.08 | AA31: =Inputs!AA114 -> 0.08 | AB31: =Inputs!AB114 -> 0.08 | AC31: =Inputs!AC114 -> 0.08 | AD31: =Inputs!AD114 -> 0.08 | AE31: =Inputs!AE114 -> 0.08 | AF31: =Inputs!AF114 -> 0.08 | AG31: =Inputs!AG114 -> 0.08 | AH31: =Inputs!AH114 -> 0.08 | AI31: =Inputs!AI114 -> 0.08
E32: Number of operational years | G32: =Inputs!G89 -> full years | I32: =Inputs!I89 -> 25
E34: Opening balance brought forward | G34: £m nominal | K34: =J40 -> 0 | L34: 481.2523366 | M34: 442.7521497 | N34: 407.3319777 | O34: 374.7454195 | P34: 344.7657859 | Q34: 317.3623242 | R34: 295.4849408 | S34: 272.0347748 | T34: 250.466281 | U34: 230.6290953 | V34: 212.3848879 | W34: 195.6064008 | X34: 180.1765617 | Y34: 167.3114885 | Z34: 199.0782921 | AA34: 183.3909786 | AB34: 168.9658187 | AC34: 155.7020552 | AD34: 143.5069977 | AE34: 132.2953781 | AF34: 123.6168861 | AG34: 117.5215239 | AH34: 108.4136802 | AI34: 100.0432804
E35: Capex | G35: £m nominal | K35: =SUMPRODUCT('Pre Op RAV'!K19:AX19,Inputs!K107:AX107) -> 523.1003659
E36: Replacement Capex | G36: £m nominal | K36: ='Op Rav'!K13 * K$11 -> 0 | L36: ='Op Rav'!L13 * L$11 -> 0 | M36: ='Op Rav'!M13 * M$11 -> 0 | N36: ='Op Rav'!N13 * N$11 -> 0 | O36: ='Op Rav'!O13 * O$11 -> 0 | P36: ='Op Rav'!P13 * P$11 -> 0.1932621332 | Q36: ='Op Rav'!Q13 * Q$11 -> 3.816959327 | R36: ='Op Rav'!R13 * R$11 -> 0.2050317971 | S36: ='Op Rav'!S13 * S$11 -> 0.211182751 | T36: ='Op Rav'!T13 * T$11 -> 0.2175182335 | U36: ='Op Rav'!U13 * U$11 -> 0.2240437805 | V36: ='Op Rav'!V13 * V$11 -> 0.230765094 | W36: ='Op Rav'!W13 * W$11 -> 0.2376880468 | X36: ='Op Rav'!X13 * X$11 -> 1.683751836 | Y36: ='Op Rav'!Y13 * Y$11 -> 49.07795944 | Z36: ='Op Rav'!Z13 * Z$11 -> 0.2597281463 | AA36: ='Op Rav'!AA13 * AA$11 -> 0.2675199907 | AB36: ='Op Rav'!AB13 * AB$11 -> 0.2755455904 | AC36: ='Op Rav'!AC13 * AC$11 -> 0.2838119581 | AD36: ='Op Rav'!AD13 * AD$11 -> 0.2923263169 | AE36: ='Op Rav'!AE13 * AE$11 -> 2.070802379 | AF36: ='Op Rav'!AF13 * AF$11 -> 4.123900801 | AG36: ='Op Rav'!AG13 * AG$11 -> 0.3194328592 | AH36: ='Op Rav'!AH13 * AH$11 -> 0.329015845 | AI36: ='Op Rav'!AI13 * AI$11 -> 0.3388863204
E37: Tax book value pre-depreciation | G37: £m nominal | K37: =SUM(K34:K36) -> 523.1003659 | L37: 481.2523366 | M37: 442.7521497 | N37: 407.3319777 | O37: 374.7454195 | P37: 344.959048 | Q37: 321.1792835 | R37: 295.6899726 | S37: 272.2459576 | T37: 250.6837992 | U37: 230.8531391 | V37: 212.615653 | W37: 195.8440888 | X37: 181.8603136 | Y37: 216.3894479 | Z37: 199.3380202 | AA37: 183.6584986 | AB37: 169.2413643 | AC37: 155.9858671 | AD37: 143.7993241 | AE37: 134.3661805 | AF37: 127.7407869 | AG37: 117.8409568 | AH37: 108.7426961 | AI37: 100.3821667
E38: Capital allowance (reducing balance) | G38: £m nominal | K38: =-K37 * K31 -> -41.84802927 | L38: =-L37 * L31 -> -38.50018693 | M38: =-M37 * M31 -> -35.42017197 | N38: -32.58655821 | O38: -29.97963356 | P38: -27.59672384 | Q38: -25.69434268 | R38: -23.65519781 | S38: -21.77967661 | T38: -20.05470394 | U38: -18.46825112 | V38: -17.00925224 | W38: -15.66752711 | X38: -14.54882508 | Y38: -17.31115583 | Z38: -15.94704162 | AA38: -14.69267989 | AB38: -13.53930914 | AC38: -12.47886937 | AD38: -11.50394593 | AE38: -10.74929444 | AF38: -10.21926295 | AG38: -9.427276543 | AH38: -8.699415687 | AI38: -8.030573338
E39: Write-back allowance | G39: £m nominal | AI39: =-SUM(AI37:AI38) -> -92.35159338
E40: Closing balance carried forward | G40: £m nominal | K40: =SUM(K37:K39) -> 481.2523366 | L40: =SUM(L37:L39) -> 442.7521497 | M40: 407.3319777 | N40: 374.7454195 | O40: 344.7657859 | P40: 317.3623242 | Q40: 295.4849408 | R40: 272.0347748 | S40: 250.466281 | T40: 230.6290953 | U40: 212.3848879 | V40: 195.6064008 | W40: 180.1765617 | X40: 167.3114885 | Y40: 199.0782921 | Z40: 183.3909786 | AA40: 168.9658187 | AB40: 155.7020552 | AC40: 143.5069977 | AD40: 132.2953781 | AE40: 123.6168861 | AF40: 117.5215239 | AG40: 108.4136802 | AH40: 100.0432804 | AI40: =SUM(AI37:AI39) -> 0
E42: Capital allowances | G42: £m nominal | K42: =-(K38 + K39) -> 41.84802927 | L42: 38.50018693 | M42: 35.42017197 | N42: 32.58655821 | O42: 29.97963356 | P42: 27.59672384 | Q42: 25.69434268 | R42: 23.65519781 | S42: 21.77967661 | T42: 20.05470394 | U42: 18.46825112 | V42: =-(V38 + V39) -> 17.00925224 | W42: 15.66752711 | X42: 14.54882508 | Y42: 17.31115583 | Z42: 15.94704162 | AA42: 14.69267989 | AB42: 13.53930914 | AC42: 12.47886937 | AD42: 11.50394593 | AE42: 10.74929444 | AF42: 10.21926295 | AG42: 9.427276543 | AH42: 8.699415687 | AI42: 100.3821667
B44: Interest
C46: Cost of debt
E48: Cost of debt (for tax) | G48: =Inputs!G69 -> real annual % | I48: =Inputs!I71 -> 0.0042
E49: Expected UK RPI inflation | G49: =Inputs!G116 -> % | I49: =Inputs!I116 -> 0.03
E50: Cost of debt (for tax) | G50: nominal annual % | I50: =(1 + I48) * (1 + I$49) - 1 -> 0.034326
C52: Net debt
E54: Number of operational years | G54: =Inputs!G89 -> full years | I54: =Inputs!I89 -> 25
E55: Operational notional gearing | G55: =Inputs!G74 -> % | I55: =Inputs!I74 -> 0.5
E57: Principal repayments | G57: £m nominal | K57: =K59 - K58 -> 8.888970501 | L57: =L59 - L58 -> 9.194093303 | M57: 9.50968975 | N57: 9.83611936 | O57: 10.17375399 | P57: 10.52297827 | Q57: 10.88419002 | R57: 11.25780073 | S57: 11.644236 | T57: 12.04393604 | U57: 12.45735619 | V57: 12.8849674 | W57: 13.32725679 | X57: 13.78472821 | Y57: 14.25790279 | Z57: 14.74731956 | AA57: 15.25353605 | AB57: 15.77712893 | AC57: 16.31869466 | AD57: 16.87885017 | AE57: 17.45823358 | AF57: 18.05750491 | AG57: 18.67734682 | AH57: 19.31846543 | AI57: 19.98159107
E58: Net interest paid | G58: £m nominal | K58: =$I50 * K61 -> 11.77850867 | L58: 11.47338587 | M58: 11.15778942 | N58: 10.83135981 | O58: 10.49372518 | P58: 10.1445009 | Q58: 9.783289144 | R58: 9.409678437 | S58: 9.023243169 | T58: 8.623543124 | U58: 8.210122975 | V58: 7.782511767 | W58: 7.340222376 | X58: 6.882750959 | Y58: 6.409576378 | Z58: 5.920159607 | AA58: 5.413943116 | AB58: 4.890350237 | AC58: 4.34878451 | AD58: 3.788628997 | AE58: 3.209245586 | AF58: 2.60997426 | AG58: 1.990132347 | AH58: 1.34901374 | AI58: 0.6858880952
E59: Total | G59: £m nominal | K59: =$K$61*$I50/(1-(1+$I50)^(-$I54)) -> 20.66747917 | L59: =$K$61*$I50/(1-(1+$I50)^(-$I54)) -> 20.66747917 | M59: 20.66747917 | N59: 20.66747917 | O59: 20.66747917 | P59: 20.66747917 | Q59: 20.66747917 | R59: 20.66747917 | S59: 20.66747917 | T59: 20.66747917 | U59: 20.66747917 | V59: 20.66747917 | W59: 20.66747917 | X59: 20.66747917 | Y59: 20.66747917 | Z59: 20.66747917 | AA59: 20.66747917 | AB59: 20.66747917 | AC59: 20.66747917 | AD59: 20.66747917 | AE59: 20.66747917 | AF59: 20.66747917 | AG59: 20.66747917 | AH59: 20.66747917 | AI59: 20.66747917
E61: Opening net debt | G61: £m nominal | K61: ='Op Rav'!K12*I9*I55 -> 343.1366506 | L61: =K63 -> 334.2476801 | M61: =L63 -> 325.0535868 | N61: 315.543897 | O61: 305.7077776 | P61: 295.5340237 | Q61: 285.0110454 | R61: 274.1268554 | S61: 262.8690546 | T61: 251.2248186 | U61: 239.1808826 | V61: 226.7235264 | W61: 213.838559 | X61: 200.5113022 | Y61: 186.726574 | Z61: 172.4686712 | AA61: 157.7213516 | AB61: 142.4678156 | AC61: 126.6906866 | AD61: 110.371992 | AE61: 93.49314182 | AF61: 76.03490823 | AG61: 57.97740332 | AH61: 39.3000565 | AI61: 19.98159107
E62: Less principal repayment | G62: £m nominal | K62: =IF(K3 = "Year "&$I54, -K61, -K57) -> -8.888970501 | L62: -9.194093303 | M62: -9.50968975 | N62: -9.83611936 | O62: -10.17375399 | P62: -10.52297827 | Q62: -10.88419002 | R62: -11.25780073 | S62: -11.644236 | T62: -12.04393604 | U62: -12.45735619 | V62: -12.8849674 | W62: -13.32725679 | X62: -13.78472821 | Y62: -14.25790279 | Z62: -14.74731956 | AA62: -15.25353605 | AB62: -15.77712893 | AC62: -16.31869466 | AD62: -16.87885017 | AE62: -17.45823358 | AF62: -18.05750491 | AG62: -18.67734682 | AH62: -19.31846543 | AI62: =IF(AI3 = "Year "&$I54, -AI61, -AI57) -> -19.98159107
E63: Closing net debt | G63: £m nominal | K63: =SUM(K61:K62) -> 334.2476801 | L63: =SUM(L61:L62) -> 325.0535868 | M63: 315.543897 | N63: 305.7077776 | O63: 295.5340237 | P63: 285.0110454 | Q63: 274.1268554 | R63: 262.8690546 | S63: 251.2248186 | T63: 239.1808826 | U63: 226.7235264 | V63: 213.838559 | W63: 200.5113022 | X63: =SUM(X61:X62) -> 186.726574 | Y63: =SUM(Y61:Y62) -> 172.4686712 | Z63: 157.7213516 | AA63: 142.4678156 | AB63: 126.6906866 | AC63: 110.371992 | AD63: 93.49314182 | AE63: 76.03490823 | AF63: 57.97740332 | AG63: 39.3000565 | AH63: 19.98159107 | AI63: 0
B65: End of sheet

Sheet Tax Cap
A1: Tax Cap | H1: Licence
E2: Parameter | G2: Units | H2: Terminology | I2: Constant | K2: Annual values
E3: Project year | K3: Year 1 | L3: Year 2 | M3: Year 3 | N3: Year 4 | O3: Year 5 | P3: Year 6 | Q3: Year 7 | R3: Year 8 | S3: Year 9 | T3: Year 10 | U3: Year 11 | V3: Year 12 | W3: Year 13 | X3: Year 14 | Y3: Year 15 | Z3: Year 16 | AA3: Year 17 | AB3: Year 18 | AC3: Year 19 | AD3: Year 20 | AE3: Year 21 | AF3: Year 22 | AG3: Year 23 | AH3: Year 24 | AI3: Year 25
B5: Unprofiled tax allowance (cap)
C7: Profits attributable to corporation tax
E9: Annuitised allowances except tax (cap) | G9: £m nominal prices | K9: ='Allowances Cap'!K34* 'Tax Deductions'!K$11 -> 78.84012398 | L9: ='Allowances Cap'!L34* 'Tax Deductions'!L$11 -> 81.2053277 | M9: ='Allowances Cap'!M34* 'Tax Deductions'!M$11 -> 83.64148753 | N9: ='Allowances Cap'!N34* 'Tax Deductions'!N$11 -> 86.15073215 | O9: ='Allowances Cap'!O34* 'Tax Deductions'!O$11 -> 88.73525412 | P9: ='Allowances Cap'!P34* 'Tax Deductions'!P$11 -> 91.39731174 | Q9: ='Allowances Cap'!Q34* 'Tax Deductions'!Q$11 -> 94.13923109 | R9: ='Allowances Cap'!R34* 'Tax Deductions'!R$11 -> 96.96340803 | S9: ='Allowances Cap'!S34* 'Tax Deductions'!S$11 -> 99.87231027 | T9: ='Allowances Cap'!T34* 'Tax Deductions'!T$11 -> 102.8684796 | U9: ='Allowances Cap'!U34* 'Tax Deductions'!U$11 -> 105.954534 | V9: ='Allowances Cap'!V34* 'Tax Deductions'!V$11 -> 109.13317 | W9: ='Allowances Cap'!W34* 'Tax Deductions'!W$11 -> 112.4071651 | X9: ='Allowances Cap'!X34* 'Tax Deductions'!X$11 -> 115.77938 | Y9: ='Allowances Cap'!Y34* 'Tax Deductions'!Y$11 -> 119.2527614 | Z9: ='Allowances Cap'!Z34* 'Tax Deductions'!Z$11 -> 122.8303443 | AA9: ='Allowances Cap'!AA34* 'Tax Deductions'!AA$11 -> 126.5152546 | AB9: ='Allowances Cap'!AB34* 'Tax Deductions'!AB$11 -> 130.3107122 | AC9: ='Allowances Cap'!AC34* 'Tax Deductions'!AC$11 -> 134.2200336 | AD9: ='Allowances Cap'!AD34* 'Tax Deductions'!AD$11 -> 138.2466346 | AE9: ='Allowances Cap'!AE34* 'Tax Deductions'!AE$11 -> 142.3940337 | AF9: ='Allowances Cap'!AF34* 'Tax Deductions'!AF$11 -> 146.6658547 | AG9: ='Allowances Cap'!AG34* 'Tax Deductions'!AG$11 -> 151.0658303 | AH9: ='Allowances Cap'!AH34* 'Tax Deductions'!AH$11 -> 155.5978052 | AI9: ='Allowances Cap'!AI34* 'Tax Deductions'!AI$11 -> 160.2657394
E10: Less tax deductions | G10: £m nominal prices | K10: =-'Tax Deductions'!K19 -> -79.57600975 | L10: =-'Tax Deductions'!L19 -> -67.33371888 | M10: =-'Tax Deductions'!M19 -> -64.38092401 | N10: =-'Tax Deductions'!N19 -> -61.70602512 | O10: =-'Tax Deductions'!O19 -> -59.25172976 | P10: =-'Tax Deductions'!P19 -> -58.51172638 | Q10: =-'Tax Deductions'!Q19 -> -56.58548865 | R10: =-'Tax Deductions'!R19 -> -54.87013777 | S10: =-'Tax Deductions'!S19 -> -53.3365548 | T10: =-'Tax Deductions'!T19 -> -51.93904571 | U10: =-'Tax Deductions'!U19 -> -51.15620619 | V10: =-'Tax Deductions'!V19 -> -49.66598888 | W10: =-'Tax Deductions'!W19 -> -48.70494395 | X10: =-'Tax Deductions'!X19 -> -48.00003277 | Y10: =-'Tax Deductions'!Y19 -> -51.14811932 | Z10: =-'Tax Deductions'!Z19 -> -50.72200847 | AA10: =-'Tax Deductions'!AA19 -> -49.44260202 | AB10: =-'Tax Deductions'!AB19 -> -48.7315933 | AC10: =-'Tax Deductions'!AC19 -> -48.15183742 | AD10: =-'Tax Deductions'!AD19 -> -47.62503213 | AE10: =-'Tax Deductions'!AE19 -> -47.91487742 | AF10: =-'Tax Deductions'!AF19 -> -47.35528059 | AG10: =-'Tax Deductions'!AG19 -> -47.08420313 | AH10: =-'Tax Deductions'!AH19 -> -46.98108068 | AI10: =-'Tax Deductions'!AI19 -> -139.1940133
E11: Profits attributable to corporation tax | G11: £m nominal prices | K11: =SUM(K9:K10) -> -0.7358857732 | L11: =SUM(L9:L10) -> 13.87160882 | M11: 19.26056352 | N11: 24.44470703 | O11: 29.48352436 | P11: 32.88558536 | Q11: 37.55374245 | R11: 42.09327026 | S11: 46.53575547 | T11: 50.92943387 | U11: 54.79832777 | V11: 59.4671811 | W11: 63.70222113 | X11: 67.77934727 | Y11: 68.10464211 | Z11: 72.10833581 | AA11: 77.07265258 | AB11: 81.57911895 | AC11: 86.06819619 | AD11: 90.62160249 | AE11: 94.47915624 | AF11: 99.31057407 | AG11: 103.9816272 | AH11: 108.6167245 | AI11: 21.07172604
C13: Tax losses
E15: Taxable losses brought forward | G15: £m nominal prices | K15: =J18 -> 0 | L15: =K18 -> -0.7358857732 | M15: 0 | N15: 0 | O15: 0 | P15: 0 | Q15: 0 | R15: 0 | S15: 0 | T15: 0 | U15: 0 | V15: 0 | W15: 0 | X15: 0 | Y15: 0 | Z15: 0 | AA15: 0 | AB15: 0 | AC15: 0 | AD15: 0 | AE15: 0 | AF15: 0 | AG15: 0 | AH15: 0 | AI15: 0
E16: In-year taxable loss | G16: £m nominal prices | K16: =MIN(K11, 0) -> -0.7358857732 | L16: 0 | M16: 0 | N16: 0 | O16: 0 | P16: 0 | Q16: 0 | R16: 0 | S16: 0 | T16: 0 | U16: 0 | V16: 0 | W16: 0 | X16: 0 | Y16: 0 | Z16: 0 | AA16: 0 | AB16: 0 | AC16: 0 | AD16: 0 | AE16: 0 | AF16: 0 | AG16: 0 | AH16: 0 | AI16: 0
E17: Profits used to offset losses | G17: £m nominal prices | K17: =IF(K11 >= 0, MIN(K11, -K15), 0) -> 0 | L17: 0.7358857732 | M17: 0 | N17: 0 | O17: 0 | P17: 0 | Q17: 0 | R17: 0 | S17: 0 | T17: 0 | U17: 0 | V17: 0 | W17: 0 | X17: 0 | Y17: 0 | Z17: 0 | AA17: 0 | AB17: 0 | AC17: 0 | AD17: 0 | AE17: 0 | AF17: 0 | AG17: 0 | AH17: 0 | AI17: 0
E18: Taxable losses carried forward | G18: £m nominal prices | K18: =SUM(K15:K17) -> -0.7358857732 | L18: =SUM(L15:L17) -> 0 | M18: 0 | N18: 0 | O18: 0 | P18: 0 | Q18: 0 | R18: 0 | S18: 0 | T18: 0 | U18: 0 | V18: 0 | W18: 0 | X18: 0 | Y18: 0 | Z18: 0 | AA18: 0 | AB18: 0 | AC18: 0 | AD18: 0 | AE18: 0 | AF18: 0 | AG18: 0 | AH18: 0 | AI18: 0
C20: Tax allowance
E22: Profits attributable to corporation tax (after taxable losses) | G22: £m nominal prices | K22: =MAX(K11 - K17,0) -> 0 | L22: 13.13572305 | M22: 19.26056352 | N22: 24.44470703 | O22: 29.48352436 | P22: 32.88558536 | Q22: 37.55374245 | R22: 42.09327026 | S22: 46.53575547 | T22: 50.92943387 | U22: 54.79832777 | V22: 59.4671811 | W22: 63.70222113 | X22: =MAX(X11 - X17,0) -> 67.77934727 | Y22: =MAX(Y11 - Y17,0) -> 68.10464211 | Z22: 72.10833581 | AA22: 77.07265258 | AB22: 81.57911895 | AC22: 86.06819619 | AD22: 90.62160249 | AE22: 94.47915624 | AF22: 99.31057407 | AG22: 103.9816272 | AH22: 108.6167245 | AI22: 21.07172604
E23: Corporation tax rate | G23: =Inputs!G113 -> % | K23: =Inputs!K113 -> 0.2 | L23: =Inputs!L113 -> 0.2 | M23: =Inputs!M113 -> 0.2 | N23: =Inputs!N113 -> 0.2 | O23: =Inputs!O113 -> 0.2 | P23: =Inputs!P113 -> 0.2 | Q23: =Inputs!Q113 -> 0.2 | R23: =Inputs!R113 -> 0.2 | S23: =Inputs!S113 -> 0.2 | T23: =Inputs!T113 -> 0.2 | U23: =Inputs!U113 -> 0.2 | V23: =Inputs!V113 -> 0.2 | W23: =Inputs!W113 -> 0.2 | X23: =Inputs!X113 -> 0.2 | Y23: =Inputs!Y113 -> 0.2 | Z23: =Inputs!Z113 -> 0.2 | AA23: =Inputs!AA113 -> 0.2 | AB23: =Inputs!AB113 -> 0.2 | AC23: =Inputs!AC113 -> 0.2 | AD23: =Inputs!AD113 -> 0.2 | AE23: =Inputs!AE113 -> 0.2 | AF23: =Inputs!AF113 -> 0.2 | AG23: =Inputs!AG113 -> 0.2 | AH23: =Inputs!AH113 -> 0.2 | AI23: =Inputs!AI113 -> 0.2
E24: Corporation tax charge after losses | G24: £m nominal prices | K24: =K22 * K23 -> 0 | L24: 2.627144609 | M24: 3.852112704 | N24: 4.888941406 | O24: 5.896704871 | P24: 6.577117072 | Q24: 7.510748489 | R24: 8.418654051 | S24: 9.307151094 | T24: 10.18588677 | U24: 10.95966555 | V24: 11.89343622 | W24: 12.74044423 | X24: =X22 * X23 -> 13.55586945 | Y24: =Y22 * Y23 -> 13.62092842 | Z24: 14.42166716 | AA24: 15.41453052 | AB24: 16.31582379 | AC24: 17.21363924 | AD24: 18.1243205 | AE24: 18.89583125 | AF24: 19.86211481 | AG24: 20.79632544 | AH24: 21.72334491 | AI24: 4.214345207
E26: Grossing-up factor for tax on tax charge after losses | G26: scalar | K26: =1 / (1 - K23) -> 1.25 | L26: 1.25 | M26: 1.25 | N26: 1.25 | O26: 1.25 | P26: 1.25 | Q26: 1.25 | R26: 1.25 | S26: 1.25 | T26: 1.25 | U26: 1.25 | V26: 1.25 | W26: 1.25 | X26: =1 / (1 - X23) -> 1.25 | Y26: =1 / (1 - Y23) -> 1.25 | Z26: 1.25 | AA26: 1.25 | AB26: 1.25 | AC26: 1.25 | AD26: 1.25 | AE26: 1.25 | AF26: 1.25 | AG26: 1.25 | AH26: 1.25 | AI26: 1.25
E28: Unprofiled tax allowance (cap) | G28: £m nominal prices | K28: =K24 * K26 -> 0 | L28: 3.283930761 | M28: 4.81514088 | N28: 6.111176758 | O28: 7.370881089 | P28: 8.22139634 | Q28: 9.388435611 | R28: 10.52331756 | S28: 11.63393887 | T28: 12.73235847 | U28: 13.69958194 | V28: 14.86679527 | W28: 15.92555528 | X28: =X24 * X26 -> 16.94483682 | Y28: =Y24 * Y26 -> 17.02616053 | Z28: =Z24 * Z26 -> 18.02708395 | AA28: 19.26816315 | AB28: 20.39477974 | AC28: 21.51704905 | AD28: 22.65540062 | AE28: 23.61978906 | AF28: 24.82764352 | AG28: 25.9954068 | AH28: 27.15418114 | AI28: 5.267931509
B30: Profiled tax allowance (cap)
E32: Unprofiled tax allowance (cap) | G32: =Inputs!$I$11 -> £m 13/14 prices | K32: ='Tax Cap'!K28 / 'Tax Deductions'!K11 -> 0 | L32: ='Tax Cap'!L28 / 'Tax Deductions'!L11 -> 2.683105873 | M32: ='Tax Cap'!M28 / 'Tax Deductions'!M11 -> 3.819579832 | N32: ='Tax Cap'!N28 / 'Tax Deductions'!N11 -> 4.706458288 | O32: ='Tax Cap'!O28 / 'Tax Deductions'!O11 -> 5.511268237 | P32: ='Tax Cap'!P28 / 'Tax Deductions'!P11 -> 5.968160646 | Q32: ='Tax Cap'!Q28 / 'Tax Deductions'!Q11 -> 6.616844471 | R32: ='Tax Cap'!R28 / 'Tax Deductions'!R11 -> 7.200673949 | S32: ='Tax Cap'!S28 / 'Tax Deductions'!S11 -> 7.728763579 | T32: ='Tax Cap'!T28 / 'Tax Deductions'!T11 -> 8.212112263 | U32: ='Tax Cap'!U28 / 'Tax Deductions'!U11 -> 8.578593916 | V32: ='Tax Cap'!V28 / 'Tax Deductions'!V11 -> 9.038345361 | W32: ='Tax Cap'!W28 / 'Tax Deductions'!W11 -> 9.400023305 | X32: ='Tax Cap'!X28 / 'Tax Deductions'!X11 -> 9.710341695 | Y32: ='Tax Cap'!Y28 / 'Tax Deductions'!Y11 -> 9.472761885 | Z32: ='Tax Cap'!Z28 / 'Tax Deductions'!Z11 -> 9.737515309 | AA32: ='Tax Cap'!AA28 / 'Tax Deductions'!AA11 -> 10.1047544 | AB32: ='Tax Cap'!AB28 / 'Tax Deductions'!AB11 -> 10.38406127 | AC32: ='Tax Cap'!AC28 / 'Tax Deductions'!AC11 -> 10.63637665 | AD32: ='Tax Cap'!AD28 / 'Tax Deductions'!AD11 -> 10.87290315 | AE32: ='Tax Cap'!AE28 / 'Tax Deductions'!AE11 -> 11.00557058 | AF32: ='Tax Cap'!AF28 / 'Tax Deductions'!AF11 -> 11.23142406 | AG32: ='Tax Cap'!AG28 / 'Tax Deductions'!AG11 -> 11.41717656 | AH32: ='Tax Cap'!AH28 / 'Tax Deductions'!AH11 -> 11.57874755 | AI32: ='Tax Cap'!AI28 / 'Tax Deductions'!AI11 -> 2.180859913
E33: Discount factor to start of operational period (cap) | G33: ='Allowances Cap'!G24 -> scalar | K33: ='Allowances Cap'!K24 -> 0.9316191541 | L33: ='Allowances Cap'!L24 -> 0.8679142483 | M33: ='Allowances Cap'!M24 -> 0.8085655378 | N33: ='Allowances Cap'!N24 -> 0.7532751423 | O33: ='Allowances Cap'!O24 -> 0.7017655509 | P33: ='Allowances Cap'!P24 -> 0.6537782289 | Q33: ='Allowances Cap'!Q24 -> 0.6090723206 | R33: ='Allowances Cap'!R24 -> 0.5674234401 | S33: ='Allowances Cap'!S24 -> 0.5286225453 | T33: ='Allowances Cap'!T24 -> 0.4924748884 | U33: ='Allowances Cap'!U24 -> 0.458799039 | V33: ='Allowances Cap'!V24 -> 0.4274259726 | W33: ='Allowances Cap'!W24 -> 0.398198223 | X33: ='Allowances Cap'!X24 -> 0.3709690917 | Y33: ='Allowances Cap'!Y24 -> 0.3456019114 | Z33: ='Allowances Cap'!Z24 -> 0.3219693603 | AA33: ='Allowances Cap'!AA24 -> 0.2999528231 | AB33: ='Allowances Cap'!AB24 -> 0.2794417953 | AC33: ='Allowances Cap'!AC24 -> 0.260333329 | AD33: ='Allowances Cap'!AD24 -> 0.2425315157 | AE33: ='Allowances Cap'!AE24 -> 0.2259470055 | AF33: ='Allowances Cap'!AF24 -> 0.2104965582 | AG33: ='Allowances Cap'!AG24 -> 0.1961026255 | AH33: ='Allowances Cap'!AH24 -> 0.182692962 | AI33: ='Allowances Cap'!AI24 -> 0.1702002628
E35: Discounted unprofiled tax allowance (cap) | G35: =Inputs!$I$11 -> £m 13/14 prices | K35: =K32 * K33 -> 0 | L35: 2.328705817 | M35: 3.088380621 | N35: 3.545258037 | O35: 3.867618191 | P35: 3.901853497 | Q35: 4.030136817 | R35: 4.085831183 | S35: 4.085598675 | T35: 4.044259071 | U35: 3.935850645 | V35: 3.863223557 | W35: 3.743072577 | X35: =X32 * X33 -> 3.602236639 | Y35: =Y32 * Y33 -> 3.273804614 | Z35: 3.135181575 | AA35: 3.03094961 | AB35: 2.901740725 | AC35: 2.769003342 | AD35: 2.637021683 | AE35: 2.486675718 | AF35: 2.364176108 | AG35: 2.238938299 | AH35: 2.115355687 | AI35: 0.3711829303
E36: NPV of tax allowance (cap) | G36: =Inputs!$I$11 -> £m 13/14 prices | I36: =SUM(K35:AI35) -> 75.44605562
E38: Annuity factor (cap) | G38: ='Allowances Cap'!G31 -> scalar | I38: ='Allowances Cap'!I31 -> 0.08845507742
E40: Annuity of tax allowance (cap) | G40: =Inputs!$I$11 -> £m 13/14 prices | I40: =I36 * I38 -> 6.673586691
B42: End of sheet

Sheet Tax Floor
A1: Tax Floor | H1: Licence
E2: Parameter | G2: Units | H2: Terminology | I2: Constant | K2: Annual values
E3: Project year | K3: Year 1 | L3: Year 2 | M3: Year 3 | N3: Year 4 | O3: Year 5 | P3: Year 6 | Q3: Year 7 | R3: Year 8 | S3: Year 9 | T3: Year 10 | U3: Year 11 | V3: Year 12 | W3: Year 13 | X3: Year 14 | Y3: Year 15 | Z3: Year 16 | AA3: Year 17 | AB3: Year 18 | AC3: Year 19 | AD3: Year 20 | AE3: Year 21 | AF3: Year 22 | AG3: Year 23 | AH3: Year 24 | AI3: Year 25
B5: Unprofiled tax allowance (floor)
C7: Profits attributable to corporation tax
E9: Annuitised allowances except tax (floor) | G9: £m nominal prices | K9: ='Allowances Floor'!K34* 'Tax Deductions'!K$11 -> 49.56913942 | L9: ='Allowances Floor'!L34* 'Tax Deductions'!L$11 -> 51.0562136 | M9: ='Allowances Floor'!M34* 'Tax Deductions'!M$11 -> 52.58790001 | N9: ='Allowances Floor'!N34* 'Tax Deductions'!N$11 -> 54.16553701 | O9: ='Allowances Floor'!O34* 'Tax Deductions'!O$11 -> 55.79050312 | P9: ='Allowances Floor'!P34* 'Tax Deductions'!P$11 -> 57.46421821 | Q9: ='Allowances Floor'!Q34* 'Tax Deductions'!Q$11 -> 59.18814476 | R9: ='Allowances Floor'!R34* 'Tax Deductions'!R$11 -> 60.9637891 | S9: ='Allowances Floor'!S34* 'Tax Deductions'!S$11 -> 62.79270278 | T9: ='Allowances Floor'!T34* 'Tax Deductions'!T$11 -> 64.67648386 | U9: ='Allowances Floor'!U34* 'Tax Deductions'!U$11 -> 66.61677838 | V9: ='Allowances Floor'!V34* 'Tax Deductions'!V$11 -> 68.61528173 | W9: ='Allowances Floor'!W34* 'Tax Deductions'!W$11 -> 70.67374018 | X9: ='Allowances Floor'!X34* 'Tax Deductions'!X$11 -> 72.79395238 | Y9: ='Allowances Floor'!Y34* 'Tax Deductions'!Y$11 -> 74.97777096 | Z9: ='Allowances Floor'!Z34* 'Tax Deductions'!Z$11 -> 77.22710408 | AA9: ='Allowances Floor'!AA34* 'Tax Deductions'!AA$11 -> 79.54391721 | AB9: ='Allowances Floor'!AB34* 'Tax Deductions'!AB$11 -> 81.93023472 | AC9: ='Allowances Floor'!AC34* 'Tax Deductions'!AC$11 -> 84.38814176 | AD9: ='Allowances Floor'!AD34* 'Tax Deductions'!AD$11 -> 86.91978602 | AE9: ='Allowances Floor'!AE34* 'Tax Deductions'!AE$11 -> 89.5273796 | AF9: ='Allowances Floor'!AF34* 'Tax Deductions'!AF$11 -> 92.21320099 | AG9: ='Allowances Floor'!AG34* 'Tax Deductions'!AG$11 -> 94.97959702 | AH9: ='Allowances Floor'!AH34* 'Tax Deductions'!AH$11 -> 97.82898493 | AI9: ='Allowances Floor'!AI34* 'Tax Deductions'!AI$11 -> 100.7638545
E10: Less tax deductions | G10: £m nominal prices | K10: =-'Tax Deductions'!K19 -> -79.57600975 | L10: =-'Tax Deductions'!L19 -> -67.33371888 | M10: =-'Tax Deductions'!M19 -> -64.38092401 | N10: =-'Tax Deductions'!N19 -> -61.70602512 | O10: =-'Tax Deductions'!O19 -> -59.25172976 | P10: =-'Tax Deductions'!P19 -> -58.51172638 | Q10: =-'Tax Deductions'!Q19 -> -56.58548865 | R10: =-'Tax Deductions'!R19 -> -54.87013777 | S10: =-'Tax Deductions'!S19 -> -53.3365548 | T10: =-'Tax Deductions'!T19 -> -51.93904571 | U10: =-'Tax Deductions'!U19 -> -51.15620619 | V10: =-'Tax Deductions'!V19 -> -49.66598888 | W10: =-'Tax Deductions'!W19 -> -48.70494395 | X10: =-'Tax Deductions'!X19 -> -48.00003277 | Y10: =-'Tax Deductions'!Y19 -> -51.14811932 | Z10: =-'Tax Deductions'!Z19 -> -50.72200847 | AA10: =-'Tax Deductions'!AA19 -> -49.44260202 | AB10: =-'Tax Deductions'!AB19 -> -48.7315933 | AC10: =-'Tax Deductions'!AC19 -> -48.15183742 | AD10: =-'Tax Deductions'!AD19 -> -47.62503213 | AE10: =-'Tax Deductions'!AE19 -> -47.91487742 | AF10: =-'Tax Deductions'!AF19 -> -47.35528059 | AG10: =-'Tax Deductions'!AG19 -> -47.08420313 | AH10: =-'Tax Deductions'!AH19 -> -46.98108068 | AI10: =-'Tax Deductions'!AI19 -> -139.1940133
E11: Profits attributable to corporation tax | G11: £m nominal prices | K11: =SUM(K9:K10) -> -30.00687033 | L11: =SUM(L9:L10) -> -16.27750528 | M11: -11.793024 | N11: -7.540488111 | O11: -3.461226641 | P11: -1.047508167 | Q11: 2.602656113 | R11: 6.093651335 | S11: 9.456147978 | T11: 12.73743815 | U11: 15.46057219 | V11: 18.94929284 | W11: 21.96879623 | X11: 24.79391962 | Y11: 23.82965163 | Z11: 26.50509561 | AA11: 30.10131519 | AB11: 33.19864143 | AC11: 36.23630434 | AD11: 39.29475389 | AE11: 41.61250218 | AF11: 44.85792039 | AG11: 47.89539389 | AH11: 50.84790425 | AI11: -38.43015886
C13: Tax losses
E15: Taxable losses brought forward | G15: £m nominal prices | K15: =J18 -> 0 | L15: =K18 -> -30.00687033 | M15: -46.28437561 | N15: -58.0773996 | O15: -65.61788771 | P15: -69.07911436 | Q15: -70.12662252 | R15: -67.52396641 | S15: -61.43031507 | T15: -51.9741671 | U15: -39.23672894 | V15: -23.77615676 | W15: -4.826863915 | X15: 0 | Y15: 0 | Z15: 0 | AA15: 0 | AB15: 0 | AC15: 0 | AD15: 0 | AE15: 0 | AF15: 0 | AG15: 0 | AH15: 0 | AI15: 0
E16: In-year taxable loss | G16: £m nominal prices | K16: =MIN(K11, 0) -> -30.00687033 | L16: -16.27750528 | M16: -11.793024 | N16: -7.540488111 | O16: -3.461226641 | P16: -1.047508167 | Q16: 0 | R16: 0 | S16: 0 | T16: 0 | U16: 0 | V16: 0 | W16: 0 | X16: 0 | Y16: 0 | Z16: 0 | AA16: 0 | AB16: 0 | AC16: 0 | AD16: 0 | AE16: 0 | AF16: 0 | AG16: 0 | AH16: 0 | AI16: -38.43015886
E17: Profits used to offset losses | G17: £m nominal prices | K17: =IF(K11 >= 0, MIN(K11, -K15), 0) -> 0 | L17: 0 | M17: 0 | N17: 0 | O17: 0 | P17: 0 | Q17: 2.602656113 | R17: 6.093651335 | S17: 9.456147978 | T17: 12.73743815 | U17: 15.46057219 | V17: 18.94929284 | W17: 4.826863915 | X17: 0 | Y17: 0 | Z17: 0 | AA17: 0 | AB17: 0 | AC17: 0 | AD17: 0 | AE17: 0 | AF17: 0 | AG17: 0 | AH17: 0 | AI17: 0
E18: Taxable losses carried forward | G18: £m nominal prices | K18: =SUM(K15:K17) -> -30.00687033 | L18: =SUM(L15:L17) -> -46.28437561 | M18: -58.0773996 | N18: -65.61788771 | O18: -69.07911436 | P18: -70.12662252 | Q18: -67.52396641 | R18: -61.43031507 | S18: -51.9741671 | T18: -39.23672894 | U18: -23.77615676 | V18: -4.826863915 | W18: 0 | X18: 0 | Y18: 0 | Z18: 0 | AA18: 0 | AB18: 0 | AC18: 0 | AD18: 0 | AE18: 0 | AF18: 0 | AG18: 0 | AH18: 0 | AI18: -38.43015886
C20: Tax allowance
E22: Profits attributable to corporation tax (after taxable losses) | G22: £m nominal prices | K22: =MAX(K11 - K17,0) -> 0 | L22: 0 | M22: 0 | N22: 0 | O22: 0 | P22: 0 | Q22: 0 | R22: 0 | S22: 0 | T22: 0 | U22: 0 | V22: 0 | W22: 17.14193231 | X22: 24.79391962 | Y22: 23.82965163 | Z22: 26.50509561 | AA22: 30.10131519 | AB22: 33.19864143 | AC22: 36.23630434 | AD22: 39.29475389 | AE22: 41.61250218 | AF22: 44.85792039 | AG22: 47.89539389 | AH22: 50.84790425 | AI22: 0
E23: Corporation tax rate | G23: =Inputs!G113 -> % | K23: =Inputs!K113 -> 0.2 | L23: =Inputs!L113 -> 0.2 | M23: =Inputs!M113 -> 0.2 | N23: =Inputs!N113 -> 0.2 | O23: =Inputs!O113 -> 0.2 | P23: =Inputs!P113 -> 0.2 | Q23: =Inputs!Q113 -> 0.2 | R23: =Inputs!R113 -> 0.2 | S23: =Inputs!S113 -> 0.2 | T23: =Inputs!T113 -> 0.2 | U23: =Inputs!U113 -> 0.2 | V23: =Inputs!V113 -> 0.2 | W23: =Inputs!W113 -> 0.2 | X23: =Inputs!X113 -> 0.2 | Y23: =Inputs!Y113 -> 0.2 | Z23: =Inputs!Z113 -> 0.2 | AA23: =Inputs!AA113 -> 0.2 | AB23: =Inputs!AB113 -> 0.2 | AC23: =Inputs!AC113 -> 0.2 | AD23: =Inputs!AD113 -> 0.2 | AE23: =Inputs!AE113 -> 0.2 | AF23: =Inputs!AF113 -> 0.2 | AG23: =Inputs!AG113 -> 0.2 | AH23: =Inputs!AH113 -> 0.2 | AI23: =Inputs!AI113 -> 0.2
E24: Corporation tax charge after losses | G24: £m nominal prices | K24: =K22 * K23 -> 0 | L24: =L22 * L23 -> 0 | M24: 0 | N24: 0 | O24: 0 | P24: 0 | Q24: 0 | R24: 0 | S24: 0 | T24: 0 | U24: 0 | V24: 0 | W24: 3.428386463 | X24: 4.958783923 | Y24: 4.765930326 | Z24: 5.301019123 | AA24: 6.020263037 | AB24: 6.639728285 | AC24: 7.247260868 | AD24: 7.858950777 | AE24: 8.322500436 | AF24: 8.971584078 | AG24: 9.579078778 | AH24: 10.16958085 | AI24: 0
E26: Grossing-up factor for tax on tax charge after losses | G26: scalar | K26: =1 / (1 - K23) -> 1.25 | L26: 1.25 | M26: 1.25 | N26: 1.25 | O26: 1.25 | P26: 1.25 | Q26: 1.25 | R26: 1.25 | S26: 1.25 | T26: 1.25 | U26: 1.25 | V26: 1.25 | W26: 1.25 | X26: 1.25 | Y26: 1.25 | Z26: 1.25 | AA26: 1.25 | AB26: 1.25 | AC26: 1.25 | AD26: 1.25 | AE26: 1.25 | AF26: 1.25 | AG26: 1.25 | AH26: 1.25 | AI26: 1.25
E28: Unprofiled tax allowance (floor) | G28: £m nominal prices | K28: =K24 * K26 -> 0 | L28: 0 | M28: 0 | N28: 0 | O28: 0 | P28: 0 | Q28: 0 | R28: 0 | S28: 0 | T28: 0 | U28: 0 | V28: 0 | W28: 4.285483078 | X28: 6.198479904 | Y28: 5.957412908 | Z28: 6.626273904 | AA28: 7.525328796 | AB28: 8.299660357 | AC28: 9.059076085 | AD28: 9.823688472 | AE28: 10.40312555 | AF28: 11.2144801 | AG28: 11.97384847 | AH28: 12.71197606 | AI28: 0
B30: Profiled tax allowance (floor)
E32: Unprofiled tax allowance (floor) | G32: =Inputs!$I$11 -> £m 13/14 prices | K32: ='Tax Floor'!K28 / 'Tax Deductions'!K$11 -> 0 | L32: ='Tax Floor'!L28 / 'Tax Deductions'!L$11 -> 0 | M32: ='Tax Floor'!M28 / 'Tax Deductions'!M$11 -> 0 | N32: ='Tax Floor'!N28 / 'Tax Deductions'!N$11 -> 0 | O32: ='Tax Floor'!O28 / 'Tax Deductions'!O$11 -> 0 | P32: ='Tax Floor'!P28 / 'Tax Deductions'!P$11 -> 0 | Q32: ='Tax Floor'!Q28 / 'Tax Deductions'!Q$11 -> 0 | R32: ='Tax Floor'!R28 / 'Tax Deductions'!R$11 -> 0 | S32: ='Tax Floor'!S28 / 'Tax Deductions'!S$11 -> 0 | T32: ='Tax Floor'!T28 / 'Tax Deductions'!T$11 -> 0 | U32: ='Tax Floor'!U28 / 'Tax Deductions'!U$11 -> 0 | V32: ='Tax Floor'!V28 / 'Tax Deductions'!V$11 -> 0 | W32: ='Tax Floor'!W28 / 'Tax Deductions'!W$11 -> 2.52949678 | X32: ='Tax Floor'!X28 / 'Tax Deductions'!X$11 -> 3.552076571 | Y32: ='Tax Floor'!Y28 / 'Tax Deductions'!Y$11 -> 3.314496761 | Z32: ='Tax Floor'!Z28 / 'Tax Deductions'!Z$11 -> 3.579250186 | AA32: ='Tax Floor'!AA28 / 'Tax Deductions'!AA$11 -> 3.946489279 | AB32: ='Tax Floor'!AB28 / 'Tax Deductions'!AB$11 -> 4.22579615 | AC32: ='Tax Floor'!AC28 / 'Tax Deductions'!AC$11 -> 4.478111526 | AD32: ='Tax Floor'!AD28 / 'Tax Deductions'!AD$11 -> 4.714638031 | AE32: ='Tax Floor'!AE28 / 'Tax Deductions'!AE$11 -> 4.84730546 | AF32: ='Tax Floor'!AF28 / 'Tax Deductions'!AF$11 -> 5.073158937 | AG32: ='Tax Floor'!AG28 / 'Tax Deductions'!AG$11 -> 5.258911438 | AH32: ='Tax Floor'!AH28 / 'Tax Deductions'!AH$11 -> 5.420482429 | AI32: ='Tax Floor'!AI28 / 'Tax Deductions'!AI$11 -> 0
E33: Discount factor to start of operational period (floor) | G33: ='Allowances Floor'!G24 -> scalar | K33: ='Allowances Floor'!K24 -> 0.9958175662 | L33: ='Allowances Floor'!L24 -> 0.9916526252 | M33: ='Allowances Floor'!M24 -> 0.9875051038 | N33: ='Allowances Floor'!N24 -> 0.9833749291 | O33: ='Allowances Floor'!O24 -> 0.9792620285 | P33: ='Allowances Floor'!P24 -> 0.97516633 | Q33: ='Allowances Floor'!Q24 -> 0.9710877614 | R33: ='Allowances Floor'!R24 -> 0.9670262511 | S33: ='Allowances Floor'!S24 -> 0.9629817278 | T33: ='Allowances Floor'!T24 -> 0.9589541205 | U33: ='Allowances Floor'!U24 -> 0.9549433584 | V33: ='Allowances Floor'!V24 -> 0.9509493711 | W33: ='Allowances Floor'!W24 -> 0.9469720883 | X33: ='Allowances Floor'!X24 -> 0.9430114403 | Y33: ='Allowances Floor'!Y24 -> 0.9390673574 | Z33: ='Allowances Floor'!Z24 -> 0.9351397703 | AA33: ='Allowances Floor'!AA24 -> 0.9312286102 | AB33: ='Allowances Floor'!AB24 -> 0.9273338082 | AC33: ='Allowances Floor'!AC24 -> 0.9234552959 | AD33: ='Allowances Floor'!AD24 -> 0.9195930053 | AE33: ='Allowances Floor'!AE24 -> 0.9157468684 | AF33: ='Allowances Floor'!AF24 -> 0.9119168178 | AG33: ='Allowances Floor'!AG24 -> 0.9081027861 | AH33: ='Allowances Floor'!AH24 -> 0.9043047063 | AI33: ='Allowances Floor'!AI24 -> 0.9005225118
E35: Discounted unprofiled tax allowance (floor) | G35: =Inputs!$I$11 -> £m 13/14 prices | K35: =K32*K33 -> 0 | L35: =L32*L33 -> 0 | M35: 0 | N35: 0 | O35: 0 | P35: 0 | Q35: 0 | R35: 0 | S35: 0 | T35: 0 | U35: 0 | V35: 0 | W35: 2.395362848 | X35: 3.349648843 | Y35: 3.112535715 | Z35: 3.347099196 | AA35: 3.675083727 | AB35: 3.918723637 | AC35: 4.135335804 | AD35: 4.335548155 | AE35: 4.438904796 | AF35: 4.626298954 | AG35: 4.775632129 | AH35: 4.901767772 | AI35: 0
E36: NPV of tax allowance (floor) | G36: =Inputs!$I$11 -> £m 13/14 prices | I36: =SUM(K35:AI35) -> 47.01194158
E38: Annuity factor (floor) | G38: ='Allowances Floor'!G31 -> scalar | I38: ='Allowances Floor'!I31 -> 0.04222060765
E40: Annuity of tax allowance (floor) | G40: =Inputs!$I$11 -> £m 13/14 prices | I40: =I36 * I38 -> 1.98487274
B42: End of sheet

Sheet Cap Floor Levels
A1: Cap Floor Levels | H1: Licence
E2: Parameter | G2: Units | H2: Terminology | I2: Constant
B4: Cap and Floor levels and adjustments
C6: Cap and Floor levels at FPA (Preliminary) / PCR (Final) and PCA adjustments at PCR
C7: Relevant stage: FPA for Preliminary levels; PCR for final levels
E8: Cap at relevant stage excluding tax (calculated through the model) | G8: =Inputs!$I$11 -> £m 13/14 prices | I8: ='Allowances Cap'!$I33 -> 66.34807721
E9: Floor at relevant stage excluding tax (calculated through the model) | G9: =Inputs!$I$11 -> £m 13/14 prices | I9: ='Allowances Floor'!$I33 -> 41.71501671
E11: Cap at relevant stage - tax element (calculated through the model) | G11: =Inputs!$I$11 -> £m 13/14 prices | I11: =IF(Inputs!$I$123="No",'Tax Cap'!I40,0) -> 0
E12: Floor at relevant stage - tax element (calculated through the model) | G12: =Inputs!$I$11 -> £m 13/14 prices | I12: =IF(Inputs!$I$123="No",'Tax Floor'!I40,0) -> 0
E14: Cap at relevant stage - tax element (previously calculated through the model and fixed) | G14: =Inputs!$I$11 -> £m 13/14 prices | I14: 10.65421954
E15: Floor at relevant stage - tax element (previously calculated through the model and fixed) | G15: =Inputs!$I$11 -> £m 13/14 prices | I15: 2.156683703
E17: Cap at relevant stage including tax (calculated through the model) | G17: =Inputs!$I$11 -> £m 13/14 prices | I17: =I8+IF(Inputs!$I$123="Yes",I14,I11) -> 77.00229675
E18: Floor at relevant stage including tax (calculated through the model) | G18: =Inputs!$I$11 -> £m 13/14 prices | I18: =I9+IF(Inputs!$I$123="Yes",I15,I12) -> 43.87170041
E20: Preliminary Cap including tax (hardcoded at FPA) | G20: =Inputs!$I$11 -> £m 13/14 prices | H20: PCL | I20: 83.80640211
E21: Preliminary Floor including tax (hardcoded at FPA) | G21: =Inputs!$I$11 -> £m 13/14 prices | H21: PFL | I21: 48.80731676
E23: Cap PCA adjustment (at PCR) | G23: =Inputs!$I$11 -> £m 13/14 prices | H23: PCAC | I23: =I17-I20 -> -6.804105366
E24: Floor PCA adjustment (at PCR) | G24: =Inputs!$I$11 -> £m 13/14 prices | H24: PCAF | I24: =I18-I21 -> -4.935616346
B26: End of sheet
